Workbook

Sheet C1.1
A2: CUADRO 1.1 COSTA RICA: ELECTORADO, AUMENTO RELATIVO, VOTOS RECIBIDOS, NULOS, BLANCOS, ABSTENCIONISMO
A3: DENSIDAD ELECTORAL POR KM2 Y RELACIÓN CON POBLACIÓN TOTAL DEL PAÍS
A4: ELECCIONES PRESIDENCIALES 1953 - 2018
A6: DATOS E INDICADORES | B6: AÑO ELECTORAL
B7: 1953 | C7: 1958 | D7: 1962 | E7: 1966 | F7: 1970 | G7: 1974 | H7: 1978 | I7: 1982 | J7: 1986 | K7: 1990 | L7: 1994 | M7: 1998 | N7: 2002 | O7: 2006 | P7: 2010 | Q7: 2014 | R7: 2018
A9: ELECTORADO | B9: 294016 | C9: 354779 | D9: 483980 | E9: 554627 | F9: 675285 | G9: 875041 | H9: 1058455 | I9: 1261127 | J9: 1486474 | K9: 1692050 | L9: 1881348 | M9: 2045980 | N9: 2279851 | O9: =+C3.15!B12 -> 2550613 | P9: =C3.16!B12 -> 2822491 | Q9: 3078321 | R9: 3322329
A11: AUMENTO RELATIVO ENTRE ELECCIONES 1/ | C11: =+(C9-B9)/B9*100 -> 20.66656236 | D11: =+(D9-C9)/C9*100 -> 36.41731895 | E11: =+(E9-D9)/D9*100 -> 14.59709079 | F11: 21.75480097 | G11: 29.58099173 | H11: 20.96061785 | I11: 19.14790898 | J11: 17.86869998 | K11: 13.82977435 | L11: 11.18749446 | M11: 8.750746805 | N11: =+(N9-M9)/M9*100 -> 11.4307569 | O11: =+(O9-N9)/N9*100 -> 11.87630244 | P11: =+(P9-O9)/O9*100 -> 10.65931994 | Q11: =+(Q9-P9)/P9*100 -> 9.063979301 | R11: =+(R9-Q9)/Q9*100 -> 7.926658721
A13: VOTOS RECIBIDOS | B13: =+B9-B22 -> 197489 | C13: =+C9-C22 -> 229543 | D13: 391406 | E13: 451490 | F13: 562766 | G13: 699340 | H13: 860206 | I13: 991679 | J13: 1216300 | K13: 1384326 | L13: 1525979 | M13: 1431913 | N13: 1569418 | O13: =+O9-O22 -> 1662857 | P13: =+P9-P22 -> 1950847 | Q13: 2099219 | R13: 2182764
A15: VOTOS VÁLIDOS | B15: =+B13-B17-B19 -> 190768 | C15: =+C13-C17-C19 -> 221549 | D15: 383462 | E15: 441400 | F15: 540045 | G15: 678157 | H15: 831141 | I15: 966576 | J15: 1185222 | K15: 1349014 | L15: 1490097 | M15: 1388698 | N15: 1529845 | O15: =+O13-O17-O19 -> 1623992 | P15: =+P13-P17-P19 -> 1911333 | Q15: 2055472 | R15: 2154697
A17: VOTOS NULOS | B17: 2330 | C17: 3981 | D17: 5020 | E17: 6265 | F17: 18153 | G17: 16160 | H17: 23691 | I17: 20241 | J17: 26029 | K17: 29919 | L17: 30663 | M17: 36318 | N17: 32332 | O17: =+C3.15!B33 -> 30422 | P17: =C3.16!B28 -> 32555 | Q17: 38021 | R17: 22974
A19: VOTOS BLANCOS | B19: 4391 | C19: 4013 | D19: 2924 | E19: 3825 | F19: 4568 | G19: 5023 | H19: 5374 | I19: 4862 | J19: 5049 | K19: 5393 | L19: 5219 | M19: 6897 | N19: 7241 | O19: =+C3.15!B35 -> 8443 | P19: =C3.16!B30 -> 6959 | Q19: 5726 | R19: 5093
A21: ABSTENCIONISMO
A22: ABSOLUTO | B22: 96527 | C22: 125236 | D22: 92574 | E22: 103137 | F22: 112519 | G22: 175701 | H22: 198249 | I22: 269448 | J22: 270174 | K22: 307724 | L22: 355369 | M22: 614067 | N22: 710433 | O22: =+C3.15!B37 -> 887756 | P22: =C3.16!B32 -> 871644 | Q22: 979102 | R22: 1139565
A23: RELATIVO | B23: =+B22/B9*100 -> 32.83052623 | C23: =+C22/C9*100 -> 35.2997218 | D23: 19.1276499 | E23: 18.59574092 | F23: 16.66244623 | G23: 20.07917343 | H23: 18.73003576 | I23: 21.36565152 | J23: 18.17549449 | K23: 18.18646021 | L23: 18.88906252 | M23: 30.01334324 | N23: 31.16137853 | O23: 34.80559379 | P23: 30.88208253 | Q23: 31.80636457 | R23: 34.3001852
A25: DENSIDAD POR KM2 2/ | B25: =+B9/$B$38 -> 5.753737769 | C25: =+C9/$B$38 -> 6.942837573 | D25: 9.471232877 | E25: 10.85375734 | F25: 13.21497065 | G25: 17.12409002 | H25: 20.71340509 | I25: 24.67958904 | J25: 29.08951076 | K25: 33.11252446 | L25: 36.8169863 | M25: 40.03874755 | N25: 44.61547945 | O25: =+O9/$B$38 -> 49.91414873 | P25: =+P9/$B$38 -> 55.23465753 | Q25: =+Q9/$B$38 -> 60.24111546 | R25: 65.01622309
A27: RELACIÓN CON LA POBLACIÓN 3/ | B27: =+B9/B36*100 -> 33.84391896 | C27: 33.70905124 | D27: 38.67517662 | E27: 36.60198826 | F27: 37.95166605 | G27: 44.58312401 | H27: 48.42758087 | I27: 51.41155555 | J27: 54.04397035 | K27: 55.35764003 | L27: 55.51471 | M27: 54.46636549 | N27: 55.98868856 | O27: 58.9579934 | P27: 61.84874543 | Q27: =+Q9/Q36*100 -> 64.49286096 | R27: =+R9/R36*100 -> 66.40151993
A29: Notas: De 1953 a 1970 para ser elector se requerían 20 años de edad como mínimo, a partir de 1974 esa edad se redujo a 18 años.
A31: 1/ Se calcula entre dos elecciones, tomando como base la elección presidencial anterior.
A32: 2/ El área de Costa Rica es de 51 100 Km2 de acuerdo con la información del Instituto Geográfico Nacional.
A33: 3/ Proyecciones Distritales de Población de Costa Rica 1970-2030, Centro Centroamericano de Población-Universidad de Costa Rica (CCP) e Instituto Nacional de Estadística y Censos (INEC).
A36: POBLACIÓN | B36: 868741 | C36: 1052474 | D36: 1251397 | E36: 1515292 | F36: =C1.4!Y8 -> 1779329 | G36: =C1.4!Z8 -> 1962718 | H36: =C1.4!AA8 -> 2185645 | I36: =C1.4!AB8 -> 2453003 | J36: =C1.4!AC8 -> 2750490 | K36: =C1.4!AD8 -> 3056579 | L36: =C1.4!AE8 -> 3388918 | M36: =C1.4!AF8 -> 3756410 | N36: =C1.4!AG8 -> 4071985 | O36: =C1.4!AH8 -> 4326153 | P36: =C1.4!AI8 -> 4563538 | Q36: =C1.4!AJ8 -> 4773119 | R36: =C1.4!AK8 -> 5003393
A38: TERRITORIO | B38: 51100
A40: FUENTE: Tribunal Supremo de Elecciones.

Sheet G1.1
A3: GRÁFICO 1.1 COSTA RICA: ELECTORADO, VOTOS RECIBIDOS Y ABSTENCIONISMO
A4: ELECCIONES PRESIDENCIALES 1953 - 2018
A35: FUENTE: Cuadro 1.1.

Sheet C1.2
A2: CUADRO 1.2 COSTA RICA: PORCENTAJE DE ABSTENCIONISMO, SEGÚN PROVINCIA, POR AÑO ELECTORAL
A3: ELECCIONES PRESIDENCIALES 1953 - 2018
A5: PROVINCIA | B5: AÑO ELECTORAL
B6: 1953 | C6: 1958 | D6: 1962 | E6: 1966 | F6: 1970 | G6: 1974 | H6: 1978 | I6: 1982 | J6: 1986 | K6: 1990 | L6: 1994 | M6: 1998 | N6: 2002 | O6: 2006 | P6: 2010 | Q6: 2014 | R6: 2018
A8: COSTA RICA | B8: 32.83052623 | C8: 35.2997218 | D8: 19.1276499 | E8: 18.59574092 | F8: 16.66244623 | G8: 20.07917343 | H8: 18.75837896 | I8: 21.36565152 | J8: 18.17549449 | K8: 18.18646021 | L8: 18.88906252 | M8: 30.01334324 | N8: 31.16137853 | O8: 34.79026414 | P8: =C1.1!P23 -> 30.88208253 | Q8: 31.80636457 | R8: 34.3
A10: SAN JOSÉ | B10: 29.4 | C10: 34.6 | D10: 17.6 | E10: 18.2 | F10: 16.2 | G10: 19.6 | H10: 18.7 | I10: 20.9 | J10: 18.2 | K10: 18.5 | L10: 20 | M10: 30.8 | N10: 30.7 | O10: 33.59225726 | P10: 30.14282214 | Q10: 29.84682911 | R10: 31.6
A11: ALAJUELA | B11: 31.6 | C11: 31.9 | D11: 16 | E11: 14.9 | F11: 14 | G11: 17.8 | H11: 15.2 | I11: 18.7 | J11: 15.3 | K11: 15.1 | L11: 15.5 | M11: 27.1 | N11: 27.8 | O11: 32.00220662 | P11: 28.47362246 | Q11: 29.38044271 | R11: 32.1
A12: CARTAGO | B12: 30.3 | C12: 32.9 | D12: 15 | E12: 17.2 | F12: 14 | G12: 17.4 | H12: 17.6 | I12: 18.6 | J12: 15.3 | K12: 15 | L12: 16.3 | M12: 25.5 | N12: 27.7 | O12: 30.01890282 | P12: 25.87641659 | Q12: 26.51582705 | R12: 28.2
A13: HEREDIA | B13: 25.7 | C13: 29.7 | D13: 14.4 | E13: 14.2 | F13: 13.3 | G13: 18.4 | H13: 15.7 | I13: 18.9 | J13: 15.1 | K13: 14.8 | L13: 15.9 | M13: 28 | N13: 28.3 | O13: 30.20980272 | P13: 26.86792751 | Q13: 27.02793409 | R13: 28.4
A14: GUANACASTE | B14: 36.1 | C14: 34.5 | D14: 22.3 | E14: 17.5 | F14: 16.3 | G14: 18.3 | H14: 16.2 | I14: 19.4 | J14: 16.4 | K14: 16.5 | L14: 15.8 | M14: 26.1 | N14: 30.2 | O14: 37.89154212 | P14: 33.77736063 | Q14: 36.78593338 | R14: 40.6
A15: PUNTARENAS | B15: 51 | C15: 49.9 | D15: 33.5 | E15: 28 | F15: 23.2 | G15: 26.1 | H15: 24.2 | I15: 27.9 | J15: 24 | K15: 23.5 | L15: 22.8 | M15: 34.7 | N15: 39 | O15: 44.97756046 | P15: 40.4258928 | Q15: 41.68401484 | R15: 44.5
A16: LIMÓN | B16: 37.5 | C16: 38.3 | D16: 25.5 | E16: 29.4 | F16: 28.4 | G16: 30.3 | H16: 30.2 | I16: 32.4 | J16: 27.9 | K16: 28 | L16: 30.6 | M16: 39.9 | N16: 41.6 | O16: 45.0420763 | P16: 38.55252356 | Q16: 41.14487434 | R16: 42.9
A17: EXTRANJERO | B17: NA | C17: NA | D17: NA | E17: NA | F17: NA | G17: NA | H17: NA | I17: NA | J17: NA | K17: NA | L17: NA | M17: NA | N17: NA | O17: NA | P17: NA | Q17: 78.101786 | R17: 86.1
A20: NA: No Aplica
A22: FUENTE: Tribunal Supremo de Elecciones.

Sheet G1.2
A3: GRÁFICO 1.2 COSTA RICA: PORCENTAJE DE ABSTENCIONISMO, POR AÑO ELECTORAL
A4: ELECCIONES PRESIDENCIALES 1953 - 2018
A33: FUENTE: Cuadro 1.2

Sheet M1.1
A2: MAPA 1.1 COSTA RICA: PARTICIPACIÓN RELATIVA PARA PRESIDENCIA Y VICEPRESIDENCIAS DE LA REPÚBLICA, SEGÚN DISTRITO ADMINISTRATIVO ELECCIONES 4 DE FEBRERO 2018
A56: Nota: Mapa elaborado con fines ilustrativos por el SIGE-DGRE a partir de coberturas digitales del TSE e IGN. Datum WGS 84, sistema de proyección de coordenadas CRTM05, setiembre de 2014
A58: FUENTE: Tribunal Supremo de Elecciones.

Sheet M1.2
A2: MAPA1.2 COSTA RICA: ABSTENCIONISMO RELATIVO PARA PRESIDENCIA Y VICEPRESIDENCIAS DE LA REPÚBLICA, SEGÚN DISTRITO ADMINISTRATIVO ELECCIONES 4 DE FEBRERO 2018
A52: Nota: Mapa elaborado con fines ilustrativos por el SIGE-DGRE a partir de coberturas digitales del TSE e IGN. Datum WGS 84, sistema de proyección de coordenadas CRTM05, setiembre de 2014
A54: FUENTE: Tribunal Supremo de Elecciones.

Sheet C1.3
A2: CUADRO 1.3 COSTA RICA: DENSIDAD DEL ELECTORADO POR KM2, SEGÚN PROVINCIA, POR AÑO ELECTORAL
A3: ELECCIONES PRESIDENCIALES 1953 - 2018
A5: PROVINCIA | B5: AÑO ELECTORAL
B6: 1953 | C6: 1958 | D6: 1962 | E6: 1966 | F6: 1970 | G6: 1974 | H6: 1978 | I6: 1982 | J6: 1986 | K6: 1990 | L6: 1994 | M6: 1998 | N6: 2002 | O6: 2006 | P6: 2010 | Q6: 2014 | R6: 2018
A8: COSTA RICA | B8: =+B32/B20 -> 5.753737769 | C8: =+C32/C20 -> 6.942837573 | D8: 9.471232877 | E8: 10.85375734 | F8: 13.21497065 | G8: 17.12409002 | H8: 20.71340509 | I8: 24.67958904 | J8: 29.08951076 | K8: 33.11252446 | L8: 36.8169863 | M8: 40.03874755 | N8: 44.61547945 | O8: =+O32/O20 -> 49.91414873 | P8: =+P32/P20 -> 55.23465753 | Q8: =+Q32/Q20 -> 60.24111546 | R8: =+R32/R20 -> 65.01622309
A10: SAN JOSÉ | B10: =+B34/B22 -> 23.26828974 | C10: =+C34/C22 -> 28.66308222 | D10: 39.12603959 | E10: 44.50995791 | F10: 54.776979 | G10: 71.50063433 | H10: 86.67089551 | I10: 102.7308242 | J10: 118.9391651 | K10: =+K34/K22 -> 134.0985521 | L10: 147.7526732 | M10: 157.8877948 | N10: 172.3399585 | O10: =+O34/O22 -> 188.6518053 | P10: 203.0199964 | Q10: =+Q34/Q22 -> 214.0721722 | R10: =+R34/R22 -> 224.4868
A11: ALAJUELA | B11: =+B35/B23 -> 5.671004855 | C11: 6.580763779 | D11: 8.829591095 | E11: 10.1018393 | F11: 12.04731115 | G11: 15.33226134 | H11: 18.4675835 | I11: 22.23062599 | J11: 26.41026981 | K11: 30.37848718 | L11: 33.7742236 | M11: =+M35/M23 -> 37.22642923 | N11: =+N35/N23 -> 42.07396749 | O11: =+O35/O23 -> 47.74476737 | P11: =+P35/P23 -> 53.72414945 | Q11: 59.18434276 | R11: =+R35/R23 -> 64.66698027
A12: CARTAGO | B12: 11.19446214 | C12: 12.99561234 | D12: 18.13631519 | E12: 20.46200079 | F12: 24.14911015 | G12: 29.99612759 | H12: 35.92123328 | I12: 42.80195989 | J12: 51.67489687 | K12: 59.83639872 | L12: 67.62538124 | M12: 74.23823956 | N12: 83.73428234 | O12: 94.47205625 | P12: 105.2213514 | Q12: 115.2073659 | R12: =+R36/R24 -> 124.1427095
A13: HEREDIA | B13: 7.39824914 | C13: 8.973345678 | D13: 12.71706976 | E13: 14.79499281 | F13: 17.65425408 | G13: 24.24594841 | H13: 30.86963395 | I13: 38.16325302 | J13: 45.96308591 | K13: 53.14680577 | L13: 61.43027046 | M13: 69.99111774 | N13: 80.95506929 | O13: 92.58368524 | P13: 104.8348125 | Q13: 115.5074558 | R13: 125.2771944
A14: GUANACASTE | B14: 2.642024079 | C14: 3.185181314 | D14: 4.323365918 | E14: 5.161078465 | F14: 6.171855817 | G14: 7.553415885 | H14: 8.722367566 | I14: 9.944076894 | J14: 11.28688228 | K14: 12.22606701 | L14: 12.98498823 | M14: 13.97239444 | N14: 15.291237 | O14: 17.2206877 | P14: 19.64724363 | Q14: 21.86119118 | R14: 23.72979801
A15: PUNTARENAS | B15: 2.700145308 | C15: 3.265223879 | D15: 4.300402372 | E15: 4.919450118 | F15: 6.114583306 | G15: 7.855266744 | H15: 9.471501524 | I15: 11.0412234 | J15: 12.92499616 | K15: 14.47110652 | L15: 15.46287888 | M15: 16.46042098 | N15: 18.3165878 | O15: 20.55009502 | P15: =+P39/P27 -> 23.02637477 | Q15: 25.4981275 | R15: 27.57594075
A16: LIMÓN | B16: 1.2282718 | C16: 1.59927823 | D16: 2.261626464 | E16: 2.614240378 | F16: 3.469437951 | G16: 5.12922647 | H16: 6.360327887 | I16: 8.020007575 | J16: 10.28228703 | K16: 12.46381354 | L16: 14.9824999 | M16: 16.71912343 | N16: =+N40/N28 -> 19.08239847 | O16: 21.83028388 | P16: 24.39217632 | Q16: 27.13004924 | R16: 29.67104604
A19: FUENTE: Tribunal Supremo de Elecciones.
A20: TOTAL | B20: =SUM(B22:B28) -> 51100 | C20: =SUM(C22:C28) -> 51100 | D20: 51100 | E20: 51100 | F20: 51100 | G20: 51100 | H20: 51100 | I20: 51100 | J20: 51100 | K20: 51100 | L20: 51100 | M20: 51100 | N20: 51100 | O20: =SUM(O22:O28) -> 51100 | P20: =SUM(P22:P28) -> 51100 | Q20: =SUM(Q22:Q28) -> 51100 | R20: =SUM(R22:R28) -> 51100
A22: SAN JOSÉ | B22: 4965.9 | C22: 4965.9 | D22: 4965.9 | E22: 4965.9 | F22: 4965.9 | G22: 4965.9 | H22: 4965.9 | I22: 4965.9 | J22: 4965.9 | K22: 4965.9 | L22: 4965.9 | M22: 4965.9 | N22: 4965.9 | O22: 4965.9 | P22: 4965.9 | Q22: 4965.9 | R22: 4965.9
A23: ALAJUELA | B23: 9757.53 | C23: 9757.53 | D23: 9757.53 | E23: 9757.53 | F23: 9757.53 | G23: 9757.53 | H23: 9757.53 | I23: 9757.53 | J23: 9757.53 | K23: 9757.53 | L23: 9757.53 | M23: 9757.53 | N23: 9757.53 | O23: 9757.53 | P23: 9757.53 | Q23: 9757.53 | R23: 9757.53
A24: CARTAGO | B24: 3124.67 | C24: 3124.67 | D24: 3124.67 | E24: 3124.67 | F24: 3124.67 | G24: 3124.67 | H24: 3124.67 | I24: 3124.67 | J24: 3124.67 | K24: 3124.67 | L24: 3124.67 | M24: 3124.67 | N24: 3124.67 | O24: 3124.67 | P24: 3124.67 | Q24: 3124.67 | R24: 3124.67
A25: HEREDIA | B25: 2656.98 | C25: 2656.98 | D25: 2656.98 | E25: 2656.98 | F25: 2656.98 | G25: 2656.98 | H25: 2656.98 | I25: 2656.98 | J25: 2656.98 | K25: 2656.98 | L25: 2656.98 | M25: 2656.98 | N25: 2656.98 | O25: 2656.98 | P25: 2656.98 | Q25: 2656.98 | R25: 2656.98
A26: GUANACASTE | B26: 10140.71 | C26: 10140.71 | D26: 10140.71 | E26: 10140.71 | F26: 10140.71 | G26: 10140.71 | H26: 10140.71 | I26: 10140.71 | J26: 10140.71 | K26: 10140.71 | L26: 10140.71 | M26: 10140.71 | N26: 10140.71 | O26: 10140.71 | P26: 10140.71 | Q26: 10140.71 | R26: 10140.71
A27: PUNTARENAS | B27: 11265.69 | C27: 11265.69 | D27: 11265.69 | E27: 11265.69 | F27: 11265.69 | G27: 11265.69 | H27: 11265.69 | I27: 11265.69 | J27: 11265.69 | K27: 11265.69 | L27: 11265.69 | M27: 11265.69 | N27: 11265.69 | O27: 11265.69 | P27: 11265.69 | Q27: 11265.69 | R27: 11265.69
A28: LIMÓN | B28: 9188.52 | C28: 9188.52 | D28: 9188.52 | E28: 9188.52 | F28: 9188.52 | G28: 9188.52 | H28: 9188.52 | I28: 9188.52 | J28: 9188.52 | K28: 9188.52 | L28: 9188.52 | M28: 9188.52 | N28: 9188.52 | O28: 9188.52 | P28: 9188.52 | Q28: 9188.52 | R28: 9188.52
A32: COSTA RICA | B32: =SUM(B34:B41) -> 294016 | C32: =SUM(C34:C41) -> 354779 | D32: 483980 | E32: 554627 | F32: 675285 | G32: 875041 | H32: 1058455 | I32: 1261127 | J32: 1486474 | K32: 1692050 | L32: 1881348 | M32: 2045980 | N32: 2279851 | O32: 2550613 | P32: 2822491 | Q32: 3078321 | R32: 3322329
A34: SAN JOSÉ | B34: 115548 | C34: 142338 | D34: 194296 | E34: 221032 | F34: 272017 | G34: 355065 | H34: 430399 | I34: 510151 | J34: 590640 | K34: 665920 | L34: 733725 | M34: 784055 | N34: 855823 | O34: 936826 | P34: 1008177 | Q34: 1063061 | R34: 1114779
A35: ALAJUELA | B35: 55335 | C35: 64212 | D35: 86155 | E35: 98569 | F35: 117552 | G35: 149605 | H35: 180198 | I35: 216916 | J35: 257699 | K35: 296419 | L35: 329553 | M35: 363238 | N35: 410538 | O35: 465871 | P35: 524215 | Q35: 577493 | R35: 630990
A36: CARTAGO | B36: 34979 | C36: 40607 | D36: 56670 | E36: 63937 | F36: 75458 | G36: 93728 | H36: 112242 | I36: 133742 | J36: 161467 | K36: 186969 | L36: 211307 | M36: 231970 | N36: 261642 | O36: 295194 | P36: 328782 | Q36: 359985 | R36: 387905
A37: HEREDIA | B37: 19657 | C37: 23842 | D37: 33789 | E37: 39310 | F37: 46907 | G37: 64421 | H37: 82020 | I37: 101399 | J37: 122123 | K37: 141210 | L37: 163219 | M37: 185965 | N37: 215096 | O37: 245993 | P37: 278544 | Q37: 306901 | R37: 332859
A38: GUANACASTE | B38: 26792 | C38: 32300 | D38: 43842 | E38: 52337 | F38: 62587 | G38: 76597 | H38: 88451 | I38: 100840 | J38: 114457 | K38: 123981 | L38: 131677 | M38: 141690 | N38: 155064 | O38: 174630 | P38: 199237 | Q38: 221688 | R38: 240637
A39: PUNTARENAS | B39: 30419 | C39: 36785 | D39: 48447 | E39: 55421 | F39: 68885 | G39: 88495 | H39: 106703 | I39: 124387 | J39: 145609 | K39: 163027 | L39: 174200 | M39: 185438 | N39: 206349 | O39: 231511 | P39: 259408 | Q39: 287254 | R39: 310662
A40: LIMÓN | B40: 11286 | C40: 14695 | D40: 20781 | E40: 24021 | F40: 31879 | G40: 47130 | H40: 58442 | I40: 73692 | J40: 94479 | K40: 114524 | L40: 137667 | M40: 153624 | N40: 175339 | O40: 200588 | P40: 224128 | Q40: 249285 | R40: 272633
A41: EXTRANJERO | B41: - | C41: - | D41: - | E41: - | F41: - | G41: - | H41: - | I41: - | J41: - | K41: - | L41: - | M41: - | N41: - | O41: - | P41: - | Q41: 12654 | R41: 31864

Sheet G1.3
A4: GRÁFICO 1.3 COSTA RICA: DENSIDAD DEL ELECTORADO POR KM2, SEGÚN AÑO ELECTORAL
A5: ELECCIONES PRESIDENCIALES 1953-2018
A36: FUENTE: Cuadro 1.3

Sheet C1.4
A2: CUADRO 1.4 COSTA RICA: PORCENTAJE DEL ELECTORADO INSCRITO CON RESPECTO A LA POBLACIÓN DEL PAÍS1/
A3: SEGÚN PROVINCIA, POR AÑO ELECTORAL, ELECCIONES PRESIDENCIALES 1953 - 2018
A5: PROVINCIA | B5: AÑO ELECTORAL
B6: 1953 | C6: 1958 | D6: 1962 | E6: 1966 | F6: 1970 | G6: 1974 | H6: 1978 | I6: 1982 | J6: 1986 | K6: 1990 | L6: 1994 | M6: 1998 | N6: 2002 | O6: 2006 | P6: 2010 | Q6: 2014 | R6: 2018 | T6: POBLACIÓN | U6: 1953 | V6: 1958 | W6: 1962 | X6: 1966 | Y6: 1970 | Z6: 1974 | AA6: 1978 | AB6: 1982 | AC6: 1986 | AD6: 1990 | AE6: 1994 | AF6: 1998 | AG6: 2002 | AH6: 2006 | AI6: 2010 | AJ6: 2014 | AK6: 2018
A8: COSTA RICA | B8: =+U20/U8*100 -> 32.72921168 | C8: 32.25375058 | D8: 37.14839016 | E8: 35.38899842 | F8: 37.95166605 | G8: 44.58312401 | H8: 48.42758087 | I8: 51.41155555 | J8: 54.04397035 | K8: 55.35764003 | L8: 55.51471 | M8: 54.46636549 | N8: 55.98868856 | O8: 58.9579934 | P8: 61.84874543 | Q8: 64.49286096 | R8: 66.40092034 | U8: =SUM(U10:U16) -> 898329 | V8: 1099962 | W8: 1302829 | X8: 1567230 | Y8: 1779329 | Z8: 1962718 | AA8: 2185645 | AB8: 2453003 | AC8: 2750490 | AD8: 3056579 | AE8: 3388918 | AF8: 3756410 | AG8: 4071985 | AH8: 4326153 | AI8: 4563538 | AJ8: 4773119 | AK8: 5003393
A10: SAN JOSÉ | B10: =+U22/U10*100 -> 37.09287021 | C10: 37.95032314 | D10: 43.25802171 | E10: 39.20661556 | F10: 41.14450196 | G10: 48.69694376 | H10: 52.91019015 | I10: 56.10802547 | J10: 58.48743091 | K10: 59.98803698 | L10: 60.42429802 | M10: 58.91513584 | N10: =+AG22/AG10*100 -> 59.58865576 | O10: 61.16038291 | P10: =+AI22/AI10*100 -> 61.72706244 | Q10: =+AJ22/AJ10*100 -> 67.41529497 | R10: =+AK22/AK10*100 -> 68.17619733 | T10: SAN JOSÉ | U10: 311510 | V10: 375064 | W10: 449156 | X10: 563762 | Y10: 661126 | Z10: 729132 | AA10: 813452 | AB10: 909230 | AC10: 1009858 | AD10: 1110088 | AE10: 1214288 | AF10: 1330821 | AG10: 1436218 | AH10: 1531753 | AI10: 1633282 | AJ10: 1576884 | AK10: 1635144
A11: ALAJUELA | B11: 33.29322223 | C11: 31.17753307 | D11: 35.72480024 | E11: 34.86021467 | F11: 38.10808182 | G11: 43.75899428 | H11: 47.03078959 | I11: 50.10023928 | J11: 52.7047866 | K11: 54.0586035 | L11: 53.36510435 | M11: 51.94917751 | N11: 53.20668593 | O11: 56.24763055 | P11: 59.83690857 | Q11: =+AJ23/AJ11*100 -> 61.00662683 | R11: =+AK23/AK11*100 -> 62.91547556 | T11: ALAJUELA | U11: 166205 | V11: 205956 | W11: 241163 | X11: 282755 | Y11: 308470 | Z11: 341884 | AA11: 383149 | AB11: 432964 | AC11: 488948 | AD11: 548329 | AE11: 617544 | AF11: 699218 | AG11: 771591 | AH11: 828250 | AI11: 876073 | AJ11: 946607 | AK11: 1002917
A12: CARTAGO | B12: 30.97899249 | C12: 29.57322846 | D12: 35.46196928 | E12: 35.09782179 | F12: 39.42877447 | G12: 43.41671299 | H12: 46.14587659 | I12: 48.65008403 | J12: 52.18258264 | K12: 54.34781977 | L12: 55.32292016 | M12: 54.4947542 | N12: 56.65110599 | O12: 60.48003934 | P12: 64.37529248 | Q12: 69.65236218 | R12: =+AK24/AK12*100 -> 72.66928315 | T12: CARTAGO | U12: 112912 | V12: 137310 | W12: 159805 | X12: 182168 | Y12: 191378 | Z12: 215880 | AA12: 243233 | AB12: 274906 | AC12: 309427 | AD12: 344023 | AE12: 381952 | AF12: 425674 | AG12: 461848 | AH12: 488085 | AI12: 510727 | AJ12: 516831 | AK12: 533795
A13: HEREDIA | B13: 34.38401931 | C13: 35.00770869 | D13: 42.17667545 | E13: 40.20085085 | F13: 38.53997206 | G13: 45.23343093 | H13: 48.89418778 | I13: 51.40711899 | J13: 53.05773993 | K13: 53.12581122 | L13: 53.66257011 | M13: 53.77835101 | N13: 55.9879016 | O13: 58.85633621 | P13: 62.00103727 | Q13: 63.52032685 | R13: =+AK25/AK13*100 -> 64.98383356 | T13: HEREDIA | U13: 57169 | V13: 68105 | W13: 80113 | X13: 97784 | Y13: 121710 | Z13: 142419 | AA13: 167750 | AB13: 197247 | AC13: 230170 | AD13: 265803 | AE13: 304158 | AF13: 345799 | AG13: 384183 | AH13: 417955 | AI13: 449257 | AJ13: 483154 | AK13: 512172
A14: GUANACASTE | B14: 26.01670227 | C14: 25.12250136 | D14: 28.60535674 | E14: 30.48058891 | F14: 35.06412016 | G14: 41.71177451 | H14: 46.16777844 | I14: 49.71847236 | J14: 52.97193978 | K14: 53.94277709 | L14: 53.29757954 | M14: 53.44452994 | N14: 56.18403365 | O14: 62.49776321 | P14: 71.03227233 | Q14: 61.60241643 | R14: =+AK26/AK14*100 -> 62.85888183 | T14: GUANACASTE | U14: 102980 | V14: 128570 | W14: 153265 | X14: 171706 | Y14: 178493 | Z14: 183634 | AA14: 191586 | AB14: 202822 | AC14: 216071 | AD14: 229838 | AE14: 247060 | AF14: 265116 | AG14: 275993 | AH14: 279418 | AI14: 280488 | AJ14: 359869 | AK14: 382821
A15: PUNTARENAS | B15: 30.09815368 | C15: 28.54581998 | D15: 31.39792612 | E15: 29.21322847 | F15: 32.53051876 | G15: 38.93090144 | H15: 43.40360968 | I15: 45.9781544 | J15: 48.67652172 | K15: 50.07433117 | L15: 50.0410785 | M15: 50.92128315 | N15: 55.79126099 | O15: 62.72039142 | P15: 70.33324567 | Q15: 62.22049901 | R15: =+AK27/AK15*100 -> 63.82202427 | T15: PUNTARENAS | U15: 101066 | V15: 128863 | W15: 154300 | X15: 189712 | Y15: 211755 | Z15: 227313 | AA15: 245839 | AB15: 270535 | AC15: 299136 | AD15: 325570 | AE15: 348114 | AF15: 364166 | AG15: 369859 | AH15: 369116 | AI15: 368827 | AJ15: 461671 | AK15: 486763
A16: LIMÓN | B16: =+U28/U16*100 -> 24.27775507 | C16: 26.19709773 | D16: 31.95749458 | E16: 30.27488247 | F16: 29.96231097 | G16: 38.4872934 | H16: 41.55550499 | I16: 44.58103195 | J16: 47.98811459 | K16: 49.16712461 | L16: 49.91515653 | M16: 47.17949978 | N16: 47.09704453 | O16: 48.73656384 | P16: 50.37897519 | Q16: 58.23014555 | R16: 60.61461022 | T16: LIMÓN | U16: 46487 | V16: 56094 | W16: 65027 | X16: 79343 | Y16: 106397 | Z16: 122456 | AA16: 140636 | AB16: 165299 | AC16: 196880 | AD16: 232928 | AE16: 275802 | AF16: 325616 | AG16: 372293 | AH16: 411576 | AI16: 444884 | AJ16: 428103 | AK16: 449781
A19: 1/ Proyecciones Distritales de Población de Costa Rica 1970-2030, Centro Centroamericano de Población-Universidad de Costa Rica (CCP) e Instituto Nacional de Estadística y Censos (INEC).
T20: ELECTORES | U20: =SUM(U22:U28) -> 294016 | V20: =SUM(V22:V28) -> 354779 | W20: 483980 | X20: 554627 | Y20: 675285 | Z20: 875041 | AA20: 1058455 | AB20: 1261127 | AC20: 1486474 | AD20: 1692050 | AE20: 1881348 | AF20: 2045980 | AG20: 2279851 | AH20: =SUM(AH22:AH28) -> 2550613 | AI20: =SUM(AI22:AI28) -> 2822491 | AJ20: =SUM(AJ22:AJ29) -> 3078321 | AK20: =SUM(AK22:AK29) -> 3322299
A21: FUENTE: Tribunal Supremo de Elecciones.
T22: SAN JOSÉ | U22: 115548 | V22: 142338 | W22: 194296 | X22: 221032 | Y22: 272017 | Z22: 355065 | AA22: 430399 | AB22: 510151 | AC22: 590640 | AD22: 665920 | AE22: 733725 | AF22: 784055 | AG22: 855823 | AH22: 936826 | AI22: 1008177 | AJ22: =+C1.3!Q34 -> 1063061 | AK22: 1114779
T23: ALAJUELA | U23: 55335 | V23: 64212 | W23: 86155 | X23: 98569 | Y23: 117552 | Z23: 149605 | AA23: 180198 | AB23: 216916 | AC23: 257699 | AD23: 296419 | AE23: 329553 | AF23: 363238 | AG23: 410538 | AH23: 465871 | AI23: 524215 | AJ23: =+C1.3!Q35 -> 577493 | AK23: 630990
T24: CARTAGO | U24: 34979 | V24: 40607 | W24: 56670 | X24: 63937 | Y24: 75458 | Z24: 93728 | AA24: 112242 | AB24: 133742 | AC24: 161467 | AD24: 186969 | AE24: 211307 | AF24: 231970 | AG24: 261642 | AH24: 295194 | AI24: 328782 | AJ24: =+C1.3!Q36 -> 359985 | AK24: 387905
T25: HEREDIA | U25: 19657 | V25: 23842 | W25: 33789 | X25: 39310 | Y25: 46907 | Z25: 64421 | AA25: 82020 | AB25: 101399 | AC25: 122123 | AD25: 141210 | AE25: 163219 | AF25: 185965 | AG25: 215096 | AH25: 245993 | AI25: 278544 | AJ25: =+C1.3!Q37 -> 306901 | AK25: 332829
T26: GUANACASTE | U26: 26792 | V26: 32300 | W26: 43842 | X26: 52337 | Y26: 62587 | Z26: 76597 | AA26: 88451 | AB26: 100840 | AC26: 114457 | AD26: 123981 | AE26: 131677 | AF26: 141690 | AG26: 155064 | AH26: 174630 | AI26: 199237 | AJ26: =+C1.3!Q38 -> 221688 | AK26: 240637
T27: PUNTARENAS | U27: 30419 | V27: 36785 | W27: 48447 | X27: 55421 | Y27: 68885 | Z27: 88495 | AA27: 106703 | AB27: 124387 | AC27: 145609 | AD27: 163027 | AE27: 174200 | AF27: 185438 | AG27: 206349 | AH27: 231511 | AI27: 259408 | AJ27: =+C1.3!Q39 -> 287254 | AK27: 310662
T28: LIMÓN | U28: 11286 | V28: 14695 | W28: 20781 | X28: 24021 | Y28: 31879 | Z28: 47130 | AA28: 58442 | AB28: 73692 | AC28: 94479 | AD28: 114524 | AE28: 137667 | AF28: 153624 | AG28: 175339 | AH28: 200588 | AI28: 224128 | AJ28: =+C1.3!Q40 -> 249285 | AK28: 272633
AJ29: =+C1.3!Q41 -> 12654 | AK29: 31864
AI31: 4533894

Sheet G1.4
A4: GRÁFICO 1.4 COSTA RICA: PORCENTAJE DEL ELECTORADO INSCRITO CON RESPECTO A LA POBLACIÓN TOTAL
A5: POR AÑO ELECTORAL, ELECCIONES PRESIDENCIALES 1953-2018
A35: FUENTE: Cuadro 1.4

Sheet C1.5
A2: CUADRO 1.5 COSTA RICA: VOTOS VÁLIDOS, SEGÚN PARTIDO1/, POR AÑO ELECTORAL
A3: ELECCIONES PRESIDENCIALES 1953 - 2018
A5: PARTIDO | B5: AÑO ELECTORAL
B6: 1953 | C6: 1958 | D6: 1962 | E6: 1966 | F6: 1970 | G6: 1974 | H6: 1978 | I6: 1982 | J6: 1986 | K6: 1990 | L6: 1994 | M6: 1998 | N6: 2002 | O6: 2006 | P6: 2010 | Q6: 2014 | R6: 2018
A8: TOTAL DE VOTOS VÁLIDOS | B8: =SUM(B10:B58) -> 190768 | C8: =SUM(C10:C58) -> 221549 | D8: 431863 | E8: 441400 | F8: 540045 | G8: 678157 | H8: 831141 | I8: 966576 | J8: 1185222 | K8: 1349014 | L8: 1490097 | M8: 1388698 | N8: 1529845 | O8: 1623992 | P8: 1911333 | Q8: =SUM(Q10:Q58) -> 2055472 | R8: =SUM(R10:R58) -> 2154697
A10: =+C3.17!A17 -> ACCESIBILIDAD SIN EXCLUSIÓN | B10: 0 | C10: 0 | D10: 0 | E10: 0 | F10: 0 | G10: 0 | H10: 0 | I10: 0 | J10: 0 | K10: 0 | L10: 0 | M10: 0 | N10: 0 | O10: 0 | P10: 36104 | Q10: 10339 | R10: 7539
A11: ACCIÓN CIUDADANA | B11: 0 | C11: 0 | D11: 0 | E11: 0 | F11: 0 | G11: 0 | H11: 0 | I11: 0 | J11: 0 | K11: 0 | L11: 0 | M11: 0 | N11: 400681 | O11: 646382 | P11: 478877 | Q11: 629866 | R11: 466129
A12: ACCIÓN DEMÓCRATA POPULAR | B12: 0 | C12: 0 | D12: 51740 | E12: 0 | F12: 0 | G12: 0 | H12: 0 | I12: 0 | J12: 0 | K12: 0 | L12: 0 | M12: 0 | N12: 0 | O12: 0 | P12: 0 | Q12: 0 | R12: -
A13: ACCIÓN SOCIALISTA | B13: 0 | C13: 0 | D13: 0 | E13: 0 | F13: 7221 | G13: 16081 | H13: 0 | I13: 0 | J13: 0 | K13: 0 | L13: 0 | M13: 0 | N13: 0 | O13: 0 | P13: 0 | Q13: 0 | R13: -
A14: ALIANZA DEMOCRÁTICA CRISTIANA | B14: 0 | C14: 0 | D14: 0 | E14: 0 | F14: 0 | G14: 0 | H14: 0 | I14: 0 | J14: 0 | K14: 0 | L14: 0 | M14: 0 | N14: 0 | O14: 0 | P14: 0 | Q14: 0 | R14: 12638
A15: ALIANZA DEMOCRÁTICA NACIONALISTA | B15: 0 | C15: 0 | D15: 0 | E15: 0 | F15: 0 | G15: 0 | H15: 0 | I15: 0 | J15: 0 | K15: 0 | L15: 0 | M15: 0 | N15: 0 | O15: 3670 | P15: 0 | Q15: 0 | R15: -
A16: ALIANZA NACIONAL CRISTIANA | B16: 0 | C16: 0 | D16: 0 | E16: 0 | F16: 0 | G16: 0 | H16: 0 | I16: 0 | J16: 5647 | K16: 4209 | L16: 4980 | M16: 3545 | N16: 1271 | O16: 0 | P16: 0 | Q16: 0 | R16: -
A17: =C3.16!A20 -> ALIANZA PATRIÓTICA | B17: 0 | C17: 0 | D17: 0 | E17: 0 | F17: 0 | G17: 0 | H17: 0 | I17: 0 | J17: 0 | K17: 0 | L17: 0 | M17: 0 | N17: 0 | O17: 0 | P17: 3158 | Q17: 0 | R17: -
A18: ALIANZA POPULAR | B18: 0 | C18: 0 | D18: 0 | E18: 0 | F18: 0 | G18: 0 | H18: 0 | I18: 0 | J18: 9099 | K18: 0 | L18: 0 | M18: 0 | N18: 0 | O18: 0 | P18: 0 | Q18: 0 | R18: -
A19: =+C3.17!A19 -> AVANCE NACIONAL | B19: 0 | C19: 0 | D19: 0 | E19: 0 | F19: 0 | G19: 0 | H19: 0 | I19: 0 | J19: 0 | K19: 0 | L19: 0 | M19: 0 | N19: 0 | O19: 0 | P19: 0 | Q19: 4388 | R19: -
A20: CAMBIO 2000 | B20: 0 | C20: 0 | D20: 0 | E20: 0 | F20: 0 | G20: 0 | H20: 0 | I20: 0 | J20: 0 | K20: 0 | L20: 0 | M20: 0 | N20: 3970 | O20: 0 | P20: 0 | Q20: 0 | R20: -
A21: COALICIÓN IZQUIERDA UNIDA | B21: 0 | C21: 0 | D21: 0 | E21: 0 | F21: 0 | G21: 0 | H21: 0 | I21: 0 | J21: 0 | K21: 0 | L21: 0 | M21: 0 | N21: 0 | O21: 2291 | P21: 0 | Q21: 0 | R21: -
A22: DEL PROGRESO | B22: 0 | C22: 0 | D22: 0 | E22: 0 | F22: 0 | G22: 0 | H22: 0 | I22: 0 | J22: 0 | K22: 2547 | L22: 0 | M22: 0 | N22: 0 | O22: 0 | P22: 0 | Q22: 0 | R22: -
A23: DEMÓCRATA | B23: 67324 | C23: 0 | D23: 0 | E23: 0 | F23: 0 | G23: 18832 | H23: 1613 | I23: 1747 | J23: 0 | K23: 0 | L23: 0 | M23: 12952 | N23: 0 | O23: 0 | P23: 0 | Q23: 0 | R23: -
A24: DEMÓCRATA CRISTIANO | B24: 0 | C24: 0 | D24: 0 | E24: 0 | F24: 5015 | G24: 3461 | H24: 0 | I24: 0 | J24: 0 | K24: 0 | L24: 0 | M24: 0 | N24: 0 | O24: 0 | P24: 0 | Q24: 0 | R24: -
A25: =+C3.17!A20 -> DE LOS TRABAJADORES | B25: 0 | C25: 0 | D25: 0 | E25: 0 | F25: 0 | G25: 0 | H25: 0 | I25: 0 | J25: 0 | K25: 0 | L25: 0 | M25: 0 | N25: 0 | O25: 0 | P25: 0 | Q25: 4897 | R25: 4351
A26: FRENTE AMPLIO | B26: 0 | C26: 0 | D26: 0 | E26: 0 | F26: 0 | G26: 0 | H26: 0 | I26: 0 | J26: 0 | K26: 0 | L26: 0 | M26: 0 | N26: 0 | O26: 0 | P26: 6782 | Q26: 354479 | R26: 16862
A27: FRENTE NACIONAL | B27: 0 | C27: 0 | D27: 0 | E27: 0 | F27: 9554 | G27: 0 | H27: 0 | I27: 0 | J27: 0 | K27: 0 | L27: 0 | M27: 0 | N27: 0 | O27: 0 | P27: 0 | Q27: 0 | R27: -
A28: FUERZA DEMOCRÁTICA | B28: 0 | C28: 0 | D28: 0 | E28: 0 | F28: 0 | G28: 0 | H28: 0 | I28: 0 | J28: 0 | K28: 0 | L28: 28274 | M28: 41710 | N28: 4121 | O28: 3020 | P28: 0 | Q28: 0 | R28: -
A29: INDEPENDIENTE | B29: 0 | C29: 23910 | D29: 0 | E29: 0 | F29: 0 | G29: 0 | H29: 3822 | I29: 1955 | J29: 1129 | K29: 746 | L29: 1600 | M29: 1377 | N29: 0 | O29: 0 | P29: 0 | Q29: 0 | R29: -
A30: INDEPENDIENTE OBRERO | B30: 0 | C30: 0 | D30: 0 | E30: 0 | F30: 0 | G30: 0 | H30: 0 | I30: 0 | J30: 0 | K30: 0 | L30: 0 | M30: 0 | N30: 801 | O30: 0 | P30: 0 | Q30: 0 | R30: -
A31: INTEGRACIÓN NACIONAL | B31: 0 | C31: 0 | D31: 0 | E31: 0 | F31: 0 | G31: 0 | H31: 0 | I31: 0 | J31: 0 | K31: 0 | L31: 0 | M31: 19934 | N31: 6235 | O31: 5136 | P31: 2049 | Q31: 3042 | R31: 205602
A32: LIBERACIÓN NACIONAL | B32: 123444 | C32: 94788 | D32: 192850 | E32: 218590 | F32: 295883 | G32: 294609 | H32: 364285 | I32: 568374 | J32: 620314 | K32: 636701 | L32: 739339 | M32: 618834 | N32: 475030 | O32: 664551 | P32: 896516 | Q32: 610634 | R32: 401505
A33: MOVIMIENTO LIBERTARIO | B33: 0 | C33: 0 | D33: 0 | E33: 0 | F33: 0 | G33: 0 | H33: 0 | I33: 0 | J33: 0 | K33: 0 | L33: 0 | M33: 5874 | N33: 25815 | O33: 137710 | P33: 399788 | Q33: 233064 | R33: 21890
A34: MOVIMIENTO NACIONAL | B34: 0 | C34: 0 | D34: 0 | E34: 0 | F34: 0 | G34: 0 | H34: 0 | I34: 37127 | J34: 0 | K34: 0 | L34: 0 | M34: 0 | N34: 0 | O34: 0 | P34: 0 | Q34: 0 | R34: -
A35: NACIONAL INDEPENDIENTE | B35: 0 | C35: 0 | D35: 0 | E35: 0 | F35: 0 | G35: 73788 | H35: 3323 | I35: 0 | J35: 0 | K35: 0 | L35: 2426 | M35: 4218 | N35: 0 | O35: 0 | P35: 0 | Q35: 0 | R35: -
A36: =+C3.17!A25 -> NUEVA GENERACIÓN | B36: 0 | C36: 0 | D36: 0 | E36: 0 | F36: 0 | G36: 0 | H36: 0 | I36: 0 | J36: 0 | K36: 0 | L36: 0 | M36: 0 | N36: 0 | O36: 0 | P36: 0 | Q36: 5882 | R36: 16329
A37: NUEVO PARTIDO DEMOCRÁTICO | B37: 0 | C37: 0 | D37: 0 | E37: 0 | F37: 0 | G37: 0 | H37: 0 | I37: 0 | J37: 0 | K37: 0 | L37: 0 | M37: 3025 | N37: 0 | O37: 0 | P37: 0 | Q37: 0 | R37: -
A38: ORGANIZACIÓN SOCIALISTA DE LOS TRABAJADORES | B38: 0 | C38: 0 | D38: 0 | E38: 0 | F38: 0 | G38: 0 | H38: 1868 | I38: 0 | J38: 0 | K38: 0 | L38: 0 | M38: 0 | N38: 0 | O38: 0 | P38: 0 | Q38: 0 | R38: -
A39: =+C3.17!A26 -> PATRIA NUEVA | B39: 0 | C39: 0 | D39: 0 | E39: 0 | F39: 0 | G39: 0 | H39: 0 | I39: 0 | J39: 0 | K39: 0 | L39: 0 | M39: 0 | N39: 0 | O39: 0 | P39: 0 | Q39: 30816 | R39: -
A40: PATRIA PRIMERO | B40: 0 | C40: 0 | D40: 0 | E40: 0 | F40: 0 | G40: 0 | H40: 0 | I40: 0 | J40: 0 | K40: 0 | L40: 0 | M40: 0 | N40: 0 | O40: 17594 | P40: 0 | Q40: 0 | R40: -
A41: PATRIÓTICO NACIONAL | B41: 0 | C41: 0 | D41: 0 | E41: 0 | F41: 0 | G41: 0 | H41: 0 | I41: 0 | J41: 0 | K41: 0 | L41: 0 | M41: 0 | N41: 1680 | O41: 0 | P41: 0 | Q41: 0 | R41: -
A42: PUEBLO UNIDO | B42: 0 | C42: 0 | D42: 0 | E42: 0 | F42: 0 | G42: 0 | H42: 22740 | I42: 32186 | J42: 6599 | K42: 9217 | L42: 0 | M42: 3075 | N42: 0 | O42: 0 | P42: 0 | Q42: 0 | R42: -
A43: RENOVACIÓN COSTARICENSE | B43: 0 | C43: 0 | D43: 0 | E43: 0 | F43: 0 | G43: 0 | H43: 0 | I43: 0 | J43: 0 | K43: 0 | L43: 0 | M43: 19313 | N43: 16404 | O43: 15539 | P43: 13945 | Q43: 16721 | R43: 12309
A44: RENOVACIÓN DEMOCRÁTICA | B44: 0 | C44: 0 | D44: 0 | E44: 0 | F44: 0 | G44: 61820 | H44: 0 | I44: 0 | J44: 0 | K44: 0 | L44: 0 | M44: 0 | N44: 0 | O44: 0 | P44: 0 | Q44: 0 | R44: -
A45: REPUBLICANO | B45: 0 | C45: 0 | D45: 135533 | E45: 0 | F45: 0 | G45: 0 | H45: 0 | I45: 0 | J45: 0 | K45: 0 | L45: 0 | M45: 0 | N45: 0 | O45: 0 | P45: 0 | Q45: 0 | R45: -
A46: REPUBLICANO SOCIAL CRSITIANO | B46: 0 | C46: 0 | D46: 0 | E46: 0 | F46: 0 | G46: 0 | H46: 0 | I46: 0 | J46: 0 | K46: 0 | L46: 0 | M46: 0 | N46: 0 | O46: 0 | P46: 0 | Q46: 0 | R46: 106444
A47: RESCATE NACIONAL | B47: 0 | C47: 0 | D47: 0 | E47: 0 | F47: 0 | G47: 0 | H47: 0 | I47: 0 | J47: 0 | K47: 0 | L47: 0 | M47: 2681 | N47: 905 | O47: 2430 | P47: 0 | Q47: 0 | R47: -
A48: RESTAURACIÓN NACIONAL | B48: 0 | C48: 0 | D48: 0 | E48: 0 | F48: 0 | G48: 0 | H48: 0 | I48: 0 | J48: 0 | K48: 0 | L48: 0 | M48: 0 | N48: 0 | O48: 0 | P48: 0 | Q48: 27691 | R48: 538504
A49: REVOLUCIONARIO DE LOS TRABAJADORES EN LUCHA | B49: 0 | C49: 0 | D49: 0 | E49: 0 | F49: 0 | G49: 0 | H49: 0 | I49: 0 | J49: 0 | K49: 1005 | L49: 0 | M49: 0 | N49: 0 | O49: 0 | P49: 0 | Q49: 0 | R49: -
A50: SOCIALISTA COSTARRICENSE | B50: 0 | C50: 0 | D50: 0 | E50: 0 | F50: 0 | G50: 3417 | H50: 0 | I50: 0 | J50: 0 | K50: 0 | L50: 0 | M50: 0 | N50: 0 | O50: 0 | P50: 0 | Q50: 0 | R50: -
A51: UNIDAD (COALICIÓN) | B51: 0 | C51: 0 | D51: 0 | E51: 0 | F51: 0 | G51: 0 | H51: 419824 | I51: 325187 | J51: 0 | K51: 0 | L51: 0 | M51: 0 | N51: 0 | O51: 0 | P51: 0 | Q51: 0 | R51: -
A52: UNIDAD SOCIAL CRISTIANA | B52: 0 | C52: 0 | D52: 0 | E52: 0 | F52: 0 | G52: 0 | H52: 0 | I52: 0 | J52: 542434 | K52: 694589 | L52: 711328 | M52: 652160 | N52: 590277 | O52: 57655 | P52: 74114 | Q52: 123653 | R52: 344595
A53: UNIFICACIÓN NACIONAL | B53: 0 | C53: 0 | D53: 0 | E53: 222810 | F53: 222372 | G53: 206149 | H53: 13666 | I53: 0 | J53: 0 | K53: 0 | L53: 0 | M53: 0 | N53: 0 | O53: 0 | P53: 0 | Q53: 0 | R53: -
A54: UNIÓN GENERAL | B54: 0 | C54: 0 | D54: 0 | E54: 0 | F54: 0 | G54: 0 | H54: 0 | I54: 0 | J54: 0 | K54: 0 | L54: 0 | M54: 0 | N54: 2655 | O54: 0 | P54: 0 | Q54: 0 | R54: -
A55: UNIÓN GENERALEÑA | B55: 0 | C55: 0 | D55: 0 | E55: 0 | F55: 0 | G55: 0 | H55: 0 | I55: 0 | J55: 0 | K55: 0 | L55: 2150 | M55: 0 | N55: 0 | O55: 0 | P55: 0 | Q55: 0 | R55: -
A56: UNIÓN NACIONAL | B56: 0 | C56: 102851 | D56: 51740 | E56: 0 | F56: 0 | G56: 0 | H56: 0 | I56: 0 | J56: 0 | K56: 0 | L56: 0 | M56: 0 | N56: 0 | O56: 26593 | P56: 0 | Q56: 0 | R56: -
A57: UNIÓN PARA EL CAMBIO | B57: 0 | C57: 0 | D57: 0 | E57: 0 | F57: 0 | G57: 0 | H57: 0 | I57: 0 | J57: 0 | K57: 0 | L57: 0 | M57: 0 | N57: 0 | O57: 39557 | P57: 0 | Q57: 0 | R57: -
A58: UNIÓN PATRIÓTICA | B58: 0 | C58: 0 | D58: 0 | E58: 0 | F58: 0 | G58: 0 | H58: 0 | I58: 0 | J58: 0 | K58: 0 | L58: 0 | M58: 0 | N58: 0 | O58: 1864 | P58: 0 | Q58: 0 | R58: -
A61: 1/ Ver detalle de coaliciones en los cuadros 3.4, 3.7, 3.8, 3.9, 3.10, 3.13 y 3.15.
A63: FUENTE: Tribunal Supremo de Elecciones.

Sheet C1.6
A2: CUADRO 1.6 COSTA RICA: PORCENTAJE DE VOTOS VÁLIDOS, SEGÚN PARTIDO, POR AÑO ELECTORAL
A3: ELECCIONES PRESIDENCIALES 1953 - 2018
A5: PARTIDO 1/ | B5: AÑO ELECTORAL
B6: 1953 | C6: 1958 | D6: 1962 | E6: 1966 | F6: 1970 | G6: 1974 | H6: 1978 | I6: 1982 | J6: 1986 | K6: 1990 | L6: 1994 | M6: 1998 | N6: 2002 | O6: 2006 | P6: 2010 | Q6: 2014 | R6: 2018
A8: TOTAL DE VOTOS VÁLIDOS | B8: =SUM(B10:B58) -> 100 | C8: =SUM(C10:C58) -> 100 | D8: 100 | E8: 100 | F8: 100 | G8: 100 | H8: 100 | I8: 100 | J8: 100 | K8: 100 | L8: 100 | M8: 100 | N8: 100 | O8: 100 | P8: 100 | Q8: 100 | R8: =SUM(R10:R58) -> 100
A10: =+C1.5!A10 -> ACCESIBILIDAD SIN EXCLUSIÓN | B10: =+C1.5!B10/C1.5!B$8*100 -> 0 | C10: =+C1.5!C10/C1.5!C$8*100 -> 0 | D10: =+C1.5!D10/C1.5!D$8*100 -> 0 | E10: =+C1.5!E10/C1.5!E$8*100 -> 0 | F10: =+C1.5!F10/C1.5!F$8*100 -> 0 | G10: =+C1.5!G10/C1.5!G$8*100 -> 0 | H10: =+C1.5!H10/C1.5!H$8*100 -> 0 | I10: =+C1.5!I10/C1.5!I$8*100 -> 0 | J10: =+C1.5!J10/C1.5!J$8*100 -> 0 | K10: =+C1.5!K10/C1.5!K$8*100 -> 0 | L10: =+C1.5!L10/C1.5!L$8*100 -> 0 | M10: =+C1.5!M10/C1.5!M$8*100 -> 0 | N10: =+C1.5!N10/C1.5!N$8*100 -> 0 | O10: =+C1.5!O10/C1.5!O$8*100 -> 0 | P10: =+C1.5!P10/C1.5!P$8*100 -> 1.888943476 | Q10: =+C1.5!Q10/C1.5!Q$8*100 -> 0.5029988246 | R10: =IFERROR(C1.5!R10/C1.5!R$8*100,0) -> 0.3498867822
A11: =+C1.5!A11 -> ACCIÓN CIUDADANA | B11: =+C1.5!B11/C1.5!B$8*100 -> 0 | C11: =+C1.5!C11/C1.5!C$8*100 -> 0 | D11: =+C1.5!D11/C1.5!D$8*100 -> 0 | E11: =+C1.5!E11/C1.5!E$8*100 -> 0 | F11: =+C1.5!F11/C1.5!F$8*100 -> 0 | G11: =+C1.5!G11/C1.5!G$8*100 -> 0 | H11: =+C1.5!H11/C1.5!H$8*100 -> 0 | I11: =+C1.5!I11/C1.5!I$8*100 -> 0 | J11: =+C1.5!J11/C1.5!J$8*100 -> 0 | K11: =+C1.5!K11/C1.5!K$8*100 -> 0 | L11: =+C1.5!L11/C1.5!L$8*100 -> 0 | M11: =+C1.5!M11/C1.5!M$8*100 -> 0 | N11: =+C1.5!N11/C1.5!N$8*100 -> 26.19095399 | O11: =+C1.5!O11/C1.5!O$8*100 -> 39.80204336 | P11: =+C1.5!P11/C1.5!P$8*100 -> 25.05460849 | Q11: =+C1.5!Q11/C1.5!Q$8*100 -> 30.64337534 | R11: =IFERROR(C1.5!R11/C1.5!R$8*100,0) -> 21.6331577
A12: =+C1.5!A12 -> ACCIÓN DEMÓCRATA POPULAR | B12: =+C1.5!B12/C1.5!B$8*100 -> 0 | C12: =+C1.5!C12/C1.5!C$8*100 -> 0 | D12: =+C1.5!D12/C1.5!D$8*100 -> 11.98065127 | E12: =+C1.5!E12/C1.5!E$8*100 -> 0 | F12: =+C1.5!F12/C1.5!F$8*100 -> 0 | G12: =+C1.5!G12/C1.5!G$8*100 -> 0 | H12: =+C1.5!H12/C1.5!H$8*100 -> 0 | I12: =+C1.5!I12/C1.5!I$8*100 -> 0 | J12: =+C1.5!J12/C1.5!J$8*100 -> 0 | K12: =+C1.5!K12/C1.5!K$8*100 -> 0 | L12: =+C1.5!L12/C1.5!L$8*100 -> 0 | M12: =+C1.5!M12/C1.5!M$8*100 -> 0 | N12: =+C1.5!N12/C1.5!N$8*100 -> 0 | O12: =+C1.5!O12/C1.5!O$8*100 -> 0 | P12: =+C1.5!P12/C1.5!P$8*100 -> 0 | Q12: =+C1.5!Q12/C1.5!Q$8*100 -> 0 | R12: =IFERROR(C1.5!R12/C1.5!R$8*100,0) -> 0
A13: =+C1.5!A13 -> ACCIÓN SOCIALISTA | B13: =+C1.5!B13/C1.5!B$8*100 -> 0 | C13: =+C1.5!C13/C1.5!C$8*100 -> 0 | D13: =+C1.5!D13/C1.5!D$8*100 -> 0 | E13: =+C1.5!E13/C1.5!E$8*100 -> 0 | F13: =+C1.5!F13/C1.5!F$8*100 -> 1.337110796 | G13: =+C1.5!G13/C1.5!G$8*100 -> 2.371279807 | H13: =+C1.5!H13/C1.5!H$8*100 -> 0 | I13: =+C1.5!I13/C1.5!I$8*100 -> 0 | J13: =+C1.5!J13/C1.5!J$8*100 -> 0 | K13: =+C1.5!K13/C1.5!K$8*100 -> 0 | L13: =+C1.5!L13/C1.5!L$8*100 -> 0 | M13: =+C1.5!M13/C1.5!M$8*100 -> 0 | N13: =+C1.5!N13/C1.5!N$8*100 -> 0 | O13: =+C1.5!O13/C1.5!O$8*100 -> 0 | P13: =+C1.5!P13/C1.5!P$8*100 -> 0 | Q13: =+C1.5!Q13/C1.5!Q$8*100 -> 0 | R13: =IFERROR(C1.5!R13/C1.5!R$8*100,0) -> 0
A14: =+C1.5!A14 -> ALIANZA DEMOCRÁTICA CRISTIANA | B14: =+C1.5!B14/C1.5!B$8*100 -> 0 | C14: =+C1.5!C14/C1.5!C$8*100 -> 0 | D14: =+C1.5!D14/C1.5!D$8*100 -> 0 | E14: =+C1.5!E14/C1.5!E$8*100 -> 0 | F14: =+C1.5!F14/C1.5!F$8*100 -> 0 | G14: =+C1.5!G14/C1.5!G$8*100 -> 0 | H14: =+C1.5!H14/C1.5!H$8*100 -> 0 | I14: =+C1.5!I14/C1.5!I$8*100 -> 0 | J14: =+C1.5!J14/C1.5!J$8*100 -> 0 | K14: =+C1.5!K14/C1.5!K$8*100 -> 0 | L14: =+C1.5!L14/C1.5!L$8*100 -> 0 | M14: =+C1.5!M14/C1.5!M$8*100 -> 0 | N14: =+C1.5!N14/C1.5!N$8*100 -> 0 | O14: =+C1.5!O14/C1.5!O$8*100 -> 0 | P14: =+C1.5!P14/C1.5!P$8*100 -> 0 | Q14: =+C1.5!Q14/C1.5!Q$8*100 -> 0 | R14: =IFERROR(C1.5!R14/C1.5!R$8*100,0) -> 0.5865325844
A15: =+C1.5!A15 -> ALIANZA DEMOCRÁTICA NACIONALISTA | B15: =+C1.5!B15/C1.5!B$8*100 -> 0 | C15: =+C1.5!C15/C1.5!C$8*100 -> 0 | D15: =+C1.5!D15/C1.5!D$8*100 -> 0 | E15: =+C1.5!E15/C1.5!E$8*100 -> 0 | F15: =+C1.5!F15/C1.5!F$8*100 -> 0 | G15: =+C1.5!G15/C1.5!G$8*100 -> 0 | H15: =+C1.5!H15/C1.5!H$8*100 -> 0 | I15: =+C1.5!I15/C1.5!I$8*100 -> 0 | J15: =+C1.5!J15/C1.5!J$8*100 -> 0 | K15: =+C1.5!K15/C1.5!K$8*100 -> 0 | L15: =+C1.5!L15/C1.5!L$8*100 -> 0 | M15: =+C1.5!M15/C1.5!M$8*100 -> 0 | N15: =+C1.5!N15/C1.5!N$8*100 -> 0 | O15: =+C1.5!O15/C1.5!O$8*100 -> 0.2259863349 | P15: =+C1.5!P15/C1.5!P$8*100 -> 0 | Q15: =+C1.5!Q15/C1.5!Q$8*100 -> 0 | R15: =IFERROR(C1.5!R15/C1.5!R$8*100,0) -> 0
A16: =+C1.5!A16 -> ALIANZA NACIONAL CRISTIANA | B16: =+C1.5!B16/C1.5!B$8*100 -> 0 | C16: =+C1.5!C16/C1.5!C$8*100 -> 0 | D16: =+C1.5!D16/C1.5!D$8*100 -> 0 | E16: =+C1.5!E16/C1.5!E$8*100 -> 0 | F16: =+C1.5!F16/C1.5!F$8*100 -> 0 | G16: =+C1.5!G16/C1.5!G$8*100 -> 0 | H16: =+C1.5!H16/C1.5!H$8*100 -> 0 | I16: =+C1.5!I16/C1.5!I$8*100 -> 0 | J16: =+C1.5!J16/C1.5!J$8*100 -> 0.4764508252 | K16: =+C1.5!K16/C1.5!K$8*100 -> 0.3120056575 | L16: =+C1.5!L16/C1.5!L$8*100 -> 0.3342064309 | M16: =+C1.5!M16/C1.5!M$8*100 -> 0.255275085 | N16: =+C1.5!N16/C1.5!N$8*100 -> 0.08308031206 | O16: =+C1.5!O16/C1.5!O$8*100 -> 0 | P16: =+C1.5!P16/C1.5!P$8*100 -> 0 | Q16: =+C1.5!Q16/C1.5!Q$8*100 -> 0 | R16: =IFERROR(C1.5!R16/C1.5!R$8*100,0) -> 0
A17: =+C1.5!A17 -> ALIANZA PATRIÓTICA | B17: =+C1.5!B17/C1.5!B$8*100 -> 0 | C17: =+C1.5!C17/C1.5!C$8*100 -> 0 | D17: =+C1.5!D17/C1.5!D$8*100 -> 0 | E17: =+C1.5!E17/C1.5!E$8*100 -> 0 | F17: =+C1.5!F17/C1.5!F$8*100 -> 0 | G17: =+C1.5!G17/C1.5!G$8*100 -> 0 | H17: =+C1.5!H17/C1.5!H$8*100 -> 0 | I17: =+C1.5!I17/C1.5!I$8*100 -> 0 | J17: =+C1.5!J17/C1.5!J$8*100 -> 0 | K17: =+C1.5!K17/C1.5!K$8*100 -> 0 | L17: =+C1.5!L17/C1.5!L$8*100 -> 0 | M17: =+C1.5!M17/C1.5!M$8*100 -> 0 | N17: =+C1.5!N17/C1.5!N$8*100 -> 0 | O17: =+C1.5!O17/C1.5!O$8*100 -> 0 | P17: =+C1.5!P17/C1.5!P$8*100 -> 0.1652250027 | Q17: =+C1.5!Q17/C1.5!Q$8*100 -> 0 | R17: =IFERROR(C1.5!R17/C1.5!R$8*100,0) -> 0
A18: =+C1.5!A18 -> ALIANZA POPULAR | B18: =+C1.5!B18/C1.5!B$8*100 -> 0 | C18: =+C1.5!C18/C1.5!C$8*100 -> 0 | D18: =+C1.5!D18/C1.5!D$8*100 -> 0 | E18: =+C1.5!E18/C1.5!E$8*100 -> 0 | F18: =+C1.5!F18/C1.5!F$8*100 -> 0 | G18: =+C1.5!G18/C1.5!G$8*100 -> 0 | H18: =+C1.5!H18/C1.5!H$8*100 -> 0 | I18: =+C1.5!I18/C1.5!I$8*100 -> 0 | J18: =+C1.5!J18/C1.5!J$8*100 -> 0.7677042782 | K18: =+C1.5!K18/C1.5!K$8*100 -> 0 | L18: =+C1.5!L18/C1.5!L$8*100 -> 0 | M18: =+C1.5!M18/C1.5!M$8*100 -> 0 | N18: =+C1.5!N18/C1.5!N$8*100 -> 0 | O18: =+C1.5!O18/C1.5!O$8*100 -> 0 | P18: =+C1.5!P18/C1.5!P$8*100 -> 0 | Q18: =+C1.5!Q18/C1.5!Q$8*100 -> 0 | R18: =IFERROR(C1.5!R18/C1.5!R$8*100,0) -> 0
A19: =+C1.5!A19 -> AVANCE NACIONAL | B19: =+C1.5!B19/C1.5!B$8*100 -> 0 | C19: =+C1.5!C19/C1.5!C$8*100 -> 0 | D19: =+C1.5!D19/C1.5!D$8*100 -> 0 | E19: =+C1.5!E19/C1.5!E$8*100 -> 0 | F19: =+C1.5!F19/C1.5!F$8*100 -> 0 | G19: =+C1.5!G19/C1.5!G$8*100 -> 0 | H19: =+C1.5!H19/C1.5!H$8*100 -> 0 | I19: =+C1.5!I19/C1.5!I$8*100 -> 0 | J19: =+C1.5!J19/C1.5!J$8*100 -> 0 | K19: =+C1.5!K19/C1.5!K$8*100 -> 0 | L19: =+C1.5!L19/C1.5!L$8*100 -> 0 | M19: =+C1.5!M19/C1.5!M$8*100 -> 0 | N19: =+C1.5!N19/C1.5!N$8*100 -> 0 | O19: =+C1.5!O19/C1.5!O$8*100 -> 0 | P19: =+C1.5!P19/C1.5!P$8*100 -> 0 | Q19: =+C1.5!Q19/C1.5!Q$8*100 -> 0.2134789479 | R19: =IFERROR(C1.5!R19/C1.5!R$8*100,0) -> 0
A20: =+C1.5!A20 -> CAMBIO 2000 | B20: =+C1.5!B20/C1.5!B$8*100 -> 0 | C20: =+C1.5!C20/C1.5!C$8*100 -> 0 | D20: =+C1.5!D20/C1.5!D$8*100 -> 0 | E20: =+C1.5!E20/C1.5!E$8*100 -> 0 | F20: =+C1.5!F20/C1.5!F$8*100 -> 0 | G20: =+C1.5!G20/C1.5!G$8*100 -> 0 | H20: =+C1.5!H20/C1.5!H$8*100 -> 0 | I20: =+C1.5!I20/C1.5!I$8*100 -> 0 | J20: =+C1.5!J20/C1.5!J$8*100 -> 0 | K20: =+C1.5!K20/C1.5!K$8*100 -> 0 | L20: =+C1.5!L20/C1.5!L$8*100 -> 0 | M20: =+C1.5!M20/C1.5!M$8*100 -> 0 | N20: =+C1.5!N20/C1.5!N$8*100 -> 0.2595034137 | O20: =+C1.5!O20/C1.5!O$8*100 -> 0 | P20: =+C1.5!P20/C1.5!P$8*100 -> 0 | Q20: =+C1.5!Q20/C1.5!Q$8*100 -> 0 | R20: =IFERROR(C1.5!R20/C1.5!R$8*100,0) -> 0
A21: =+C1.5!A21 -> COALICIÓN IZQUIERDA UNIDA | B21: =+C1.5!B21/C1.5!B$8*100 -> 0 | C21: =+C1.5!C21/C1.5!C$8*100 -> 0 | D21: =+C1.5!D21/C1.5!D$8*100 -> 0 | E21: =+C1.5!E21/C1.5!E$8*100 -> 0 | F21: =+C1.5!F21/C1.5!F$8*100 -> 0 | G21: =+C1.5!G21/C1.5!G$8*100 -> 0 | H21: =+C1.5!H21/C1.5!H$8*100 -> 0 | I21: =+C1.5!I21/C1.5!I$8*100 -> 0 | J21: =+C1.5!J21/C1.5!J$8*100 -> 0 | K21: =+C1.5!K21/C1.5!K$8*100 -> 0 | L21: =+C1.5!L21/C1.5!L$8*100 -> 0 | M21: =+C1.5!M21/C1.5!M$8*100 -> 0 | N21: =+C1.5!N21/C1.5!N$8*100 -> 0 | O21: =+C1.5!O21/C1.5!O$8*100 -> 0.1410721235 | P21: =+C1.5!P21/C1.5!P$8*100 -> 0 | Q21: =+C1.5!Q21/C1.5!Q$8*100 -> 0 | R21: =IFERROR(C1.5!R21/C1.5!R$8*100,0) -> 0
A22: =+C1.5!A22 -> DEL PROGRESO | B22: =+C1.5!B22/C1.5!B$8*100 -> 0 | C22: =+C1.5!C22/C1.5!C$8*100 -> 0 | D22: =+C1.5!D22/C1.5!D$8*100 -> 0 | E22: =+C1.5!E22/C1.5!E$8*100 -> 0 | F22: =+C1.5!F22/C1.5!F$8*100 -> 0 | G22: =+C1.5!G22/C1.5!G$8*100 -> 0 | H22: =+C1.5!H22/C1.5!H$8*100 -> 0 | I22: =+C1.5!I22/C1.5!I$8*100 -> 0 | J22: =+C1.5!J22/C1.5!J$8*100 -> 0 | K22: =+C1.5!K22/C1.5!K$8*100 -> 0.1888045639 | L22: =+C1.5!L22/C1.5!L$8*100 -> 0 | M22: =+C1.5!M22/C1.5!M$8*100 -> 0 | N22: =+C1.5!N22/C1.5!N$8*100 -> 0 | O22: =+C1.5!O22/C1.5!O$8*100 -> 0 | P22: =+C1.5!P22/C1.5!P$8*100 -> 0 | Q22: =+C1.5!Q22/C1.5!Q$8*100 -> 0 | R22: =IFERROR(C1.5!R22/C1.5!R$8*100,0) -> 0
A23: =+C1.5!A23 -> DEMÓCRATA | B23: =+C1.5!B23/C1.5!B$8*100 -> 35.29103414 | C23: =+C1.5!C23/C1.5!C$8*100 -> 0 | D23: =+C1.5!D23/C1.5!D$8*100 -> 0 | E23: =+C1.5!E23/C1.5!E$8*100 -> 0 | F23: =+C1.5!F23/C1.5!F$8*100 -> 0 | G23: =+C1.5!G23/C1.5!G$8*100 -> 2.776938084 | H23: =+C1.5!H23/C1.5!H$8*100 -> 0.1940705608 | I23: =+C1.5!I23/C1.5!I$8*100 -> 0.1807410902 | J23: =+C1.5!J23/C1.5!J$8*100 -> 0 | K23: =+C1.5!K23/C1.5!K$8*100 -> 0 | L23: =+C1.5!L23/C1.5!L$8*100 -> 0 | M23: =+C1.5!M23/C1.5!M$8*100 -> 0.9326721865 | N23: =+C1.5!N23/C1.5!N$8*100 -> 0 | O23: =+C1.5!O23/C1.5!O$8*100 -> 0 | P23: =+C1.5!P23/C1.5!P$8*100 -> 0 | Q23: =+C1.5!Q23/C1.5!Q$8*100 -> 0 | R23: =IFERROR(C1.5!R23/C1.5!R$8*100,0) -> 0
A24: =+C1.5!A24 -> DEMÓCRATA CRISTIANO | B24: =+C1.5!B24/C1.5!B$8*100 -> 0 | C24: =+C1.5!C24/C1.5!C$8*100 -> 0 | D24: =+C1.5!D24/C1.5!D$8*100 -> 0 | E24: =+C1.5!E24/C1.5!E$8*100 -> 0 | F24: =+C1.5!F24/C1.5!F$8*100 -> 0.9286263182 | G24: =+C1.5!G24/C1.5!G$8*100 -> 0.5103537971 | H24: =+C1.5!H24/C1.5!H$8*100 -> 0 | I24: =+C1.5!I24/C1.5!I$8*100 -> 0 | J24: =+C1.5!J24/C1.5!J$8*100 -> 0 | K24: =+C1.5!K24/C1.5!K$8*100 -> 0 | L24: =+C1.5!L24/C1.5!L$8*100 -> 0 | M24: =+C1.5!M24/C1.5!M$8*100 -> 0 | N24: =+C1.5!N24/C1.5!N$8*100 -> 0 | O24: =+C1.5!O24/C1.5!O$8*100 -> 0 | P24: =+C1.5!P24/C1.5!P$8*100 -> 0 | Q24: =+C1.5!Q24/C1.5!Q$8*100 -> 0 | R24: =IFERROR(C1.5!R24/C1.5!R$8*100,0) -> 0
A25: =+C1.5!A25 -> DE LOS TRABAJADORES | B25: =+C1.5!B25/C1.5!B$8*100 -> 0 | C25: =+C1.5!C25/C1.5!C$8*100 -> 0 | D25: =+C1.5!D25/C1.5!D$8*100 -> 0 | E25: =+C1.5!E25/C1.5!E$8*100 -> 0 | F25: =+C1.5!F25/C1.5!F$8*100 -> 0 | G25: =+C1.5!G25/C1.5!G$8*100 -> 0 | H25: =+C1.5!H25/C1.5!H$8*100 -> 0 | I25: =+C1.5!I25/C1.5!I$8*100 -> 0 | J25: =+C1.5!J25/C1.5!J$8*100 -> 0 | K25: =+C1.5!K25/C1.5!K$8*100 -> 0 | L25: =+C1.5!L25/C1.5!L$8*100 -> 0 | M25: =+C1.5!M25/C1.5!M$8*100 -> 0 | N25: =+C1.5!N25/C1.5!N$8*100 -> 0 | O25: =+C1.5!O25/C1.5!O$8*100 -> 0 | P25: =+C1.5!P25/C1.5!P$8*100 -> 0 | Q25: =+C1.5!Q25/C1.5!Q$8*100 -> 0.2382421167 | R25: =IFERROR(C1.5!R25/C1.5!R$8*100,0) -> 0.2019309444
A26: =+C1.5!A26 -> FRENTE AMPLIO | B26: =+C1.5!B26/C1.5!B$8*100 -> 0 | C26: =+C1.5!C26/C1.5!C$8*100 -> 0 | D26: =+C1.5!D26/C1.5!D$8*100 -> 0 | E26: =+C1.5!E26/C1.5!E$8*100 -> 0 | F26: =+C1.5!F26/C1.5!F$8*100 -> 0 | G26: =+C1.5!G26/C1.5!G$8*100 -> 0 | H26: =+C1.5!H26/C1.5!H$8*100 -> 0 | I26: =+C1.5!I26/C1.5!I$8*100 -> 0 | J26: =+C1.5!J26/C1.5!J$8*100 -> 0 | K26: =+C1.5!K26/C1.5!K$8*100 -> 0 | L26: =+C1.5!L26/C1.5!L$8*100 -> 0 | M26: =+C1.5!M26/C1.5!M$8*100 -> 0 | N26: =+C1.5!N26/C1.5!N$8*100 -> 0 | O26: =+C1.5!O26/C1.5!O$8*100 -> 0 | P26: =+C1.5!P26/C1.5!P$8*100 -> 0.3548308955 | Q26: =+C1.5!Q26/C1.5!Q$8*100 -> 17.24562534 | R26: =IFERROR(C1.5!R26/C1.5!R$8*100,0) -> 0.7825694286
A27: =+C1.5!A27 -> FRENTE NACIONAL | B27: =+C1.5!B27/C1.5!B$8*100 -> 0 | C27: =+C1.5!C27/C1.5!C$8*100 -> 0 | D27: =+C1.5!D27/C1.5!D$8*100 -> 0 | E27: =+C1.5!E27/C1.5!E$8*100 -> 0 | F27: =+C1.5!F27/C1.5!F$8*100 -> 1.769111833 | G27: =+C1.5!G27/C1.5!G$8*100 -> 0 | H27: =+C1.5!H27/C1.5!H$8*100 -> 0 | I27: =+C1.5!I27/C1.5!I$8*100 -> 0 | J27: =+C1.5!J27/C1.5!J$8*100 -> 0 | K27: =+C1.5!K27/C1.5!K$8*100 -> 0 | L27: =+C1.5!L27/C1.5!L$8*100 -> 0 | M27: =+C1.5!M27/C1.5!M$8*100 -> 0 | N27: =+C1.5!N27/C1.5!N$8*100 -> 0 | O27: =+C1.5!O27/C1.5!O$8*100 -> 0 | P27: =+C1.5!P27/C1.5!P$8*100 -> 0 | Q27: =+C1.5!Q27/C1.5!Q$8*100 -> 0 | R27: =IFERROR(C1.5!R27/C1.5!R$8*100,0) -> 0
A28: =+C1.5!A28 -> FUERZA DEMOCRÁTICA | B28: =+C1.5!B28/C1.5!B$8*100 -> 0 | C28: =+C1.5!C28/C1.5!C$8*100 -> 0 | D28: =+C1.5!D28/C1.5!D$8*100 -> 0 | E28: =+C1.5!E28/C1.5!E$8*100 -> 0 | F28: =+C1.5!F28/C1.5!F$8*100 -> 0 | G28: =+C1.5!G28/C1.5!G$8*100 -> 0 | H28: =+C1.5!H28/C1.5!H$8*100 -> 0 | I28: =+C1.5!I28/C1.5!I$8*100 -> 0 | J28: =+C1.5!J28/C1.5!J$8*100 -> 0 | K28: =+C1.5!K28/C1.5!K$8*100 -> 0 | L28: =+C1.5!L28/C1.5!L$8*100 -> 1.897460367 | M28: =+C1.5!M28/C1.5!M$8*100 -> 3.003532806 | N28: =+C1.5!N28/C1.5!N$8*100 -> 0.2693736947 | O28: =+C1.5!O28/C1.5!O$8*100 -> 0.1859615072 | P28: =+C1.5!P28/C1.5!P$8*100 -> 0 | Q28: =+C1.5!Q28/C1.5!Q$8*100 -> 0 | R28: =IFERROR(C1.5!R28/C1.5!R$8*100,0) -> 0
A29: =+C1.5!A29 -> INDEPENDIENTE | B29: =+C1.5!B29/C1.5!B$8*100 -> 0 | C29: =+C1.5!C29/C1.5!C$8*100 -> 10.79219495 | D29: =+C1.5!D29/C1.5!D$8*100 -> 0 | E29: =+C1.5!E29/C1.5!E$8*100 -> 0 | F29: =+C1.5!F29/C1.5!F$8*100 -> 0 | G29: =+C1.5!G29/C1.5!G$8*100 -> 0 | H29: =+C1.5!H29/C1.5!H$8*100 -> 0.4598497728 | I29: =+C1.5!I29/C1.5!I$8*100 -> 0.2022603499 | J29: =+C1.5!J29/C1.5!J$8*100 -> 0.0952564161 | K29: =+C1.5!K29/C1.5!K$8*100 -> 0.05529964848 | L29: =+C1.5!L29/C1.5!L$8*100 -> 0.1073755601 | M29: =+C1.5!M29/C1.5!M$8*100 -> 0.09915762822 | N29: =+C1.5!N29/C1.5!N$8*100 -> 0 | O29: =+C1.5!O29/C1.5!O$8*100 -> 0 | P29: =+C1.5!P29/C1.5!P$8*100 -> 0 | Q29: =+C1.5!Q29/C1.5!Q$8*100 -> 0 | R29: =IFERROR(C1.5!R29/C1.5!R$8*100,0) -> 0
A30: =+C1.5!A30 -> INDEPENDIENTE OBRERO | B30: =+C1.5!B30/C1.5!B$8*100 -> 0 | C30: =+C1.5!C30/C1.5!C$8*100 -> 0 | D30: =+C1.5!D30/C1.5!D$8*100 -> 0 | E30: =+C1.5!E30/C1.5!E$8*100 -> 0 | F30: =+C1.5!F30/C1.5!F$8*100 -> 0 | G30: =+C1.5!G30/C1.5!G$8*100 -> 0 | H30: =+C1.5!H30/C1.5!H$8*100 -> 0 | I30: =+C1.5!I30/C1.5!I$8*100 -> 0 | J30: =+C1.5!J30/C1.5!J$8*100 -> 0 | K30: =+C1.5!K30/C1.5!K$8*100 -> 0 | L30: =+C1.5!L30/C1.5!L$8*100 -> 0 | M30: =+C1.5!M30/C1.5!M$8*100 -> 0 | N30: =+C1.5!N30/C1.5!N$8*100 -> 0.05235824544 | O30: =+C1.5!O30/C1.5!O$8*100 -> 0 | P30: =+C1.5!P30/C1.5!P$8*100 -> 0 | Q30: =+C1.5!Q30/C1.5!Q$8*100 -> 0 | R30: =IFERROR(C1.5!R30/C1.5!R$8*100,0) -> 0
A31: =+C1.5!A31 -> INTEGRACIÓN NACIONAL | B31: =+C1.5!B31/C1.5!B$8*100 -> 0 | C31: =+C1.5!C31/C1.5!C$8*100 -> 0 | D31: =+C1.5!D31/C1.5!D$8*100 -> 0 | E31: =+C1.5!E31/C1.5!E$8*100 -> 0 | F31: =+C1.5!F31/C1.5!F$8*100 -> 0 | G31: =+C1.5!G31/C1.5!G$8*100 -> 0 | H31: =+C1.5!H31/C1.5!H$8*100 -> 0 | I31: =+C1.5!I31/C1.5!I$8*100 -> 0 | J31: =+C1.5!J31/C1.5!J$8*100 -> 0 | K31: =+C1.5!K31/C1.5!K$8*100 -> 0 | L31: =+C1.5!L31/C1.5!L$8*100 -> 0 | M31: =+C1.5!M31/C1.5!M$8*100 -> 1.435445288 | N31: =+C1.5!N31/C1.5!N$8*100 -> 0.4075576284 | O31: =+C1.5!O31/C1.5!O$8*100 -> 0.3162577156 | P31: =+C1.5!P31/C1.5!P$8*100 -> 0.1072026696 | Q31: =+C1.5!Q31/C1.5!Q$8*100 -> 0.147995205 | R31: =IFERROR(C1.5!R31/C1.5!R$8*100,0) -> 9.542037697
A32: =+C1.5!A32 -> LIBERACIÓN NACIONAL | B32: =+C1.5!B32/C1.5!B$8*100 -> 64.70896586 | C32: =+C1.5!C32/C1.5!C$8*100 -> 42.78421478 | D32: =+C1.5!D32/C1.5!D$8*100 -> 44.65536524 | E32: =+C1.5!E32/C1.5!E$8*100 -> 49.52197553 | F32: =+C1.5!F32/C1.5!F$8*100 -> 54.78858243 | G32: =+C1.5!G32/C1.5!G$8*100 -> 43.44259515 | H32: =+C1.5!H32/C1.5!H$8*100 -> 43.82950667 | I32: =+C1.5!I32/C1.5!I$8*100 -> 58.80282564 | J32: =+C1.5!J32/C1.5!J$8*100 -> 52.33736802 | K32: =+C1.5!K32/C1.5!K$8*100 -> 47.1975087 | L32: =+C1.5!L32/C1.5!L$8*100 -> 49.61683702 | M32: =+C1.5!M32/C1.5!M$8*100 -> 44.56217263 | N32: =+C1.5!N32/C1.5!N$8*100 -> 31.05085809 | O32: =+C1.5!O32/C1.5!O$8*100 -> 40.92082966 | P32: =+C1.5!P32/C1.5!P$8*100 -> 46.90527501 | Q32: =+C1.5!Q32/C1.5!Q$8*100 -> 29.7077265 | R32: =IFERROR(C1.5!R32/C1.5!R$8*100,0) -> 18.6339425
A33: =+C1.5!A33 -> MOVIMIENTO LIBERTARIO | B33: =+C1.5!B33/C1.5!B$8*100 -> 0 | C33: =+C1.5!C33/C1.5!C$8*100 -> 0 | D33: =+C1.5!D33/C1.5!D$8*100 -> 0 | E33: =+C1.5!E33/C1.5!E$8*100 -> 0 | F33: =+C1.5!F33/C1.5!F$8*100 -> 0 | G33: =+C1.5!G33/C1.5!G$8*100 -> 0 | H33: =+C1.5!H33/C1.5!H$8*100 -> 0 | I33: =+C1.5!I33/C1.5!I$8*100 -> 0 | J33: =+C1.5!J33/C1.5!J$8*100 -> 0 | K33: =+C1.5!K33/C1.5!K$8*100 -> 0 | L33: =+C1.5!L33/C1.5!L$8*100 -> 0 | M33: =+C1.5!M33/C1.5!M$8*100 -> 0.4229861352 | N33: =+C1.5!N33/C1.5!N$8*100 -> 1.68742585 | O33: =+C1.5!O33/C1.5!O$8*100 -> 8.479721575 | P33: =+C1.5!P33/C1.5!P$8*100 -> 20.91671101 | Q33: =+C1.5!Q33/C1.5!Q$8*100 -> 11.33870955 | R33: =IFERROR(C1.5!R33/C1.5!R$8*100,0) -> 1.015920104
A34: =+C1.5!A34 -> MOVIMIENTO NACIONAL | B34: =+C1.5!B34/C1.5!B$8*100 -> 0 | C34: =+C1.5!C34/C1.5!C$8*100 -> 0 | D34: =+C1.5!D34/C1.5!D$8*100 -> 0 | E34: =+C1.5!E34/C1.5!E$8*100 -> 0 | F34: =+C1.5!F34/C1.5!F$8*100 -> 0 | G34: =+C1.5!G34/C1.5!G$8*100 -> 0 | H34: =+C1.5!H34/C1.5!H$8*100 -> 0 | I34: =+C1.5!I34/C1.5!I$8*100 -> 3.841084405 | J34: =+C1.5!J34/C1.5!J$8*100 -> 0 | K34: =+C1.5!K34/C1.5!K$8*100 -> 0 | L34: =+C1.5!L34/C1.5!L$8*100 -> 0 | M34: =+C1.5!M34/C1.5!M$8*100 -> 0 | N34: =+C1.5!N34/C1.5!N$8*100 -> 0 | O34: =+C1.5!O34/C1.5!O$8*100 -> 0 | P34: =+C1.5!P34/C1.5!P$8*100 -> 0 | Q34: =+C1.5!Q34/C1.5!Q$8*100 -> 0 | R34: =IFERROR(C1.5!R34/C1.5!R$8*100,0) -> 0
A35: =+C1.5!A35 -> NACIONAL INDEPENDIENTE | B35: =+C1.5!B35/C1.5!B$8*100 -> 0 | C35: =+C1.5!C35/C1.5!C$8*100 -> 0 | D35: =+C1.5!D35/C1.5!D$8*100 -> 0 | E35: =+C1.5!E35/C1.5!E$8*100 -> 0 | F35: =+C1.5!F35/C1.5!F$8*100 -> 0 | G35: =+C1.5!G35/C1.5!G$8*100 -> 10.88066628 | H35: =+C1.5!H35/C1.5!H$8*100 -> 0.3998118249 | I35: =+C1.5!I35/C1.5!I$8*100 -> 0 | J35: =+C1.5!J35/C1.5!J$8*100 -> 0 | K35: =+C1.5!K35/C1.5!K$8*100 -> 0 | L35: =+C1.5!L35/C1.5!L$8*100 -> 0.162808193 | M35: =+C1.5!M35/C1.5!M$8*100 -> 0.3037377457 | N35: =+C1.5!N35/C1.5!N$8*100 -> 0 | O35: =+C1.5!O35/C1.5!O$8*100 -> 0 | P35: =+C1.5!P35/C1.5!P$8*100 -> 0 | Q35: =+C1.5!Q35/C1.5!Q$8*100 -> 0 | R35: =IFERROR(C1.5!R35/C1.5!R$8*100,0) -> 0
A36: =+C1.5!A36 -> NUEVA GENERACIÓN | B36: =+C1.5!B36/C1.5!B$8*100 -> 0 | C36: =+C1.5!C36/C1.5!C$8*100 -> 0 | D36: =+C1.5!D36/C1.5!D$8*100 -> 0 | E36: =+C1.5!E36/C1.5!E$8*100 -> 0 | F36: =+C1.5!F36/C1.5!F$8*100 -> 0 | G36: =+C1.5!G36/C1.5!G$8*100 -> 0 | H36: =+C1.5!H36/C1.5!H$8*100 -> 0 | I36: =+C1.5!I36/C1.5!I$8*100 -> 0 | J36: =+C1.5!J36/C1.5!J$8*100 -> 0 | K36: =+C1.5!K36/C1.5!K$8*100 -> 0 | L36: =+C1.5!L36/C1.5!L$8*100 -> 0 | M36: =+C1.5!M36/C1.5!M$8*100 -> 0 | N36: =+C1.5!N36/C1.5!N$8*100 -> 0 | O36: =+C1.5!O36/C1.5!O$8*100 -> 0 | P36: =+C1.5!P36/C1.5!P$8*100 -> 0 | Q36: =+C1.5!Q36/C1.5!Q$8*100 -> 0.2861629835 | R36: =IFERROR(C1.5!R36/C1.5!R$8*100,0) -> 0.7578327718
A37: =+C1.5!A37 -> NUEVO PARTIDO DEMOCRÁTICO | B37: =+C1.5!B37/C1.5!B$8*100 -> 0 | C37: =+C1.5!C37/C1.5!C$8*100 -> 0 | D37: =+C1.5!D37/C1.5!D$8*100 -> 0 | E37: =+C1.5!E37/C1.5!E$8*100 -> 0 | F37: =+C1.5!F37/C1.5!F$8*100 -> 0 | G37: =+C1.5!G37/C1.5!G$8*100 -> 0 | H37: =+C1.5!H37/C1.5!H$8*100 -> 0 | I37: =+C1.5!I37/C1.5!I$8*100 -> 0 | J37: =+C1.5!J37/C1.5!J$8*100 -> 0 | K37: =+C1.5!K37/C1.5!K$8*100 -> 0 | L37: =+C1.5!L37/C1.5!L$8*100 -> 0 | M37: =+C1.5!M37/C1.5!M$8*100 -> 0.2178299385 | N37: =+C1.5!N37/C1.5!N$8*100 -> 0 | O37: =+C1.5!O37/C1.5!O$8*100 -> 0 | P37: =+C1.5!P37/C1.5!P$8*100 -> 0 | Q37: =+C1.5!Q37/C1.5!Q$8*100 -> 0 | R37: =IFERROR(C1.5!R37/C1.5!R$8*100,0) -> 0
A38: =+C1.5!A38 -> ORGANIZACIÓN SOCIALISTA DE LOS TRABAJADORES | B38: =+C1.5!B38/C1.5!B$8*100 -> 0 | C38: =+C1.5!C38/C1.5!C$8*100 -> 0 | D38: =+C1.5!D38/C1.5!D$8*100 -> 0 | E38: =+C1.5!E38/C1.5!E$8*100 -> 0 | F38: =+C1.5!F38/C1.5!F$8*100 -> 0 | G38: =+C1.5!G38/C1.5!G$8*100 -> 0 | H38: =+C1.5!H38/C1.5!H$8*100 -> 0.2247512757 | I38: =+C1.5!I38/C1.5!I$8*100 -> 0 | J38: =+C1.5!J38/C1.5!J$8*100 -> 0 | K38: =+C1.5!K38/C1.5!K$8*100 -> 0 | L38: =+C1.5!L38/C1.5!L$8*100 -> 0 | M38: =+C1.5!M38/C1.5!M$8*100 -> 0 | N38: =+C1.5!N38/C1.5!N$8*100 -> 0 | O38: =+C1.5!O38/C1.5!O$8*100 -> 0 | P38: =+C1.5!P38/C1.5!P$8*100 -> 0 | Q38: =+C1.5!Q38/C1.5!Q$8*100 -> 0 | R38: =IFERROR(C1.5!R38/C1.5!R$8*100,0) -> 0
A39: =+C1.5!A39 -> PATRIA NUEVA | B39: =+C1.5!B39/C1.5!B$8*100 -> 0 | C39: =+C1.5!C39/C1.5!C$8*100 -> 0 | D39: =+C1.5!D39/C1.5!D$8*100 -> 0 | E39: =+C1.5!E39/C1.5!E$8*100 -> 0 | F39: =+C1.5!F39/C1.5!F$8*100 -> 0 | G39: =+C1.5!G39/C1.5!G$8*100 -> 0 | H39: =+C1.5!H39/C1.5!H$8*100 -> 0 | I39: =+C1.5!I39/C1.5!I$8*100 -> 0 | J39: =+C1.5!J39/C1.5!J$8*100 -> 0 | K39: =+C1.5!K39/C1.5!K$8*100 -> 0 | L39: =+C1.5!L39/C1.5!L$8*100 -> 0 | M39: =+C1.5!M39/C1.5!M$8*100 -> 0 | N39: =+C1.5!N39/C1.5!N$8*100 -> 0 | O39: =+C1.5!O39/C1.5!O$8*100 -> 0 | P39: =+C1.5!P39/C1.5!P$8*100 -> 0 | Q39: =+C1.5!Q39/C1.5!Q$8*100 -> 1.499217698 | R39: =IFERROR(C1.5!R39/C1.5!R$8*100,0) -> 0
A40: =+C1.5!A40 -> PATRIA PRIMERO | B40: =+C1.5!B40/C1.5!B$8*100 -> 0 | C40: =+C1.5!C40/C1.5!C$8*100 -> 0 | D40: =+C1.5!D40/C1.5!D$8*100 -> 0 | E40: =+C1.5!E40/C1.5!E$8*100 -> 0 | F40: =+C1.5!F40/C1.5!F$8*100 -> 0 | G40: =+C1.5!G40/C1.5!G$8*100 -> 0 | H40: =+C1.5!H40/C1.5!H$8*100 -> 0 | I40: =+C1.5!I40/C1.5!I$8*100 -> 0 | J40: =+C1.5!J40/C1.5!J$8*100 -> 0 | K40: =+C1.5!K40/C1.5!K$8*100 -> 0 | L40: =+C1.5!L40/C1.5!L$8*100 -> 0 | M40: =+C1.5!M40/C1.5!M$8*100 -> 0 | N40: =+C1.5!N40/C1.5!N$8*100 -> 0 | O40: =+C1.5!O40/C1.5!O$8*100 -> 1.083379721 | P40: =+C1.5!P40/C1.5!P$8*100 -> 0 | Q40: =+C1.5!Q40/C1.5!Q$8*100 -> 0 | R40: =IFERROR(C1.5!R40/C1.5!R$8*100,0) -> 0
A41: =+C1.5!A41 -> PATRIÓTICO NACIONAL | B41: =+C1.5!B41/C1.5!B$8*100 -> 0 | C41: =+C1.5!C41/C1.5!C$8*100 -> 0 | D41: =+C1.5!D41/C1.5!D$8*100 -> 0 | E41: =+C1.5!E41/C1.5!E$8*100 -> 0 | F41: =+C1.5!F41/C1.5!F$8*100 -> 0 | G41: =+C1.5!G41/C1.5!G$8*100 -> 0 | H41: =+C1.5!H41/C1.5!H$8*100 -> 0 | I41: =+C1.5!I41/C1.5!I$8*100 -> 0 | J41: =+C1.5!J41/C1.5!J$8*100 -> 0 | K41: =+C1.5!K41/C1.5!K$8*100 -> 0 | L41: =+C1.5!L41/C1.5!L$8*100 -> 0 | M41: =+C1.5!M41/C1.5!M$8*100 -> 0 | N41: =+C1.5!N41/C1.5!N$8*100 -> 0.1098150466 | O41: =+C1.5!O41/C1.5!O$8*100 -> 0 | P41: =+C1.5!P41/C1.5!P$8*100 -> 0 | Q41: =+C1.5!Q41/C1.5!Q$8*100 -> 0 | R41: =IFERROR(C1.5!R41/C1.5!R$8*100,0) -> 0
A42: =+C1.5!A42 -> PUEBLO UNIDO | B42: =+C1.5!B42/C1.5!B$8*100 -> 0 | C42: =+C1.5!C42/C1.5!C$8*100 -> 0 | D42: =+C1.5!D42/C1.5!D$8*100 -> 0 | E42: =+C1.5!E42/C1.5!E$8*100 -> 0 | F42: =+C1.5!F42/C1.5!F$8*100 -> 0 | G42: =+C1.5!G42/C1.5!G$8*100 -> 0 | H42: =+C1.5!H42/C1.5!H$8*100 -> 2.735997863 | I42: =+C1.5!I42/C1.5!I$8*100 -> 3.329898528 | J42: =+C1.5!J42/C1.5!J$8*100 -> 0.5567733302 | K42: =+C1.5!K42/C1.5!K$8*100 -> 0.6832397588 | L42: =+C1.5!L42/C1.5!L$8*100 -> 0 | M42: =+C1.5!M42/C1.5!M$8*100 -> 0.2214304334 | N42: =+C1.5!N42/C1.5!N$8*100 -> 0 | O42: =+C1.5!O42/C1.5!O$8*100 -> 0 | P42: =+C1.5!P42/C1.5!P$8*100 -> 0 | Q42: =+C1.5!Q42/C1.5!Q$8*100 -> 0 | R42: =IFERROR(C1.5!R42/C1.5!R$8*100,0) -> 0
A43: =+C1.5!A43 -> RENOVACIÓN COSTARICENSE | B43: =+C1.5!B43/C1.5!B$8*100 -> 0 | C43: =+C1.5!C43/C1.5!C$8*100 -> 0 | D43: =+C1.5!D43/C1.5!D$8*100 -> 0 | E43: =+C1.5!E43/C1.5!E$8*100 -> 0 | F43: =+C1.5!F43/C1.5!F$8*100 -> 0 | G43: =+C1.5!G43/C1.5!G$8*100 -> 0 | H43: =+C1.5!H43/C1.5!H$8*100 -> 0 | I43: =+C1.5!I43/C1.5!I$8*100 -> 0 | J43: =+C1.5!J43/C1.5!J$8*100 -> 0 | K43: =+C1.5!K43/C1.5!K$8*100 -> 0 | L43: =+C1.5!L43/C1.5!L$8*100 -> 0 | M43: =+C1.5!M43/C1.5!M$8*100 -> 1.390727142 | N43: =+C1.5!N43/C1.5!N$8*100 -> 1.072265491 | O43: =+C1.5!O43/C1.5!O$8*100 -> 0.9568396889 | P43: =+C1.5!P43/C1.5!P$8*100 -> 0.7295955231 | Q43: =+C1.5!Q43/C1.5!Q$8*100 -> 0.8134871212 | R43: =IFERROR(C1.5!R43/C1.5!R$8*100,0) -> 0.5712636162
A44: =+C1.5!A44 -> RENOVACIÓN DEMOCRÁTICA | B44: =+C1.5!B44/C1.5!B$8*100 -> 0 | C44: =+C1.5!C44/C1.5!C$8*100 -> 0 | D44: =+C1.5!D44/C1.5!D$8*100 -> 0 | E44: =+C1.5!E44/C1.5!E$8*100 -> 0 | F44: =+C1.5!F44/C1.5!F$8*100 -> 0 | G44: =+C1.5!G44/C1.5!G$8*100 -> 9.115883195 | H44: =+C1.5!H44/C1.5!H$8*100 -> 0 | I44: =+C1.5!I44/C1.5!I$8*100 -> 0 | J44: =+C1.5!J44/C1.5!J$8*100 -> 0 | K44: =+C1.5!K44/C1.5!K$8*100 -> 0 | L44: =+C1.5!L44/C1.5!L$8*100 -> 0 | M44: =+C1.5!M44/C1.5!M$8*100 -> 0 | N44: =+C1.5!N44/C1.5!N$8*100 -> 0 | O44: =+C1.5!O44/C1.5!O$8*100 -> 0 | P44: =+C1.5!P44/C1.5!P$8*100 -> 0 | Q44: =+C1.5!Q44/C1.5!Q$8*100 -> 0 | R44: =IFERROR(C1.5!R44/C1.5!R$8*100,0) -> 0
A45: =+C1.5!A45 -> REPUBLICANO | B45: =+C1.5!B45/C1.5!B$8*100 -> 0 | C45: =+C1.5!C45/C1.5!C$8*100 -> 0 | D45: =+C1.5!D45/C1.5!D$8*100 -> 31.38333221 | E45: =+C1.5!E45/C1.5!E$8*100 -> 0 | F45: =+C1.5!F45/C1.5!F$8*100 -> 0 | G45: =+C1.5!G45/C1.5!G$8*100 -> 0 | H45: =+C1.5!H45/C1.5!H$8*100 -> 0 | I45: =+C1.5!I45/C1.5!I$8*100 -> 0 | J45: =+C1.5!J45/C1.5!J$8*100 -> 0 | K45: =+C1.5!K45/C1.5!K$8*100 -> 0 | L45: =+C1.5!L45/C1.5!L$8*100 -> 0 | M45: =+C1.5!M45/C1.5!M$8*100 -> 0 | N45: =+C1.5!N45/C1.5!N$8*100 -> 0 | O45: =+C1.5!O45/C1.5!O$8*100 -> 0 | P45: =+C1.5!P45/C1.5!P$8*100 -> 0 | Q45: =+C1.5!Q45/C1.5!Q$8*100 -> 0 | R45: =IFERROR(C1.5!R45/C1.5!R$8*100,0) -> 0
A46: RECUPLICANO SOCIAL CRSITIANO | B46: =+C1.5!B46/C1.5!B$8*100 -> 0 | C46: =+C1.5!C46/C1.5!C$8*100 -> 0 | D46: =+C1.5!D46/C1.5!D$8*100 -> 0 | E46: =+C1.5!E46/C1.5!E$8*100 -> 0 | F46: =+C1.5!F46/C1.5!F$8*100 -> 0 | G46: =+C1.5!G46/C1.5!G$8*100 -> 0 | H46: =+C1.5!H46/C1.5!H$8*100 -> 0 | I46: =+C1.5!I46/C1.5!I$8*100 -> 0 | J46: =+C1.5!J46/C1.5!J$8*100 -> 0 | K46: =+C1.5!K46/C1.5!K$8*100 -> 0 | L46: =+C1.5!L46/C1.5!L$8*100 -> 0 | M46: =+C1.5!M46/C1.5!M$8*100 -> 0 | N46: =+C1.5!N46/C1.5!N$8*100 -> 0 | O46: =+C1.5!O46/C1.5!O$8*100 -> 0 | P46: =+C1.5!P46/C1.5!P$8*100 -> 0 | Q46: =+C1.5!Q46/C1.5!Q$8*100 -> 0 | R46: =IFERROR(C1.5!R46/C1.5!R$8*100,0) -> 4.940091345
A47: =+C1.5!A47 -> RESCATE NACIONAL | B47: =+C1.5!B47/C1.5!B$8*100 -> 0 | C47: =+C1.5!C47/C1.5!C$8*100 -> 0 | D47: =+C1.5!D47/C1.5!D$8*100 -> 0 | E47: =+C1.5!E47/C1.5!E$8*100 -> 0 | F47: =+C1.5!F47/C1.5!F$8*100 -> 0 | G47: =+C1.5!G47/C1.5!G$8*100 -> 0 | H47: =+C1.5!H47/C1.5!H$8*100 -> 0 | I47: =+C1.5!I47/C1.5!I$8*100 -> 0 | J47: =+C1.5!J47/C1.5!J$8*100 -> 0 | K47: =+C1.5!K47/C1.5!K$8*100 -> 0 | L47: =+C1.5!L47/C1.5!L$8*100 -> 0 | M47: =+C1.5!M47/C1.5!M$8*100 -> 0.193058534 | N47: =+C1.5!N47/C1.5!N$8*100 -> 0.05915631976 | O47: =+C1.5!O47/C1.5!O$8*100 -> 0.149631279 | P47: =+C1.5!P47/C1.5!P$8*100 -> 0 | Q47: =+C1.5!Q47/C1.5!Q$8*100 -> 0 | R47: =IFERROR(C1.5!R47/C1.5!R$8*100,0) -> 0
A48: =+C1.5!A48 -> RESTAURACIÓN NACIONAL | B48: =+C1.5!B48/C1.5!B$8*100 -> 0 | C48: =+C1.5!C48/C1.5!C$8*100 -> 0 | D48: =+C1.5!D48/C1.5!D$8*100 -> 0 | E48: =+C1.5!E48/C1.5!E$8*100 -> 0 | F48: =+C1.5!F48/C1.5!F$8*100 -> 0 | G48: =+C1.5!G48/C1.5!G$8*100 -> 0 | H48: =+C1.5!H48/C1.5!H$8*100 -> 0 | I48: =+C1.5!I48/C1.5!I$8*100 -> 0 | J48: =+C1.5!J48/C1.5!J$8*100 -> 0 | K48: =+C1.5!K48/C1.5!K$8*100 -> 0 | L48: =+C1.5!L48/C1.5!L$8*100 -> 0 | M48: =+C1.5!M48/C1.5!M$8*100 -> 0 | N48: =+C1.5!N48/C1.5!N$8*100 -> 0 | O48: =+C1.5!O48/C1.5!O$8*100 -> 0 | P48: =+C1.5!P48/C1.5!P$8*100 -> 0 | Q48: =+C1.5!Q48/C1.5!Q$8*100 -> 1.347184491 | R48: =IFERROR(C1.5!R48/C1.5!R$8*100,0) -> 24.99209866
A49: =+C1.5!A49 -> REVOLUCIONARIO DE LOS TRABAJADORES EN LUCHA | B49: =+C1.5!B49/C1.5!B$8*100 -> 0 | C49: =+C1.5!C49/C1.5!C$8*100 -> 0 | D49: =+C1.5!D49/C1.5!D$8*100 -> 0 | E49: =+C1.5!E49/C1.5!E$8*100 -> 0 | F49: =+C1.5!F49/C1.5!F$8*100 -> 0 | G49: =+C1.5!G49/C1.5!G$8*100 -> 0 | H49: =+C1.5!H49/C1.5!H$8*100 -> 0 | I49: =+C1.5!I49/C1.5!I$8*100 -> 0 | J49: =+C1.5!J49/C1.5!J$8*100 -> 0 | K49: =+C1.5!K49/C1.5!K$8*100 -> 0.0744988562 | L49: =+C1.5!L49/C1.5!L$8*100 -> 0 | M49: =+C1.5!M49/C1.5!M$8*100 -> 0 | N49: =+C1.5!N49/C1.5!N$8*100 -> 0 | O49: =+C1.5!O49/C1.5!O$8*100 -> 0 | P49: =+C1.5!P49/C1.5!P$8*100 -> 0 | Q49: =+C1.5!Q49/C1.5!Q$8*100 -> 0 | R49: =IFERROR(C1.5!R49/C1.5!R$8*100,0) -> 0
A50: =+C1.5!A50 -> SOCIALISTA COSTARRICENSE | B50: =+C1.5!B50/C1.5!B$8*100 -> 0 | C50: =+C1.5!C50/C1.5!C$8*100 -> 0 | D50: =+C1.5!D50/C1.5!D$8*100 -> 0 | E50: =+C1.5!E50/C1.5!E$8*100 -> 0 | F50: =+C1.5!F50/C1.5!F$8*100 -> 0 | G50: =+C1.5!G50/C1.5!G$8*100 -> 0.503865624 | H50: =+C1.5!H50/C1.5!H$8*100 -> 0 | I50: =+C1.5!I50/C1.5!I$8*100 -> 0 | J50: =+C1.5!J50/C1.5!J$8*100 -> 0 | K50: =+C1.5!K50/C1.5!K$8*100 -> 0 | L50: =+C1.5!L50/C1.5!L$8*100 -> 0 | M50: =+C1.5!M50/C1.5!M$8*100 -> 0 | N50: =+C1.5!N50/C1.5!N$8*100 -> 0 | O50: =+C1.5!O50/C1.5!O$8*100 -> 0 | P50: =+C1.5!P50/C1.5!P$8*100 -> 0 | Q50: =+C1.5!Q50/C1.5!Q$8*100 -> 0 | R50: =IFERROR(C1.5!R50/C1.5!R$8*100,0) -> 0
A51: =+C1.5!A51 -> UNIDAD (COALICIÓN) | B51: =+C1.5!B51/C1.5!B$8*100 -> 0 | C51: =+C1.5!C51/C1.5!C$8*100 -> 0 | D51: =+C1.5!D51/C1.5!D$8*100 -> 0 | E51: =+C1.5!E51/C1.5!E$8*100 -> 0 | F51: =+C1.5!F51/C1.5!F$8*100 -> 0 | G51: =+C1.5!G51/C1.5!G$8*100 -> 0 | H51: =+C1.5!H51/C1.5!H$8*100 -> 50.51176635 | I51: =+C1.5!I51/C1.5!I$8*100 -> 33.64318998 | J51: =+C1.5!J51/C1.5!J$8*100 -> 0 | K51: =+C1.5!K51/C1.5!K$8*100 -> 0 | L51: =+C1.5!L51/C1.5!L$8*100 -> 0 | M51: =+C1.5!M51/C1.5!M$8*100 -> 0 | N51: =+C1.5!N51/C1.5!N$8*100 -> 0 | O51: =+C1.5!O51/C1.5!O$8*100 -> 0 | P51: =+C1.5!P51/C1.5!P$8*100 -> 0 | Q51: =+C1.5!Q51/C1.5!Q$8*100 -> 0 | R51: =IFERROR(C1.5!R51/C1.5!R$8*100,0) -> 0
A52: =+C1.5!A52 -> UNIDAD SOCIAL CRISTIANA | B52: =+C1.5!B52/C1.5!B$8*100 -> 0 | C52: =+C1.5!C52/C1.5!C$8*100 -> 0 | D52: =+C1.5!D52/C1.5!D$8*100 -> 0 | E52: =+C1.5!E52/C1.5!E$8*100 -> 0 | F52: =+C1.5!F52/C1.5!F$8*100 -> 0 | G52: =+C1.5!G52/C1.5!G$8*100 -> 0 | H52: =+C1.5!H52/C1.5!H$8*100 -> 0 | I52: =+C1.5!I52/C1.5!I$8*100 -> 0 | J52: =+C1.5!J52/C1.5!J$8*100 -> 45.76644713 | K52: =+C1.5!K52/C1.5!K$8*100 -> 51.48864282 | L52: =+C1.5!L52/C1.5!L$8*100 -> 47.73702652 | M52: =+C1.5!M52/C1.5!M$8*100 -> 46.96197445 | N52: =+C1.5!N52/C1.5!N$8*100 -> 38.58410493 | O52: =+C1.5!O52/C1.5!O$8*100 -> 3.550202218 | P52: =+C1.5!P52/C1.5!P$8*100 -> 3.877607931 | Q52: =+C1.5!Q52/C1.5!Q$8*100 -> 6.015795885 | R52: =IFERROR(C1.5!R52/C1.5!R$8*100,0) -> 15.99273587
A53: =+C1.5!A53 -> UNIFICACIÓN NACIONAL | B53: =+C1.5!B53/C1.5!B$8*100 -> 0 | C53: =+C1.5!C53/C1.5!C$8*100 -> 0 | D53: =+C1.5!D53/C1.5!D$8*100 -> 0 | E53: =+C1.5!E53/C1.5!E$8*100 -> 50.47802447 | F53: =+C1.5!F53/C1.5!F$8*100 -> 41.17656862 | G53: =+C1.5!G53/C1.5!G$8*100 -> 30.39841807 | H53: =+C1.5!H53/C1.5!H$8*100 -> 1.644245682 | I53: =+C1.5!I53/C1.5!I$8*100 -> 0 | J53: =+C1.5!J53/C1.5!J$8*100 -> 0 | K53: =+C1.5!K53/C1.5!K$8*100 -> 0 | L53: =+C1.5!L53/C1.5!L$8*100 -> 0 | M53: =+C1.5!M53/C1.5!M$8*100 -> 0 | N53: =+C1.5!N53/C1.5!N$8*100 -> 0 | O53: =+C1.5!O53/C1.5!O$8*100 -> 0 | P53: =+C1.5!P53/C1.5!P$8*100 -> 0 | Q53: =+C1.5!Q53/C1.5!Q$8*100 -> 0 | R53: =IFERROR(C1.5!R53/C1.5!R$8*100,0) -> 0
A54: =+C1.5!A54 -> UNIÓN GENERAL | B54: =+C1.5!B54/C1.5!B$8*100 -> 0 | C54: =+C1.5!C54/C1.5!C$8*100 -> 0 | D54: =+C1.5!D54/C1.5!D$8*100 -> 0 | E54: =+C1.5!E54/C1.5!E$8*100 -> 0 | F54: =+C1.5!F54/C1.5!F$8*100 -> 0 | G54: =+C1.5!G54/C1.5!G$8*100 -> 0 | H54: =+C1.5!H54/C1.5!H$8*100 -> 0 | I54: =+C1.5!I54/C1.5!I$8*100 -> 0 | J54: =+C1.5!J54/C1.5!J$8*100 -> 0 | K54: =+C1.5!K54/C1.5!K$8*100 -> 0 | L54: =+C1.5!L54/C1.5!L$8*100 -> 0 | M54: =+C1.5!M54/C1.5!M$8*100 -> 0 | N54: =+C1.5!N54/C1.5!N$8*100 -> 0.1735469933 | O54: =+C1.5!O54/C1.5!O$8*100 -> 0 | P54: =+C1.5!P54/C1.5!P$8*100 -> 0 | Q54: =+C1.5!Q54/C1.5!Q$8*100 -> 0 | R54: =IFERROR(C1.5!R54/C1.5!R$8*100,0) -> 0
A55: =+C1.5!A55 -> UNIÓN GENERALEÑA | B55: =+C1.5!B55/C1.5!B$8*100 -> 0 | C55: =+C1.5!C55/C1.5!C$8*100 -> 0 | D55: =+C1.5!D55/C1.5!D$8*100 -> 0 | E55: =+C1.5!E55/C1.5!E$8*100 -> 0 | F55: =+C1.5!F55/C1.5!F$8*100 -> 0 | G55: =+C1.5!G55/C1.5!G$8*100 -> 0 | H55: =+C1.5!H55/C1.5!H$8*100 -> 0 | I55: =+C1.5!I55/C1.5!I$8*100 -> 0 | J55: =+C1.5!J55/C1.5!J$8*100 -> 0 | K55: =+C1.5!K55/C1.5!K$8*100 -> 0 | L55: =+C1.5!L55/C1.5!L$8*100 -> 0.1442859089 | M55: =+C1.5!M55/C1.5!M$8*100 -> 0 | N55: =+C1.5!N55/C1.5!N$8*100 -> 0 | O55: =+C1.5!O55/C1.5!O$8*100 -> 0 | P55: =+C1.5!P55/C1.5!P$8*100 -> 0 | Q55: =+C1.5!Q55/C1.5!Q$8*100 -> 0 | R55: =IFERROR(C1.5!R55/C1.5!R$8*100,0) -> 0
A56: =+C1.5!A56 -> UNIÓN NACIONAL | B56: =+C1.5!B56/C1.5!B$8*100 -> 0 | C56: =+C1.5!C56/C1.5!C$8*100 -> 46.42359027 | D56: =+C1.5!D56/C1.5!D$8*100 -> 11.98065127 | E56: =+C1.5!E56/C1.5!E$8*100 -> 0 | F56: =+C1.5!F56/C1.5!F$8*100 -> 0 | G56: =+C1.5!G56/C1.5!G$8*100 -> 0 | H56: =+C1.5!H56/C1.5!H$8*100 -> 0 | I56: =+C1.5!I56/C1.5!I$8*100 -> 0 | J56: =+C1.5!J56/C1.5!J$8*100 -> 0 | K56: =+C1.5!K56/C1.5!K$8*100 -> 0 | L56: =+C1.5!L56/C1.5!L$8*100 -> 0 | M56: =+C1.5!M56/C1.5!M$8*100 -> 0 | N56: =+C1.5!N56/C1.5!N$8*100 -> 0 | O56: =+C1.5!O56/C1.5!O$8*100 -> 1.637508067 | P56: =+C1.5!P56/C1.5!P$8*100 -> 0 | Q56: =+C1.5!Q56/C1.5!Q$8*100 -> 0 | R56: =IFERROR(C1.5!R56/C1.5!R$8*100,0) -> 0
A57: =+C1.5!A57 -> UNIÓN PARA EL CAMBIO | B57: =+C1.5!B57/C1.5!B$8*100 -> 0 | C57: =+C1.5!C57/C1.5!C$8*100 -> 0 | D57: =+C1.5!D57/C1.5!D$8*100 -> 0 | E57: =+C1.5!E57/C1.5!E$8*100 -> 0 | F57: =+C1.5!F57/C1.5!F$8*100 -> 0 | G57: =+C1.5!G57/C1.5!G$8*100 -> 0 | H57: =+C1.5!H57/C1.5!H$8*100 -> 0 | I57: =+C1.5!I57/C1.5!I$8*100 -> 0 | J57: =+C1.5!J57/C1.5!J$8*100 -> 0 | K57: =+C1.5!K57/C1.5!K$8*100 -> 0 | L57: =+C1.5!L57/C1.5!L$8*100 -> 0 | M57: =+C1.5!M57/C1.5!M$8*100 -> 0 | N57: =+C1.5!N57/C1.5!N$8*100 -> 0 | O57: =+C1.5!O57/C1.5!O$8*100 -> 2.435787861 | P57: =+C1.5!P57/C1.5!P$8*100 -> 0 | Q57: =+C1.5!Q57/C1.5!Q$8*100 -> 0 | R57: =IFERROR(C1.5!R57/C1.5!R$8*100,0) -> 0
A58: =+C1.5!A58 -> UNIÓN PATRIÓTICA | B58: =+C1.5!B58/C1.5!B$8*100 -> 0 | C58: =+C1.5!C58/C1.5!C$8*100 -> 0 | D58: =+C1.5!D58/C1.5!D$8*100 -> 0 | E58: =+C1.5!E58/C1.5!E$8*100 -> 0 | F58: =+C1.5!F58/C1.5!F$8*100 -> 0 | G58: =+C1.5!G58/C1.5!G$8*100 -> 0 | H58: =+C1.5!H58/C1.5!H$8*100 -> 0 | I58: =+C1.5!I58/C1.5!I$8*100 -> 0 | J58: =+C1.5!J58/C1.5!J$8*100 -> 0 | K58: =+C1.5!K58/C1.5!K$8*100 -> 0 | L58: =+C1.5!L58/C1.5!L$8*100 -> 0 | M58: =+C1.5!M58/C1.5!M$8*100 -> 0 | N58: =+C1.5!N58/C1.5!N$8*100 -> 0 | O58: =+C1.5!O58/C1.5!O$8*100 -> 0.1147788905 | P58: =+C1.5!P58/C1.5!P$8*100 -> 0 | Q58: =+C1.5!Q58/C1.5!Q$8*100 -> 0 | R58: =IFERROR(C1.5!R58/C1.5!R$8*100,0) -> 0
A60: 1/ Ver detalle de coaliciones en los cuadros 3.4, 3.7, 3.8, 3.9, 3.10, 3.13 y 3.15.
A62: FUENTE: Tribunal Supremo de Elecciones.

Sheet G2.1
A4: GRÁFICO 2.1 PARTIDO ACCESIBILIDAD SIN EXCLUSIÓN: PORCENTAJE DE VOTOS VÁLIDOS RECIBIDOS
A5: PARA PRESIDENCIA Y VICEPRESIDENCIAS DE LA REPÚBLICA, POR AÑO ELECTORAL
A6: 2010 - 2018
A37: FUENTE: Cuadro 1.6

Sheet G2.2
A4: GRÁFICO 2.2 PARTIDO ACCIÓN CIUDADANA: PORCENTAJE DE VOTOS VÁLIDOS RECIBIDOS
A5: PARA PRESIDENCIA Y VICEPRESIDENCIAS DE LA REPÚBLICA, POR AÑO ELECTORAL
A6: 2002 - 2018
A36: FUENTE: Cuadro 1.6

Sheet G2.3
A4: GRÁFICO 2.3 PARTIDO DE LOS TRABAJADORES: PORCENTAJE DE VOTOS VÁLIDOS RECIBIDOS
A5: PARA PRESIDENCIA Y VICEPRESIDENCIAS DE LA REPÚBLICA, POR AÑO ELECTORAL
A6: 2014 - 2018
A37: FUENTE: Cuadro 1.6

Sheet G2.4
A4: GRÁFICO 2.4 PARTIDO FRENTE AMPLIO: PORCENTAJE DE VOTOS VÁLIDOS RECIBIDOS
A5: PARA PRESIDENCIA Y VICEPRESIDENCIAS DE LA REPÚBLICA, POR AÑO ELECTORAL
A6: 2010 - 2018
A37: FUENTE: Cuadro 1.6

Sheet G2.5
A4: GRÁFICO 2.5 PARTIDO INTEGRACIÓN NACIONAL: PORCENTAJE DE VOTOS VÁLIDOS RECIBIDOS
A5: PARA PRESIDENCIA Y VICEPRESIDENCIAS DE LA REPÚBLICA, POR AÑO ELECTORAL
A6: 1998 - 2018
A36: FUENTE: Cuadro 1.6

Sheet G2.6
A4: GRÁFICO 2.6 PARTIDO LIBERACIÓN NACIONAL: PORCENTAJE DE VOTOS VÁLIDOS RECIBIDOS
A5: PARA PRESIDENCIA Y VICEPRESIDENCIAS DE LA REPÚBLICA, POR AÑO ELECTORAL
A6: 1953 - 2018
A36: FUENTE: Cuadro 1.6

Sheet G2.7
A4: GRÁFICO 2.7 PARTIDO MOVIMIENTO LIBERTARIO: PORCENTAJE DE VOTOS VÁLIDOS RECIBIDOS
A5: PARA PRESIDENCIA Y VICEPRESIDENCIAS DE LA REPÚBLICA, POR AÑO ELECTORAL
A6: 1998 - 2018
A36: FUENTE: Cuadro 1.6

Sheet G2.8
A4: GRÁFICO 2.8 PARTIDO NUEVA GENERACIÓN: PORCENTAJE DE VOTOS VÁLIDOS RECIBIDOS
A5: PARA PRESIDENCIA Y VICEPRESIDENCIAS DE LA REPÚBLICA, POR AÑO ELECTORAL
A6: 2014 - 2018
A36: FUENTE: Cuadro 1.6

Sheet G2.9
A4: GRÁFICO 2.9 PARTIDO RENOVACIÓN COSTARRICENSE: PORCENTAJE DE VOTOS VÁLIDOS RECIBIDOS
A5: PARA PRESIDENCIA Y VICEPRESIDENCIAS DE LA REPÚBLICA, POR AÑO ELECTORAL
A6: 1998 - 2018
A36: FUENTE: Cuadro 1.6

Sheet G2.10
A4: GRÁFICO 2.10 PARTIDO RESTAURACIÓN NACIONAL: PORCENTAJE DE VOTOS VÁLIDOS RECIBIDOS
A5: PARA PRESIDENCIA Y VICEPRESIDENCIAS DE LA REPÚBLICA, POR AÑO ELECTORAL
A6: 2014 - 2018
A36: FUENTE: Cuadro 1.6

Sheet G2.11
A4: GRÁFICO 2.11 PARTIDO UNIDAD SOCIAL CRISTIANA: PORCENTAJE DE VOTOS VÁLIDOS RECIBIDOS
A5: PARA PRESIDENCIA Y VICEPRESIDENCIAS DE LA REPÚBLICA, POR AÑO ELECTORAL
A6: 1986 - 2018
A36: FUENTE: Cuadro 1.6

Sheet C3.1
A2: CUADRO 3.1 COSTA RICA: JUNTAS, ELECTORADO, VOTOS VÁLIDOS POR PARTIDO
A3: NULOS, BLANCOS Y ABSTENCIONISMO, POR PROVINCIA
A4: ELECCIONES PRESIDENCIALES 1953
A6: JUNTAS, ELECTORADO, VOTOS VÁLIDOS POR PARTIDO, NULOS, BLANCOS Y ABSTENCIONISMO | B6: COSTA RICA | C6: PROVINCIA
C7: SAN JOSÉ | D7: ALAJUELA | E7: CARTAGO | F7: HEREDIA | G7: GUANACASTE | H7: PUNTARENAS | I7: LIMÓN
A10: JUNTAS | B10: =SUM(C10:I10) -> 1729 | C10: 639 | D10: 339 | E10: 224 | F10: 113 | G10: 172 | H10: 176 | I10: 66
A12: ELECTORADO | B12: =SUM(C12:I12) -> 294016 | C12: 115548 | D12: 55335 | E12: 34979 | F12: 19657 | G12: 26792 | H12: 30419 | I12: 11286
A14: VOTOS RECIBIDOS | B14: 197489 | C14: =C17+C21+C23 -> 81559 | D14: =D17+D21+D23 -> 37841 | E14: 24397 | F14: 14605 | G14: 17118 | H14: 14912 | I14: 7057
A15: PARTICIPACIÓN 1/ | B15: =B14/B12*100 -> 67.16947377 | C15: =C14/C12*100 -> 70.58451899 | D15: 68.3852896 | E15: 69.74756282 | F15: 74.29923183 | G15: 63.89220663 | H15: 49.02199283 | I15: 62.52879674
A17: VOTOS VÁLIDOS | B17: 190768 | C17: =SUM(C18:C19) -> 79078 | D17: =SUM(D18:D19) -> 36315 | E17: 23628 | F17: 14099 | G17: 16455 | H17: 14398 | I17: 6795
A18: DEMÓCRATA | B18: =SUM(C18:I18) -> 67324 | C18: 28426 | D18: 11692 | E18: 5904 | F18: 5288 | G18: 6925 | H18: 5991 | I18: 3098
A19: LIBERACIÓN NACIONAL | B19: =SUM(C19:I19) -> 123444 | C19: 50652 | D19: 24623 | E19: 17724 | F19: 8811 | G19: 9530 | H19: 8407 | I19: 3697
A21: VOTOS NULOS | B21: 2330 | C21: 741 | D21: 513 | E21: 309 | F21: 164 | G21: 320 | H21: 208 | I21: 75
A23: VOTOS BLANCOS | B23: 4391 | C23: 1740 | D23: 1013 | E23: 460 | F23: 342 | G23: 343 | H23: 306 | I23: 187
A25: ABSTENCIONISMO | B25: 96527 | C25: 33989 | D25: 17494 | E25: 10582 | F25: 5052 | G25: 9674 | H25: 15507 | I25: 4229
B26: =B25/B12*100 -> 32.83052623 | C26: =C25/C12*100 -> 29.41548101 | D26: 31.6147104 | E26: 30.25243718 | F26: 25.70076817 | G26: 36.10779337 | H26: 50.97800717 | I26: 37.47120326
A29: 1/ El porcentaje de participación se calcula dividiendo la cantidad de votos recibidos entre el electorado inscrito.
A31: Presidente: José Figueres Ferrer.
A32: Primer Vicepresidente: Raúl Blanco Cervantes.
A33: Segundo Vicepresidente: Fernando Esquivel Bonilla.
A35: FUENTE: Tribunal Supremo de Elecciones.

Sheet G3.1
A2: GRÁFICO 3.1 COSTA RICA: PORCENTAJE DE VOTOS VÁLIDOS POR PARTIDO
A3: ELECCIONES PRESIDENCIALES 1953
A9: LIBERACIÓN NACIONAL | B9: 123444
A10: DEMÓCRATA | B10: 67324
A36: FUENTE: Cuadro 3.1

Sheet C3.2
A2: CUADRO 3.2 COSTA RICA: JUNTAS, ELECTORADO, VOTOS VÁLIDOS POR PARTIDO
A3: NULOS, BLANCOS Y ABSTENCIONISMO, POR PROVINCIA
A4: ELECCIONES PRESIDENCIALES 1958
A6: JUNTAS, ELECTORADO, VOTOS VÁLIDOS POR PARTIDO, NULOS, BLANCOS Y ABSTENCIONISMO | B6: COSTA RICA | C6: PROVINCIA
C7: SAN JOSÉ | D7: ALAJUELA | E7: CARTAGO | F7: HEREDIA | G7: GUANACASTE | H7: PUNTARENAS | I7: LIMÓN
A10: JUNTAS | B10: =SUM(C10:I10) -> 1985 | C10: 764 | D10: 364 | E10: 234 | F10: 131 | G10: 195 | H10: 214 | I10: 83
A12: ELECTORADO | B12: =SUM(C12:I12) -> 354779 | C12: 142338 | D12: 64212 | E12: 40607 | F12: 23842 | G12: 32300 | H12: 36785 | I12: 14695
A14: VOTOS RECIBIDOS | B14: =SUM(C14:I14) -> 229543 | C14: =+C17+C22+C24 -> 93193 | D14: 43744 | E14: 27227 | F14: 16762 | G14: 21138 | H14: 18418 | I14: 9061
A15: PARTICIPACIÓN 1/ | B15: =B14/B12*100 -> 64.7002782 | C15: =C14/C12*100 -> 65.47302899 | D15: 68.12433813 | E15: 67.05001601 | F15: 70.30450466 | G15: 65.44272446 | H15: 50.06932173 | I15: 61.66042872
A17: VOTOS VÁLIDOS | B17: =SUM(C17:I17) -> 221549 | C17: =SUM(C18:C20) -> 90586 | D17: 42131 | E17: 26189 | F17: 16177 | G17: 20127 | H17: 17610 | I17: 8729
A18: INDEPENDIENTE | B18: =SUM(C18:I18) -> 23910 | C18: 10381 | D18: 2651 | E18: 5859 | F18: 1540 | G18: 1707 | H18: 1159 | I18: 613
A19: LIBERACIÓN NACIONAL | B19: =SUM(C19:I19) -> 94788 | C19: 35831 | D19: 21381 | E19: 10610 | F19: 7264 | G19: 9400 | H19: 6906 | I19: 3396
A20: UNIÓN NACIONAL | B20: =SUM(C20:I20) -> 102851 | C20: 44374 | D20: 18099 | E20: 9720 | F20: 7373 | G20: 9020 | H20: 9545 | I20: 4720
A22: VOTOS NULOS | B22: =SUM(C22:I22) -> 3981 | C22: 1346 | D22: 725 | E22: 464 | F22: 390 | G22: 532 | H22: 397 | I22: 127
A24: VOTOS BLANCOS | B24: =SUM(C24:I24) -> 4013 | C24: 1261 | D24: 888 | E24: 574 | F24: 195 | G24: 479 | H24: 411 | I24: 205
A26: ABSTENCIONISMO | B26: =SUM(C26:I26) -> 125236 | C26: =+C12-C14 -> 49145 | D26: 20468 | E26: 13380 | F26: 7080 | G26: 11162 | H26: 18367 | I26: 5634
B27: =B26/B12*100 -> 35.2997218 | C27: =C26/C12*100 -> 34.52697101 | D27: 31.87566187 | E27: 32.94998399 | F27: 29.69549534 | G27: 34.55727554 | H27: 49.93067827 | I27: 38.33957128
A30: 1/ El porcentaje de participación se calcula dividiendo la cantidad de votos recibidos entre el electorado inscrito.
A32: Presidente: Mario Echandi Jiménez.
A33: Primer Vicepresidente: José Joaquín Peralta Esquivel.
A34: Segundo Vicepresidente: Abelardo Bonilla Baldares.
A36: FUENTE: Tribunal Supremo de Elecciones.

Sheet G3.2
A2: GRÁFICO 3.2 COSTA RICA: PORCENTAJE DE VOTOS VÁLIDOS POR PARTIDO
A3: ELECCIONES PRESIDENCIALES 1958
A9: UNIÓN NACIONAL | B9: 102851
A10: LIBERACIÓN NACIONAL | B10: 94788
A11: INDEPENDIENTE | B11: 23910
A36: FUENTE: Cuadro 3.2.

Sheet C3.3
A2: CUADRO 3.3 COSTA RICA: JUNTAS, ELECTORADO, VOTOS VÁLIDOS POR PARTIDO
A3: NULOS, BLANCOS Y ABSTENCIONISMO, POR PROVINCIA
A4: ELECCIONES PRESIDENCIALES 1962
A6: JUNTAS, ELECTORADO, VOTOS VÁLIDOS POR PARTIDO, NULOS, BLANCOS Y ABSTENCIONISMO | B6: COSTA RICA | C6: PROVINCIA
C7: SAN JOSÉ | D7: ALAJUELA | E7: CARTAGO | F7: HEREDIA | G7: GUANACASTE | H7: PUNTARENAS | I7: LIMÓN
A10: JUNTAS | B10: =SUM(C10:I10) -> 2645 | C10: 1026 | D10: 483 | E10: 311 | F10: 179 | G10: 260 | H10: 272 | I10: 114
A12: ELECTORADO | B12: =SUM(C12:I12) -> 483980 | C12: 194296 | D12: 86155 | E12: 56670 | F12: 33789 | G12: 43842 | H12: 48447 | I12: 20781
A14: VOTOS RECIBIDOS | B14: =SUM(C14:I14) -> 391406 | C14: =+C17+C23+C25 -> 160152 | D14: 72392 | E14: 48174 | F14: 28932 | G14: 34067 | H14: 32199 | I14: 15490
A15: PARTICIPACIÓN 1/ | B15: =B14/B12*100 -> 80.8723501 | C15: =C14/C12*100 -> 82.4268127 | D15: 84.02530323 | E15: 85.00794071 | F15: 85.62549942 | G15: 77.7040281 | H15: 66.46231965 | I15: 74.53924258
A17: VOTOS VÁLIDOS | B17: =SUM(C17:I17) -> 383462 | C17: =SUM(C18:C21) -> 157378 | D17: 70993 | E17: 47217 | F17: 28396 | G17: 33045 | H17: 31307 | I17: 15126
A18: ACCIÓN DEMOCRÁTICA POPULAR | B18: =SUM(C18:I18) -> 3339 | C18: 1427 | D18: 399 | E18: 229 | F18: 318 | G18: 184 | H18: 624 | I18: 158
A19: LIBERACIÓN NACIONAL | B19: =SUM(C19:I19) -> 192850 | C19: 77222 | D19: 36821 | E19: 26764 | F19: 13524 | G19: 17962 | H19: 13756 | I19: 6801
A20: REPUBLICANO | B20: =SUM(C20:I20) -> 135533 | C20: 57772 | D20: 20937 | E20: 14534 | F20: 11016 | G20: 11018 | H20: 13196 | I20: 7060
A21: UNIÓN NACIONAL | B21: =SUM(C21:I21) -> 51740 | C21: 20957 | D21: 12836 | E21: 5690 | F21: 3538 | G21: 3881 | H21: 3731 | I21: 1107
A23: VOTOS NULOS | B23: =SUM(C23:I23) -> 5020 | C23: 1727 | D23: 852 | E23: 613 | F23: 322 | G23: 658 | H23: 592 | I23: 256
A25: VOTOS BLANCOS | B25: =SUM(C25:I25) -> 2924 | C25: 1047 | D25: 547 | E25: 344 | F25: 214 | G25: 364 | H25: 300 | I25: 108
A27: ABSTENCIONISMO | B27: =SUM(C27:I27) -> 92574 | C27: =+C12-C14 -> 34144 | D27: 13763 | E27: 8496 | F27: 4857 | G27: 9775 | H27: 16248 | I27: 5291
B28: =B27/B12*100 -> 19.1276499 | C28: =C27/C12*100 -> 17.5731873 | D28: 15.97469677 | E28: 14.99205929 | F28: 14.37450058 | G28: 22.2959719 | H28: 33.53768035 | I28: 25.46075742
A31: 1/ El porcentaje de participación se calcula dividiendo la cantidad de votos recibidos entre el electorado inscrito.
A33: Presidente: Francisco José Orlich Bolmarcich.
A34: Primer Vicepresidente: Raúl Blanco Cervantes.
A35: Segundo Vicepresidente: Carlos Sáenz Herrera.
A37: FUENTE: Tribunal Supremo de Elecciones.

Sheet G3.3
A2: GRÁFICO 3.3 COSTA RICA: PORCENTAJE DE VOTOS VÁLIDOS POR PARTIDO
A3: ELECCIONES PRESIDENCIALES 1962
A9: LIBERACIÓN NACIONAL | B9: 192850
A10: REPUBLICANO | B10: 135533
A11: UNIÓN NACIONAL | B11: 51740
A12: ACCIÓN DEMOCRÁTICA POPULAR | B12: 3339
A36: FUENTE: Cuadro 3.3.

Sheet C3.4
A2: CUADRO 3.4 COSTA RICA: JUNTAS, ELECTORADO, VOTOS VÁLIDOS POR PARTIDO
A3: NULOS, BLANCOS Y ABSTENCIONISMO, POR PROVINCIA
A4: ELECCIONES PRESIDENCIALES 1966
A6: JUNTAS, ELECTORADO, VOTOS VÁLIDOS POR PARTIDO, NULOS, BLANCOS Y ABSTENCIONISMO | B6: COSTA RICA | C6: PROVINCIA
C7: SAN JOSÉ | D7: ALAJUELA | E7: CARTAGO | F7: HEREDIA | G7: GUANACASTE | H7: PUNTARENAS | I7: LIMÓN
A10: JUNTAS | B10: =SUM(C10:I10) -> 3015 | C10: 1156 | D10: 543 | E10: 349 | F10: 205 | G10: 312 | H10: 319 | I10: 131
A12: ELECTORADO | B12: =SUM(C12:I12) -> 554627 | C12: 221032 | D12: 98569 | E12: 63937 | F12: 39310 | G12: 52337 | H12: 55421 | I12: 24021
A14: VOTOS RECIBIDOS | B14: =SUM(C14:I14) -> 451490 | C14: =+C17+C21+C23 -> 180883 | D14: 83901 | E14: 52953 | F14: 33714 | G14: 43198 | H14: 39881 | I14: 16960
A15: PARTICIPACIÓN 1/ | B15: =B14/B12*100 -> 81.40425908 | C15: =C14/C12*100 -> 81.8356618 | D15: 85.11905366 | E15: 82.82058902 | F15: 85.76443653 | G15: 82.53816612 | H15: 71.96008733 | I15: 70.60488739
A17: VOTOS VÁLIDOS | B17: =SUM(C17:I17) -> 441400 | C17: =SUM(C18:C19) -> 177570 | D17: 81894 | E17: 51581 | F17: 33117 | G17: 41957 | H17: 38762 | I17: 16519
A18: LIBERACIÓN NACIONAL | B18: =SUM(C18:I18) -> 218590 | C18: 89386 | D18: 40059 | E18: 26532 | F18: 16167 | G18: 21801 | H18: 17160 | I18: 7485
A19: UNIFICACIÓN NACIONAL 2/ | B19: =SUM(C19:I19) -> 222810 | C19: 88184 | D19: 41835 | E19: 25049 | F19: 16950 | G19: 20156 | H19: 21602 | I19: 9034
A21: VOTOS NULOS | B21: =SUM(C21:I21) -> 6265 | C21: 2147 | D21: 1206 | E21: 842 | F21: 345 | G21: 756 | H21: 687 | I21: 282
A23: VOTOS BLANCOS | B23: =SUM(C23:I23) -> 3825 | C23: 1166 | D23: 801 | E23: 530 | F23: 252 | G23: 485 | H23: 432 | I23: 159
A25: ABSTENCIONISMO | B25: =SUM(C25:I25) -> 103137 | C25: =+C12-C14 -> 40149 | D25: 14668 | E25: 10984 | F25: 5596 | G25: 9139 | H25: 15540 | I25: 7061
B26: =B25/B12*100 -> 18.59574092 | C26: =C25/C12*100 -> 18.1643382 | D26: 14.88094634 | E26: 17.17941098 | F26: 14.23556347 | G26: 17.46183388 | H26: 28.03991267 | I26: 29.39511261
A29: 1/ El porcentaje de participación se calcula dividiendo la cantidad de votos recibidos entre el electorado inscrito.
A30: 2/ Coalición de los partidos Republicano y Unión Nacional.
A32: Presidente:José Joaquín Trejos Fernández.
A33: Primer Vicepresidente: Jorge Vega Rodríguez.
A34: Segundo Vicepresidente: Virgilio Calvo Sánchez.
A36: FUENTE: Tribunal Supremo de Elecciones.

Sheet G3.4
A2: GRÁFICO 3.4 COSTA RICA: PORCENTAJE DE VOTOS VÁLIDOS POR PARTIDO
A3: ELECCIONES PRESIDENCIALES 1966
A9: UNIFICACIÓN NACIONAL | B9: 222810
A10: LIBERACIÓN NACIONAL | B10: 218590
A36: FUENTE: Cuadro 3.4.

Sheet C3.5
A2: CUADRO 3.5 COSTA RICA: JUNTAS, ELECTORADO, VOTOS VÁLIDOS POR PARTIDO
A3: NULOS, BLANCOS Y ABSTENCIONISMO, POR PROVINCIA
A4: ELECCIONES PRESIDENCIALES 1970
A6: JUNTAS, ELECTORADO, VOTOS VÁLIDOS POR PARTIDO, NULOS, BLANCOS Y ABSTENCIONISMO | B6: COSTA RICA | C6: PROVINCIA
C7: SAN JOSÉ | D7: ALAJUELA | E7: CARTAGO | F7: HEREDIA | G7: GUANACASTE | H7: PUNTARENAS | I7: LIMÓN
A10: JUNTAS | B10: =SUM(C10:I10) -> 3638 | C10: 1421 | D10: 651 | E10: 404 | F10: 248 | G10: 359 | H10: 389 | I10: 166
A12: ELECTORADO | B12: =SUM(C12:I12) -> 675285 | C12: 272017 | D12: 117552 | E12: 75458 | F12: 46907 | G12: 62587 | H12: 68885 | I12: 31879
A14: VOTOS RECIBIDOS | B14: =SUM(C14:I14) -> 562766 | C14: =+C17+C24+C26 -> 228021 | D14: 101094 | E14: 64903 | F14: 40646 | G14: 52362 | H14: 52925 | I14: 22815
A15: PARTICIPACIÓN 1/ | B15: =B14/B12*100 -> 83.33755377 | C15: =C14/C12*100 -> 83.82601087 | D15: 85.99938751 | E15: 86.01208619 | F15: 86.65231202 | G15: 83.66274146 | H15: 76.83095013 | I15: 71.56748957
A17: VOTOS VÁLIDOS | B17: =SUM(C17:I17) -> 540045 | C17: =SUM(C18:C22) -> 220165 | D17: 97404 | E17: 61975 | F17: 39291 | G17: 49995 | H17: 49994 | I17: 21221
A18: LIBERACIÓN NACIONAL | B18: 295883 | C18: 121285 | D18: 53141 | E18: 36908 | F18: 20558 | G18: 28513 | H18: 25272 | I18: 10206
A19: DEMÓCRATA CRISTIANO | B19: 5015 | C19: 2881 | D19: 560 | E19: 512 | F19: 603 | G19: 196 | H19: 199 | I19: 64
A20: FRENTE NACIONAL | B20: 9554 | C20: 3891 | D20: 1992 | E20: 938 | F20: 789 | G20: 697 | H20: 876 | I20: 371
A21: ACCIÓN SOCIALISTA | B21: 7221 | C21: 3464 | D21: 649 | E21: 552 | F21: 501 | G21: 330 | H21: 1219 | I21: 506
A22: UNIFICACIÓN NACIONAL | B22: 222372 | C22: 88644 | D22: 41062 | E22: 23065 | F22: 16840 | G22: 20259 | H22: 22428 | I22: 10074
A24: VOTOS NULOS | B24: =SUM(C24:I24) -> 18153 | C24: 6337 | D24: 2771 | E24: 2355 | F24: 994 | G24: 1921 | H24: 2421 | I24: 1354
D25: 919 | E25: 573 | F25: 361 | G25: 446 | H25: 510 | I25: 240
A26: VOTOS BLANCOS | B26: =SUM(C26:I26) -> 4568 | C26: 1519 | D26: 919 | E26: 573 | F26: 361 | G26: 446 | H26: 510 | I26: 240
A28: ABSTENCIONISMO | B28: =SUM(C28:I28) -> 112519 | C28: =+C12-C14 -> 43996 | D28: 16458 | E28: 10555 | F28: 6261 | G28: 10225 | H28: 15960 | I28: 9064
B29: =B28/B12*100 -> 16.66244623 | C29: =C28/C12*100 -> 16.17398913 | D29: 14.00061249 | E29: 13.98791381 | F29: 13.34768798 | G29: 16.33725854 | H29: 23.16904987 | I29: 28.43251043
A32: 1/ El porcentaje de participación se calcula dividiendo la cantidad de votos recibidos entre el electorado inscrito.
A34: Presidente: José Figueres Ferrer.
A35: Primer Vicepresidente: Manuel Aguilar Bonilla.
A36: Segundo Vicepresidente: Jorge Rossi Chavarria.
A38: FUENTE: Tribunal Supremo de Elecciones.

Sheet G3.5
A2: GRÁFICO 3.5 COSTA RICA: PORCENTAJE DE VOTOS VÁLIDOS POR PARTIDO
A3: ELECCIONES PRESIDENCIALES 1970
A9: LIBERACIÓN NACIONAL | B9: 295883
A10: UNIFICACIÓN NACIONAL | B10: 222372
A11: FRENTE NACIONAL | B11: 9554
A12: ACCIÓN SOCIALISTA | B12: 7221
A13: DEMÓCRATA CRISTIANO | B13: 5015
A36: FUENTE: Cuadro 3.5.

Sheet C3.6
A2: CUADRO 3.6 COSTA RICA: JUNTAS, ELECTORADO, VOTOS VÁLIDOS POR PARTIDO
A3: NULOS, BLANCOS Y ABSTENCIONISMO, POR PROVINCIA
A4: ELECCIONES PRESIDENCIALES 1974
A6: JUNTAS, ELECTORADO, VOTOS VÁLIDOS POR PARTIDO, NULOS, BLANCOS Y ABSTENCIONISMO | B6: COSTA RICA | C6: PROVINCIA
C7: SAN JOSÉ | D7: ALAJUELA | E7: CARTAGO | F7: HEREDIA | G7: GUANACASTE | H7: PUNTARENAS | I7: LIMÓN
A10: JUNTAS | B10: =SUM(C10:I10) -> 4815 | C10: 1868 | D10: 846 | E10: 507 | F10: 339 | G10: 459 | H10: 538 | I10: 258
A12: ELECTORADO | B12: =SUM(C12:I12) -> 875041 | C12: 355065 | D12: 149605 | E12: 93728 | F12: 64421 | G12: 76597 | H12: 88496 | I12: 47129
A14: VOTOS RECIBIDOS | B14: =SUM(C14:I14) -> 699340 | C14: =+C17+C27+C29 -> 285558 | D14: 122917 | E14: 77446 | F14: 52561 | G14: 62596 | H14: 65414 | I14: 32848
A15: PARTICIPACIÓN 1/ | B15: =B14/B12*100 -> 79.92082657 | C15: =C14/C12*100 -> 80.42414769 | D15: 82.16102403 | E15: 82.62845681 | F15: 81.58985424 | G15: 81.72121624 | H15: 73.9174652 | I15: 69.69806276
A17: VOTOS VÁLIDOS | B17: =SUM(C17:I17) -> 678157 | C17: =SUM(C18:C25) -> 279454 | D17: 119222 | E17: 74831 | F17: 51359 | G17: 59273 | H17: 62660 | I17: 31358
A18: ACCIÓN SOCIALISTA | B18: =SUM(C18:I18) -> 16081 | C18: 5487 | D18: 1352 | E18: 1114 | F18: 1285 | G18: 1168 | H18: 3443 | I18: 2232
A19: DEMÓCRATA | B19: 18832 | C19: 10633 | D19: 2014 | E19: 2027 | F19: 1561 | G19: 450 | H19: 1394 | I19: 753
A20: DEMÓCRATA CRISTIANO | B20: 3461 | C20: 1264 | D20: 418 | E20: 468 | F20: 371 | G20: 463 | H20: 323 | I20: 154
A21: LIBERACIÓN NACIONAL | B21: 294609 | C21: 119222 | D21: 54385 | E21: 32652 | F21: 22055 | G21: 29390 | H21: 24737 | I21: 12168
A22: NACIONAL INDEPENDIENTE | B22: 73788 | C22: 25122 | D22: 14953 | E22: 11873 | F22: 5671 | G22: 6826 | H22: 6913 | I22: 2430
A23: RENOVACIÓN DEMOCRÁTICA | B23: 61820 | C23: 34127 | D23: 11657 | E23: 4380 | F23: 4880 | G23: 2877 | H23: 2822 | I23: 1077
A24: SOCIALISTA COSTARRICENSE | B24: 3417 | C24: 1467 | D24: 596 | E24: 352 | F24: 202 | G24: 322 | H24: 302 | I24: 176
A25: UNIFICACIÓN NACIONAL | B25: 206149 | C25: 82132 | D25: 33847 | E25: 21965 | F25: 15334 | G25: 17777 | H25: 22726 | I25: 12368
A27: VOTOS NULOS | B27: =SUM(C27:I27) -> 16160 | C27: 4694 | D27: 2703 | E27: 2024 | F27: 839 | G27: 2610 | H27: 2140 | I27: 1150
A29: VOTOS BLANCOS | B29: =SUM(C29:I29) -> 5023 | C29: 1410 | D29: 992 | E29: 591 | F29: 363 | G29: 713 | H29: 614 | I29: 340
A31: ABSTENCIONISMO | B31: =SUM(C31:I31) -> 175701 | C31: =+C12-C14 -> 69507 | D31: 26688 | E31: 16282 | F31: 11860 | G31: 14001 | H31: 23082 | I31: 14281
B32: =B31/B12*100 -> 20.07917343 | C32: =C31/C12*100 -> 19.57585231 | D32: 17.83897597 | E32: 17.37154319 | F32: 18.41014576 | G32: 18.27878376 | H32: 26.0825348 | I32: 30.30193724
A35: 1/ El porcentaje de participación se calcula dividiendo la cantidad de votos recibidos entre el electorado inscrito.
A37: Presidente: Daniel Oduber Quiros.
A38: Primer Vicepresidente: Carlos Manuel Castillo Morales.
A39: Segundo Vicepresidente: Fernando Guzmán Mata.
A41: FUENTE: Tribunal Supremo de Elecciones.

Sheet G3.6
A2: GRÁFICO 3.6 COSTA RICA: PORCENTAJE DE VOTOS VÁLIDOS, POR PARTIDO
A3: ELECCIONES PRESIDENCIALES 1974
A8: SOCIALISTA COSTARRICENSE | B8: 3417 | C8: =+B8/$B$22 -> 0.00503865624
A9: DEMÓCRATA CRISTIANO | B9: 3461 | C9: =+B9/$B$22 -> 0.005103537971
A10: ACCIÓN SOCIALISTA | B10: 16081 | C10: 0.02371279807
A11: DEMÓCRATA | B11: 18832 | C11: 0.02776938084
A12: RENOVACIÓN DEMOCRÁTICA | B12: 61820 | C12: 0.09115883195
A13: NACIONAL INDEPENDIENTE | B13: 73788 | C13: 0.1088066628
A14: UNIFICACIÓN NACIONAL | B14: 206149 | C14: 0.3039841807
A15: LIBERACIÓN NACIONAL | B15: 294609 | C15: 0.4344259515
B22: =SUM(B8:B21) -> 678157
A40: FUENTE: Cuadro 3.6.

Sheet C3.7
A2: CUADRO 3.7 COSTA RICA: JUNTAS, ELECTORADO, VOTOS VÁLIDOS POR PARTIDO
A3: NULOS, BLANCOS Y ABSTENCIONISMO, POR PROVINCIA
A4: ELECCIONES PRESIDENCIALES 1978
A6: JUNTAS, ELECTORADO, VOTOS VÁLIDOS POR PARTIDO, NULOS, BLANCOS Y ABSTENCIONISMO | B6: COSTA RICA | C6: PROVINCIA
C7: SAN JOSÉ | D7: ALAJUELA | E7: CARTAGO | F7: HEREDIA | G7: GUANACASTE | H7: PUNTARENAS | I7: LIMÓN
A10: JUNTAS | B10: =SUM(C10:I10) -> 5097 | C10: 1969 | D10: 892 | E10: 532 | F10: 378 | G10: 478 | H10: 571 | I10: 277
A12: ELECTORADO | B12: =SUM(C12:I12) -> 1058455 | C12: 430399 | D12: 180198 | E12: 112242 | F12: 82020 | G12: 88451 | H12: 106703 | I12: 58442
A14: VOTOS RECIBIDOS | B14: =SUM(C14:I14) -> 860206 | C14: =+C17+C27+C29 -> 350089 | D14: 152756 | E14: 92435 | F14: 69152 | G14: 74080 | H14: 80909 | I14: 40785
A15: PARTICIPACIÓN 1/ | B15: =B14/B12*100 -> 81.26996424 | C15: =C14/C12*100 -> 81.34057003 | D15: 84.77119613 | E15: 82.35330803 | F15: 84.31114362 | G15: 83.75258618 | H15: 75.82635915 | I15: 69.78713939
A17: VOTOS VÁLIDOS | B17: =SUM(C17:I17) -> 831141 | C17: =SUM(C18:C25) -> 341021 | D17: 148238 | E17: 88627 | F17: 67438 | G17: 70696 | H17: 76741 | I17: 38380
A18: DEMOCRÁTA | B18: =SUM(C18:I18) -> 1613 | C18: 498 | D18: 217 | E18: 263 | F18: 73 | G18: 183 | H18: 244 | I18: 135
A19: INDEPENDIENTE | B19: 3822 | C19: 1403 | D19: 547 | E19: 542 | F19: 264 | G19: 327 | H19: 467 | I19: 272
A20: LIBERACIÓN NACIONAL | B20: 364285 | C20: 144627 | D20: 67708 | E20: 41933 | F20: 29789 | G20: 32650 | H20: 32874 | I20: 14704
A21: NACIONAL INDEPENDIENTE | B21: 3323 | C21: 1240 | D21: 436 | E21: 489 | F21: 186 | G21: 266 | H21: 443 | I21: 263
A22: ORGANIZACIÓN SOCIALISTA DE LOS TRABAJADORES | B22: 1868 | C22: 764 | D22: 216 | E22: 177 | F22: 111 | G22: 191 | H22: 238 | I22: 171
A23: PUEBLO UNIDO 2/ | B23: 22740 | C23: 9869 | D23: 2316 | E23: 1797 | F23: 1939 | G23: 1012 | H23: 3544 | I23: 2263
A24: UNIDAD 3/ | B24: 419824 | C24: 177688 | D24: 75074 | E24: 41772 | F24: 34476 | G24: 34852 | H24: 36801 | I24: 19161
A25: UNIFICACIÓN NACIONAL | B25: 13666 | C25: 4932 | D25: 1724 | E25: 1654 | F25: 600 | G25: 1215 | H25: 2130 | I25: 1411
A27: VOTOS NULOS | B27: =SUM(C27:I27) -> 23691 | C27: 7411 | D27: 3493 | E27: 3216 | F27: 1350 | G27: 2731 | H27: 3457 | I27: 2033
A29: VOTOS BLANCOS | B29: =SUM(C29:I29) -> 5374 | C29: 1657 | D29: 1025 | E29: 592 | F29: 364 | G29: 653 | H29: 711 | I29: 372
A31: ABSTENCIONISMO | B31: =SUM(C31:I31) -> 198249 | C31: =+C12-C14 -> 80310 | D31: 27442 | E31: 19807 | F31: 12868 | G31: 14371 | H31: 25794 | I31: 17657
B32: =B31/B12*100 -> 18.73003576 | C32: =C31/C12*100 -> 18.65942997 | D32: 15.22880387 | E32: 17.64669197 | F32: 15.68885638 | G32: 16.24741382 | H32: 24.17364085 | I32: 30.21286061
A35: 1/ El porcentaje de participación se calcula dividiendo la cantidad de votos recibidos entre el electorado inscrito.
A36: 2/ Coalición de los partidos Vanguardia Popular, Socialista Costarricense y de los Trabajadores.
A37: 3/ Coalición de los partidos Renovación, Republicano Calderonista, Unión Popular y Demócrata Cristiano.
A39: Presidente: Rodrigo Carazo Odio.
A40: Primer Vicepresidente: Rodrigo Altmann Ortíz.
A41: Segundo Vicepresidente: José Miguel Alfaro Rodríguez.
A43: FUENTE: Tribunal Supremo de Elecciones.

Sheet G3.7
A2: GRÁFICO 3.7 COSTA RICA: PORCENTAJE DE VOTOS VÁLIDOS, POR PARTIDO
A3: ELECCIONES PRESIDENCIALES 1978
A8: DEMOCRÁTA | B8: 1613 | C8: =+B8/$B$22 -> 0.001940705608
A9: ORGANIZACIÓN SOCIALISTA DE LOS TRABAJADORES | B9: 1868 | C9: =+B9/$B$22 -> 0.002247512757
A10: NACIONAL INDEPENDIENTE | B10: 3323 | C10: 0.003998118249
A11: INDEPENDIENTE | B11: 3822 | C11: 0.004598497728
A12: UNIFICACIÓN NACIONAL | B12: 13666 | C12: 0.01644245682
A13: PUEBLO UNIDO | B13: 22740 | C13: 0.02735997863
A14: LIBERACIÓN NACIONAL | B14: 364285 | C14: 0.4382950667
A15: UNIDAD | B15: 419824 | C15: 0.5051176635
B22: =SUM(B8:B21) -> 831141
A40: FUENTE: Cuadro 3.7.

Sheet C3.8
A2: CUADRO 3.8 COSTA RICA: JUNTAS, ELECTORADO, VOTOS VÁLIDOS POR PARTIDO
A3: NULOS, BLANCOS Y ABSTENCIONISMO, POR PROVINCIA
A4: ELECCIONES PRESIDENCIALES 1982
A6: JUNTAS, ELECTORADO, VOTOS VÁLIDOS POR PARTIDO, NULOS, BLANCOS Y ABSTENCIONISMO | B6: COSTA RICA | C6: PROVINCIA
C7: SAN JOSÉ | D7: ALAJUELA | E7: CARTAGO | F7: HEREDIA | G7: GUANACASTE | H7: PUNTARENAS | I7: LIMÓN
A10: JUNTAS | B10: =SUM(C10:I10) -> 5638 | C10: 2174 | D10: 988 | E10: 586 | F10: 438 | G10: 513 | H10: 614 | I10: 325
A12: ELECTORADO | B12: =SUM(C12:I12) -> 1261127 | C12: 510151 | D12: 216916 | E12: 133742 | F12: 101399 | G12: 100840 | H12: 124387 | I12: 73692
A14: VOTOS RECIBIDOS | B14: =SUM(C14:I14) -> 991679 | C14: =C17+C25+C27 -> 403394 | D14: 176392 | E14: 108814 | F14: 82253 | G14: 81327 | H14: 89652 | I14: 49847
A15: PARTICIPACIÓN 1/ | B15: =B14/B12*100 -> 78.63434848 | C15: =C14/C12*100 -> 79.0734508 | D15: 81.31811392 | E15: 81.36112814 | F15: 81.11815698 | G15: 80.64954383 | H15: 72.07505607 | I15: 67.64234924
A17: VOTOS VÁLIDOS | B17: =SUM(C17:I17) -> 966576 | C17: =SUM(C18:C23) -> 395778 | D17: 172080 | E17: 106076 | F17: 80624 | G17: 78531 | H17: 86096 | I17: 47391
A18: DEMÓCRATA | B18: 1747 | C18: 572 | D18: 264 | E18: 203 | F18: 121 | G18: 146 | H18: 270 | I18: 171
A19: INDEPENDIENTE | B19: 1955 | C19: 622 | D19: 280 | E19: 274 | F19: 120 | G19: 149 | H19: 245 | I19: 265
A20: LIBERACIÓN NACIONAL | B20: 568374 | C20: 230958 | D20: 102324 | E20: 65676 | F20: 45976 | G20: 47699 | H20: 50215 | I20: 25526
A21: MOVIMIENTO NACIONAL | B21: 37127 | C21: 20973 | D21: 4745 | E21: 2858 | F21: 2120 | G21: 1899 | H21: 2835 | I21: 1697
A22: PUEBLO UNIDO 3/ | B22: 32186 | C22: 14030 | D22: 3441 | E22: 2259 | F22: 2999 | G22: 1436 | H22: 4323 | I22: 3698
A23: UNIDAD 2/ | B23: 325187 | C23: 128623 | D23: 61026 | E23: 34806 | F23: 29288 | G23: 27202 | H23: 28208 | I23: 16034
A25: VOTOS NULOS | B25: =SUM(C25:I25) -> 20241 | C25: 6144 | D25: 3367 | E25: 2205 | F25: 1310 | G25: 2317 | H25: 2908 | I25: 1990
A27: VOTOS BLANCOS | B27: =SUM(C27:I27) -> 4862 | C27: 1472 | D27: 945 | E27: 533 | F27: 319 | G27: 479 | H27: 648 | I27: 466
A29: ABSTENCIONISMO | B29: =SUM(C29:I29) -> 269448 | C29: =C12-C14 -> 106757 | D29: 40524 | E29: 24928 | F29: 19146 | G29: 19513 | H29: 34735 | I29: 23845
B30: =B29/B12*100 -> 21.36565152 | C30: =C29/C12*100 -> 20.9265492 | D30: 18.68188608 | E30: 18.63887186 | F30: 18.88184302 | G30: 19.35045617 | H30: 27.92494393 | I30: 32.35765076
A33: 1/ El porcentaje de participación se calcula dividiendo la cantidad de votos recibidos entre el electorado inscrito.
A34: 2/ Coalición de los partidos Renovación Democrática, Republicano Calderonista, Unión Popular y Demócrata Cristiano.
A35: 3/ Coalición de los partidos Vanguardia Popular, Socialista Costarricense y De los Trabajadores.
A37: Presidente: Luis Alberto Monge Alvárez.
A38: Primer Vicepresidente: Alberto Fait Lizano.
A39: Segundo Vicepresidente: Armando Arauz Aguilar.
A41: FUENTE: Tribunal Supremo de Elecciones.

Sheet G3.8
A2: GRÁFICO 3.8 COSTA RICA: PORCENTAJE DE VOTOS VÁLIDOS, POR PARTIDO
A3: ELECCIONES PRESIDENCIALES 1982
A8: DEMÓCRATA | B8: 1747 | C8: =+B8/$B$22 -> 0.001807410902
A9: INDEPENDIENTE | B9: 1955 | C9: =+B9/$B$22 -> 0.002022603499
A10: PUEBLO UNIDO | B10: 32186 | C10: 0.03329898528
A11: MOVIMIENTO NACIONAL | B11: 37127 | C11: 0.03841084405
A12: UNIDAD | B12: 325187 | C12: 0.3364318998
A13: LIBERACIÓN NACIONAL | B13: 568374 | C13: 0.5880282564
B22: =SUM(B8:B21) -> 966576
A40: FUENTE: Cuadro 3.8.

Sheet C3.9
A2: CUADRO 3.9 COSTA RICA: JUNTAS, ELECTORADO, VOTOS VÁLIDOS POR PARTIDO
A3: NULOS, BLANCOS Y ABSTENCIONISMO, POR PROVINCIA
A4: ELECCIONES PRESIDENCIALES 1986
A6: JUNTAS, ELECTORADO, VOTOS VÁLIDOS POR PARTIDO, NULOS, BLANCOS Y ABSTENCIONISMO | B6: COSTA RICA | C6: PROVINCIA
C7: SAN JOSÉ | D7: ALAJUELA | E7: CARTAGO | F7: HEREDIA | G7: GUANACASTE | H7: PUNTARENAS | I7: LIMÓN
A10: JUNTAS | B10: =SUM(C10:I10) -> 6751 | C10: 2544 | D10: 1199 | E10: 719 | F10: 534 | G10: 581 | H10: 739 | I10: 435
A12: ELECTORADO | B12: =SUM(C12:I12) -> 1486474 | C12: 590640 | D12: 257699 | E12: 161467 | F12: 122123 | G12: 114457 | H12: 145609 | I12: 94479
A14: VOTOS RECIBIDOS | B14: =SUM(C14:I14) -> 1216300 | C14: =C17+C25+C27 -> 482934 | D14: 218340 | E14: 136783 | F14: 103697 | G14: 95733 | H14: 110692 | I14: 68121
A15: PARTICIPACIÓN 1/ | B15: =B14/B12*100 -> 81.82450551 | C15: =C14/C12*100 -> 81.76452662 | D15: 84.72675486 | E15: 84.71266575 | F15: 84.91193305 | G15: 83.64101802 | H15: 76.02002623 | I15: 72.10173689
A17: VOTOS VÁLIDOS | B17: =SUM(C17:I17) -> 1185222 | C17: =SUM(C18:C23) -> 473863 | D17: 213226 | E17: 132986 | F17: 101658 | G17: 92462 | H17: 106278 | I17: 64749
A18: ALIANZA NACIONAL CRISTIANA | B18: =SUM(C18:I18) -> 5647 | C18: 2407 | D18: 721 | E18: 695 | F18: 503 | G18: 289 | H18: 583 | I18: 449
A19: ALIANZA POPULAR 2/ | B19: 9099 | C19: 3943 | D19: 1044 | E19: 667 | F19: 778 | G19: 304 | H19: 1294 | I19: 1069
A20: INDEPENDIENTE | B20: 1129 | C20: 477 | D20: 123 | E20: 140 | F20: 74 | G20: 117 | H20: 125 | I20: 73
A21: LIBERACIÓN NACIONAL | B21: 620314 | C21: 256781 | D21: 112928 | E21: 71977 | F21: 53687 | G21: 46301 | H21: 51200 | I21: 27440
A22: PUEBLO UNIDO 3/ | B22: 6599 | C22: 2640 | D22: 850 | E22: 538 | F22: 644 | G22: 440 | H22: 757 | I22: 730
A23: UNIDAD SOCIAL CRISTIANA | B23: 542434 | C23: 207615 | D23: 97560 | E23: 58969 | F23: 45972 | G23: 45011 | H23: 52319 | I23: 34988
A25: VOTOS NULOS | B25: =SUM(C25:I25) -> 26029 | C25: 7633 | D25: 4074 | E25: 3236 | F25: 1722 | G25: 2746 | H25: 3768 | I25: 2850
A27: VOTOS BLANCOS | B27: =SUM(C27:I27) -> 5049 | C27: 1438 | D27: 1040 | E27: 561 | F27: 317 | G27: 525 | H27: 646 | I27: 522
A29: ABSTENCIONISMO | B29: =SUM(C29:I29) -> 270174 | C29: =C12-C14 -> 107706 | D29: 39359 | E29: 24684 | F29: 18426 | G29: 18724 | H29: 34917 | I29: 26358
B30: =B29/B12*100 -> 18.17549449 | C30: =C29/C12*100 -> 18.23547338 | D30: 15.27324514 | E30: 15.28733425 | F30: 15.08806695 | G30: 16.35898198 | H30: 23.97997377 | I30: 27.89826311
A33: 1/ El porcentaje de participación se calcula dividiendo la cantidad de votos recibidos entre el electorado inscrito.
A34: 2/ Coalición de los partidos Frente Amplio Democrático y Vanguardia Popular.
A35: 3/ Coalición de los partidos Socialista Costarricense y de los Trabajadores
A37: Presidente: Oscar Arias Sánchez.
A38: Primer Vicepresidente: Jorge Manuel Dengo Obregón.
A39: Segunda Vicepresidenta: Victoria Garrón Orozco.
A41: FUENTE: Tribunal Supremo de Elecciones.

Sheet G3.9
A2: GRÁFICO 3.9 COSTA RICA: PORCENTAJE DE VOTOS VÁLIDOS, POR PARTIDO
A3: ELECCIONES PRESIDENCIALES 1986
A8: INDEPENDIENTE | B8: 1129 | C8: =+B8/$B$22 -> 0.000952564161
A9: ALIANZA NACIONAL CRISTIANA | B9: 5647 | C9: =+B9/$B$22 -> 0.004764508252
A10: PUEBLO UNIDO | B10: 6599 | C10: 0.005567733302
A11: ALIANZA POPULAR | B11: 9099 | C11: 0.007677042782
A12: UNIDAD SOCIAL CRISTIANA | B12: 542434 | C12: 0.4576644713
A13: LIBERACIÓN NACIONAL | B13: 620314 | C13: 0.5233736802
B22: =SUM(B8:B21) -> 1185222
A40: FUENTE: Cuadro 3.9.

Sheet C3.10
A2: CUADRO 3.10 COSTA RICA: JUNTAS, ELECTORADO, VOTOS VÁLIDOS POR PARTIDO
A3: NULOS, BLANCOS Y ABSTENCIONISMO, POR PROVINCIA
A4: ELECCIONES PRESIDENCIALES 1990
A6: JUNTAS, ELECTORADO, VOTOS VÁLIDOS POR PARTIDO, NULOS, BLANCOS Y ABSTENCIONISMO | B6: COSTA RICA | C6: PROVINCIA
C7: SAN JOSÉ | D7: ALAJUELA | E7: CARTAGO | F7: HEREDIA | G7: GUANACASTE | H7: PUNTARENAS | I7: LIMÓN
A10: JUNTAS | B10: =SUM(C10:I10) -> 7597 | C10: 2858 | D10: 1360 | E10: 823 | F10: 613 | G10: 620 | H10: 804 | I10: 519
A12: ELECTORADO | B12: =SUM(C12:I12) -> 1692050 | C12: 665920 | D12: 296419 | E12: 186969 | F12: 141210 | G12: 123981 | H12: 163027 | I12: 114524
A14: VOTOS RECIBIDOS | B14: =SUM(C14:I14) -> 1384326 | C14: =C17+C26+C28 -> 542718 | D14: 251794 | E14: 158967 | F14: 120252 | G14: 103500 | H14: 124642 | I14: 82453
A15: PARTICIPACIÓN 1/ | B15: =B14/B12*100 -> 81.81353979 | C15: =C14/C12*100 -> 81.49897886 | D15: 84.94529703 | E15: 85.02318566 | F15: 85.15827491 | G15: 83.48053331 | H15: 76.45482037 | I15: 71.99626279
A17: VOTOS VÁLIDOS | B17: =SUM(C17:I17) -> 1349014 | C17: =SUM(C18:C24) -> 531998 | D17: 245876 | E17: 154765 | F17: 117697 | G17: 100565 | H17: 119721 | I17: 78392
A18: DEL PROGRESO | B18: =SUM(C18:I18) -> 2547 | C18: 1193 | D18: 367 | E18: 289 | F18: 296 | G18: 95 | H18: 182 | I18: 125
A19: INDEPENDIENTE | B19: =SUM(C19:I19) -> 746 | C19: 260 | D19: 115 | E19: 100 | F19: 54 | G19: 46 | H19: 87 | I19: 84
A20: ALIANZA NACIONAL CRISTIANA | B20: 4209 | C20: 1497 | D20: 798 | E20: 314 | F20: 428 | G20: 239 | H20: 478 | I20: 455
A21: UNIDAD SOCIAL CRISTIANA | B21: 694589 | C21: 262760 | D21: 126260 | E21: 77948 | F21: 59747 | G21: 53017 | H21: 67179 | I21: 47678
A22: PUEBLO UNIDO 2/ | B22: 9217 | C22: 3986 | D22: 1188 | E22: 819 | F22: 858 | G22: 446 | H22: 1092 | I22: 828
A23: REVOLUCIONARIO DE LOS TRABAJADORES EN LUCHA | B23: 1005 | C23: 305 | D23: 145 | E23: 125 | F23: 64 | G23: 69 | H23: 132 | I23: 165
A24: LIBERACIÓN NACIONAL | B24: 636701 | C24: 261997 | D24: 117003 | E24: 75170 | F24: 56250 | G24: 46653 | H24: 50571 | I24: 29057
A26: VOTOS NULOS | B26: =SUM(C26:I26) -> 29919 | C26: 9062 | D26: 4855 | E26: 3579 | F26: 2157 | G26: 2510 | H26: 4272 | I26: 3484
A28: VOTOS BLANCOS | B28: =SUM(C28:I28) -> 5393 | C28: 1658 | D28: 1063 | E28: 623 | F28: 398 | G28: 425 | H28: 649 | I28: 577
A30: ABSTENCIONISMO | B30: =SUM(C30:I30) -> 307724 | C30: =C12-C14 -> 123202 | D30: 44625 | E30: 28002 | F30: 20958 | G30: 20481 | H30: 38385 | I30: 32071
B31: =B30/B12*100 -> 18.18646021 | C31: =C30/C12*100 -> 18.50102114 | D31: 15.05470297 | E31: 14.97681434 | F31: 14.84172509 | G31: 16.51946669 | H31: 23.54517963 | I31: 28.00373721
A34: 1/ El porcentaje de participación se calcula dividiendo la cantidad de votos recibidos entre el electorado inscrito.
A35: 2/ Coalición de los partidos Demócratico Popular y del Pueblo Civilista.
A37: Presidente: Rafael Angel Calderón Fournier.
A38: Primer Vicepresidente: Germán Serrano Pinto.
A39: Segundo Vicepresidente: Arnoldo López Echandi.
A41: FUENTE: Tribunal Supremo de Elecciones.

Sheet G3.10
A2: GRÁFICO 3.10 COSTA RICA: PORCENTAJE DE VOTOS VÁLIDOS, POR PARTIDO
A3: ELECCIONES PRESIDENCIALES 1990
A8: INDEPENDIENTE | B8: 746 | C8: =+B8/$B$22 -> 0.0005529964848
A9: REVOLUCIONARIO DE LOS TRABAJADORES EN LUCHA | B9: 1005 | C9: =+B9/$B$22 -> 0.000744988562
A10: DEL PROGRESO | B10: 2547 | C10: 0.001888045639
A11: ALIANZA NACIONAL CRISTIANA | B11: 4209 | C11: 0.003120056575
A12: PUEBLO UNIDO | B12: 9217 | C12: 0.006832397588
A13: LIBERACIÓN NACIONAL | B13: 636701 | C13: 0.471975087
A14: UNIDAD SOCIAL CRISTIANA | B14: 694589 | C14: 0.5148864282
B22: =SUM(B8:B21) -> 1349014
A40: FUENTE: Cuadro 3.10.

Sheet C3.11
A2: CUADRO 3.11 COSTA RICA: JUNTAS, ELECTORADO, VOTOS VÁLIDOS POR PARTIDO
A3: NULOS, BLANCOS Y ABSTENCIONISMO, POR PROVINCIA
A4: ELECCIONES PRESIDENCIALES 1994
A6: JUNTAS, ELECTORADO, VOTOS VÁLIDOS POR PARTIDO, NULOS, BLANCOS Y ABSTENCIONISMO | B6: COSTA RICA | C6: PROVINCIA
C7: SAN JOSÉ | D7: ALAJUELA | E7: CARTAGO | F7: HEREDIA | G7: GUANACASTE | H7: PUNTARENAS | I7: LIMÓN
A10: JUNTAS | B10: =SUM(C10:I10) -> 8365 | C10: 3120 | D10: 1495 | E10: 930 | F10: 702 | G10: 653 | H10: 849 | I10: 616
A12: ELECTORADO | B12: =SUM(C12:I12) -> 1881348 | C12: 733725 | D12: 329553 | E12: 211307 | F12: 163219 | G12: 131677 | H12: 174200 | I12: 137667
A14: VOTOS RECIBIDOS | B14: =SUM(C14:I14) -> 1525979 | C14: =C17+C26+C28 -> 587145 | D14: 278332 | E14: 176916 | F14: 137236 | G14: 110809 | H14: 134459 | I14: 101082
A15: PARTICIPACIÓN 1/ | B15: =B14/B12*100 -> 81.11093748 | C15: =C14/C12*100 -> 80.02248799 | D15: 84.45743173 | E15: 83.72462815 | F15: 84.08089744 | G15: 84.15212983 | H15: 77.18656716 | I15: 73.42500381
A17: VOTOS VÁLIDOS | B17: =SUM(C17:I17) -> 1490097 | C17: =SUM(C18:C25) -> 576718 | D17: 272228 | E17: 172753 | F17: 134748 | G17: 107214 | H17: 129282 | I17: 97154
A18: ALIANZA NACIONAL CRISTIANA | B18: 4980 | C18: 1616 | D18: 794 | E18: 606 | F18: 369 | G18: 284 | H18: 765 | I18: 546
A19: FUERZA DEMOCRÁTICA | B19: 28274 | C19: 13796 | D19: 4648 | E19: 3514 | F19: 3464 | G19: 663 | H19: 966 | I19: 1223
A20: INDEPENDIENTE | B20: 1600 | C20: 437 | D20: 233 | E20: 211 | F20: 106 | G20: 218 | H20: 155 | I20: 240
A21: LIBERACIÓN NACIONAL | B21: 739339 | C21: 286227 | D21: 136933 | E21: 86946 | F21: 67221 | G21: 53644 | H21: 63421 | I21: 44947
A22: NACIONAL INDEPENDIENTE | B22: 2426 | C22: 919 | D22: 357 | E22: 339 | F22: 194 | G22: 152 | H22: 242 | I22: 223
A23: UNIDAD SOCIAL CRISTIANA | B23: 711328 | C23: 272754 | D23: 129050 | E23: 80865 | F23: 63215 | G23: 52165 | H23: 63466 | I23: 49813
A24: UNIÓN GENERALEÑA | B24: 2150 | C24: 969 | D24: 213 | E24: 272 | F24: 179 | G24: 88 | H24: 267 | I24: 162
A26: VOTOS NULOS | B26: =SUM(C26:I26) -> 30663 | C26: 9006 | D26: 5006 | E26: 3616 | F26: 2036 | G26: 3134 | H26: 4593 | I26: 3272
A28: VOTOS BLANCOS | B28: =SUM(C28:I28) -> 5219 | C28: 1421 | D28: 1098 | E28: 547 | F28: 452 | G28: 461 | H28: 584 | I28: 656
A30: ABSTENCIONISMO | B30: =SUM(C30:I30) -> 355369 | C30: 146580 | D30: 51221 | E30: 34391 | F30: 25983 | G30: 20868 | H30: 39741 | I30: 36585
B31: =B30/B12*100 -> 18.88906252 | C31: =C30/C12*100 -> 19.97751201 | D31: 15.54256827 | E31: 16.27537185 | F31: 15.91910256 | G31: 15.84787017 | H31: 22.81343284 | I31: 26.57499619
A34: 1/ El porcentaje de participación se calcula dividiendo la cantidad de votos recibidos entre el electorado inscrito.
A36: Presidente: José María Figueres Olsen.
A37: Primer Vicepresidente: Rodrigo Oreamuno Blanco.
A38: Segunda Vicepresidenta: Rebeca Grynspan Mayufis.
A40: FUENTE: Tribunal Supremo de Elecciones.

Sheet G3.11
A2: GRÁFICO 3.11 COSTA RICA: PORCENTAJE DE VOTOS VÁLIDOS, POR PARTIDO
A3: ELECCIONES PRESIDENCIALES 1994
A8: INDEPENDIENTE | B8: 1600 | C8: =+B8/$B$22 -> 0.001073755601
A9: UNIÓN GENERALEÑA | B9: 2150 | C9: =+B9/$B$22 -> 0.001442859089
A10: NACIONAL INDEPENDIENTE | B10: 2426 | C10: 0.00162808193
A11: ALIANZA NACIONAL CRISTIANA | B11: 4980 | C11: 0.003342064309
A12: FUERZA DEMOCRÁTICA | B12: 28274 | C12: 0.01897460367
A13: UNIDAD SOCIAL CRISTIANA | B13: 711328 | C13: 0.4773702652
A14: LIBERACIÓN NACIONAL | B14: 739339 | C14: 0.4961683702
B22: =SUM(B8:B21) -> 1490097
A40: FUENTE: Cuadro 3.11.

Sheet C3.12
A2: CUADRO 3.12 COSTA RICA: JUNTAS, ELECTORADO, VOTOS VÁLIDOS POR PARTIDO
A3: NULOS, BLANCOS Y ABSTENCIONISMO, POR PROVINCIA
A4: ELECCIONES PRESIDENCIALES 1998
A6: JUNTAS, ELECTORADO, VOTOS VÁLIDOS POR PARTIDO, NULOS, BLANCOS Y ABSTENCIONISMO | B6: COSTA RICA | C6: PROVINCIA
C7: SAN JOSÉ | D7: ALAJUELA | E7: CARTAGO | F7: HEREDIA | G7: GUANACASTE | H7: PUNTARENAS | I7: LIMÓN
A10: JUNTAS | B10: =SUM(C10:I10) -> 6080 | C10: 2162 | D10: 1103 | E10: 668 | F10: 520 | G10: 507 | H10: 652 | I10: 468
A12: ELECTORADO | B12: =SUM(C12:I12) -> 2045980 | C12: 784055 | D12: 363238 | E12: 231970 | F12: 185965 | G12: 141690 | H12: 185438 | I12: 153624
A14: VOTOS RECIBIDOS | B14: =SUM(C14:I14) -> 1431913 | C14: =C17+C32+C34 -> 542427 | D14: 264743 | E14: 172797 | F14: 133824 | G14: 104743 | H14: 121026 | I14: 92353
A15: PARTICIPACIÓN 1/ | B15: =B14/B12*100 -> 69.98665676 | C15: =C14/C12*100 -> 69.182264 | D15: 72.88416961 | E15: 74.49109799 | F15: 71.96192832 | G15: 73.92405957 | H15: 65.2649403 | I15: 60.11625788
A17: VOTOS VÁLIDOS | B17: =SUM(C17:I17) -> 1388698 | C17: =SUM(C18:C31) -> 528349 | D17: 257517 | E17: 167977 | F17: 130296 | G17: 100789 | H17: 115880 | I17: 87890
A18: ALIANZA NACIONAL CRISTIANA | B18: 3545 | C18: 1298 | D18: 368 | E18: 587 | F18: 194 | G18: 107 | H18: 641 | I18: 350
A19: DEMÓCRATA | B19: 12952 | C19: 6095 | D19: 2361 | E19: 1669 | F19: 1840 | G19: 137 | H19: 298 | I19: 552
A20: FUERZA DEMOCRÁTICA | B20: 41710 | C20: 17581 | D20: 8062 | E20: 5306 | F20: 4497 | G20: 1777 | H20: 2184 | I20: 2303
A21: INDEPENDIENTE | B21: 1377 | C21: 491 | D21: 221 | E21: 132 | F21: 119 | G21: 166 | H21: 105 | I21: 143
A22: INTEGRACIÓN NACIONAL | B22: 19934 | C22: 11421 | D22: 2466 | E22: 2307 | F22: 2119 | G22: 300 | H22: 550 | I22: 771
A23: LIBERACIÓN NACIONAL | B23: 618834 | C23: 246828 | D23: 117600 | E23: 80109 | F23: 60387 | G23: 40931 | H23: 44699 | I23: 28280
A24: MOVIMIENTO LIBERTARIO | B24: 5874 | C24: 3066 | D24: 764 | E24: 487 | F24: 461 | G24: 151 | H24: 467 | I24: 478
A25: NACIONAL INDEPENDIENTE | B25: 4218 | C25: 1545 | D25: 810 | E25: 737 | F25: 383 | G25: 195 | H25: 237 | I25: 311
A26: NUEVO PARTIDO DEMOCRÁTICO | B26: 3025 | C26: 1430 | D26: 327 | E26: 275 | F26: 242 | G26: 111 | H26: 431 | I26: 209
A27: PUEBLO UNIDO | B27: 3075 | C27: 1014 | D27: 329 | E27: 235 | F27: 368 | G27: 154 | H27: 310 | I27: 665
A28: RENOVACIÓN COSTARRICENSE | B28: 19313 | C28: 9543 | D28: 3126 | E28: 1362 | F28: 2764 | G28: 584 | H28: 607 | I28: 1327
A29: RESCATE NACIONAL | B29: 2681 | C29: 1178 | D29: 401 | E29: 270 | F29: 392 | G29: 103 | H29: 197 | I29: 140
A30: UNIDAD SOCIAL CRISTIANA | B30: 652160 | C30: 226859 | D30: 120682 | E30: 74501 | F30: 56530 | G30: 56073 | H30: 65154 | I30: 52361
A32: VOTOS NULOS | B32: =SUM(C32:I32) -> 36318 | C32: 12007 | D32: 5835 | E32: 4162 | F32: 2979 | G32: 3270 | H32: 4391 | I32: 3674
A34: VOTOS BLANCOS | B34: =SUM(C34:I34) -> 6897 | C34: 2071 | D34: 1391 | E34: 658 | F34: 549 | G34: 684 | H34: 755 | I34: 789
A36: ABSTENCIONISMO | B36: =SUM(C36:I36) -> 614067 | C36: 241628 | D36: 98495 | E36: 59173 | F36: 52141 | G36: 36947 | H36: 64412 | I36: 61271
B37: =B36/B12*100 -> 30.01334324 | C37: =C36/C12*100 -> 30.817736 | D37: 27.11583039 | E37: 25.50890201 | F37: 28.03807168 | G37: 26.07594043 | H37: 34.7350597 | I37: 39.88374212
A40: 1/ El porcentaje de participación se calcula dividiendo la cantidad de votos recibidos entre el electorado inscrito.
A42: Presidente: Miguel Angel Rodríguez Echeverría.
A43: Primera Vicepresidenta: Astrid Fischel Volio.
A44: Segunda Vicepresidenta: Elizabeth Odio Benito.
A46: FUENTE: Tribunal Supremo de Elecciones.

Sheet G3.12
A2: GRÁFICO 3.12 COSTA RICA: PORCENTAJE DE VOTOS VÁLIDOS, POR PARTIDO
A3: ELECCIONES PRESIDENCIALES 1998
A8: INDEPENDIENTE | B8: 1377 | C8: =+B8/$B$22 -> 0.0009915762822
A9: RESCATE NACIONAL | B9: 2681 | C9: =+B9/$B$22 -> 0.00193058534
A10: NUEVO PARTIDO DEMOCRÁTICO | B10: 3025 | C10: 0.002178299385
A11: PUEBLO UNIDO | B11: 3075 | C11: 0.002214304334
A12: ALIANZA NACIONAL CRISTIANA | B12: 3545 | C12: 0.00255275085
A13: NACIONAL INDEPENDIENTE | B13: 4218 | C13: 0.003037377457
A14: MOVIMIENTO LIBERTARIO | B14: 5874 | C14: 0.004229861352
A15: DEMÓCRATA | B15: 12952 | C15: 0.009326721865
A16: RENOVACIÓN COSTARRICENSE | B16: 19313 | C16: 0.01390727142
A17: INTEGRACIÓN NACIONAL | B17: 19934 | C17: 0.01435445288
A18: FUERZA DEMOCRÁTICA | B18: 41710 | C18: 0.03003532806
A19: LIBERACIÓN NACIONAL | B19: 618834 | C19: 0.4456217263
A20: UNIDAD SOCIAL CRISTIANA | B20: 652160 | C20: 0.4696197445
B22: =SUM(B8:B21) -> 1388698
A40: FUENTE: Cuadro 3.12.

Sheet C3.13
A2: CUADRO 3.13 COSTA RICA: JUNTAS, ELECTORADO, VOTOS VÁLIDOS POR PARTIDO
A3: NULOS, BLANCOS Y ABSTENCIONISMO, POR PROVINCIA
A4: ELECCIONES PRESIDENCIALES, FEBRERO 2002
A6: JUNTAS, ELECTORADO, VOTOS VÁLIDOS POR PARTIDO, NULOS, BLANCOS Y ABSTENCIONISMO | B6: COSTA RICA | C6: PROVINCIA
C7: SAN JOSÉ | D7: ALAJUELA | E7: CARTAGO | F7: HEREDIA | G7: GUANACASTE | H7: PUNTARENAS | I7: LIMÓN
A10: JUNTAS | B10: =SUM(C10:I10) -> 6681 | C10: 2348 | D10: 1232 | E10: 743 | F10: 595 | G10: 538 | H10: 712 | I10: 513
A12: ELECTORADO | B12: =SUM(C12:I12) -> 2279851 | C12: 855823 | D12: 410538 | E12: 261642 | F12: 215096 | G12: 155064 | H12: 206349 | I12: 175339
A14: VOTOS RECIBIDOS | B14: =SUM(C14:I14) -> 1569418 | C14: =C17+C32+C34 -> 593197 | D14: =D17+D32+D34 -> 296330 | E14: 189147 | F14: 154244 | G14: 108255 | H14: 125873 | I14: 102372
A15: PARTICIPACIÓN 1/ | B15: =B14/B12*100 -> 68.83862147 | C15: =C14/C12*100 -> 69.31304721 | D15: 72.18089434 | E15: 72.29229252 | F15: 71.70937628 | G15: 69.81310943 | H15: 61.00005331 | I15: 58.38518527
A17: VOTOS VÁLIDOS | B17: =SUM(C17:I17) -> 1529845 | C17: =SUM(C18:C30) -> 581046 | D17: 289565 | E17: 184097 | F17: 151338 | G17: 104895 | H17: 120998 | I17: 97906
A18: ACCIÓN CIUDADANA | B18: =SUM(C18:I18) -> 400681 | C18: 180492 | D18: 71408 | E18: 52195 | F18: 50224 | G18: 12702 | H18: 19060 | I18: 14600
A19: ALIANZA NACIONAL CRISTIANA | B19: 1271 | C19: 396 | D19: 232 | E19: 130 | F19: 78 | G19: 109 | H19: 132 | I19: 194
A20: CAMBIO 2000 2/ | B20: 3970 | C20: 1268 | D20: 558 | E20: 692 | F20: 380 | G20: 167 | H20: 309 | I20: 596
A21: FUERZA DEMOCRÁTICA | B21: 4121 | C21: 1410 | D21: 603 | E21: 808 | F21: 376 | G21: 197 | H21: 346 | I21: 381
A22: INDEPENDIENTE OBRERO | B22: 801 | C22: 240 | D22: 106 | E22: 185 | F22: 39 | G22: 71 | H22: 90 | I22: 70
A23: INTEGRACIÓN NACIONAL | B23: 6235 | C23: 3279 | D23: 747 | E23: 916 | F23: 543 | G23: 172 | H23: 261 | I23: 317
A24: LIBERACIÓN NACIONAL | B24: 475030 | C24: 165637 | D24: 98863 | E24: 58605 | F24: 40600 | G24: 42589 | H24: 40892 | I24: 27844
A25: MOVIMIENTO LIBERTARIO | B25: 25815 | C25: 9143 | D25: 4119 | E25: 3429 | F25: 2438 | G25: 892 | H25: 3038 | I25: 2756
A26: PATRIÓTICO NACIONAL | B26: 1680 | C26: 742 | D26: 204 | E26: 217 | F26: 183 | G26: 57 | H26: 111 | I26: 166
A27: RENOVACIÓN COSTARRICENSE | B27: 16404 | C27: 4607 | D27: 2729 | E27: 1218 | F27: 1591 | G27: 1226 | H27: 1997 | I27: 3036
A28: RESCATE NACIONAL | B28: 905 | C28: 336 | D28: 127 | E28: 117 | F28: 81 | G28: 68 | H28: 73 | I28: 103
A29: UNIDAD SOCIAL CRISTIANA | B29: 590277 | C29: 212596 | D29: 109415 | E29: 65261 | F29: 54592 | G29: 46457 | H29: 54418 | I29: 47538
A30: UNIÓN GENERAL | B30: 2655 | C30: 900 | D30: 454 | E30: 324 | F30: 213 | G30: 188 | H30: 271 | I30: 305
A32: VOTOS NULOS | B32: =SUM(C32:I32) -> 32332 | C32: 10120 | D32: 5452 | E32: 4192 | F32: 2404 | G32: 2661 | H32: 3989 | I32: 3514
A34: VOTOS BLANCOS | B34: =SUM(C34:I34) -> 7241 | C34: 2031 | D34: 1313 | E34: 858 | F34: 502 | G34: 699 | H34: 886 | I34: 952
A36: ABSTENCIONISMO | B36: =SUM(C36:I36) -> 710433 | C36: 262626 | D36: 114208 | E36: 72495 | F36: 60852 | G36: 46809 | H36: 80476 | I36: 72967
B37: =B36/B12*100 -> 31.16137853 | C37: =C36/C12*100 -> 30.68695279 | D37: 27.81910566 | E37: 27.70770748 | F37: 28.29062372 | G37: 30.18689057 | H37: 38.99994669 | I37: 41.61481473
A40: 1/ El porcentaje de participación se calcula dividiendo la cantidad de votos recibidos entre el electorado inscrito.
A41: 2/ Coalición de los partidos Acción Democrática Alajuelense y Pueblo Unido.
A43: Nota: Dado que ninguna de las nóminas superó el 40% de los votos válidamente emitidos, se ordena una segunda votación entre las nóminas del Partido Unidad Social Cristiana y el Partido Liberación Nacional.
A46: FUENTE: Tribunal Supremo de Elecciones.

Sheet G3.13
A2: GRÁFICO 3.13 COSTA RICA: PORCENTAJE DE VOTOS VÁLIDOS, POR PARTIDO
A3: ELECCIONES PRESIDENCIALES FEBRERO 2002
A8: INDEPENDIENTE OBRERO | B8: 801 | C8: =+B8/$B$22 -> 0.0005235824544
A9: RESCATE NACIONAL | B9: 905 | C9: =+B9/$B$22 -> 0.0005915631976
A10: ALIANZA NACIONAL CRISTIANA | B10: 1271 | C10: 0.0008308031206
A11: PATRIÓTICO NACIONAL | B11: 1680 | C11: 0.001098150466
A12: UNIÓN GENERAL | B12: 2655 | C12: 0.001735469933
A13: CAMBIO 2000 2/ | B13: 3970 | C13: 0.002595034137
A14: FUERZA DEMOCRÁTICA | B14: 4121 | C14: 0.002693736947
A15: INTEGRACIÓN NACIONAL | B15: 6235 | C15: 0.004075576284
A16: RENOVACIÓN COSTARRICENSE | B16: 16404 | C16: 0.01072265491
A17: MOVIMIENTO LIBERTARIO | B17: 25815 | C17: 0.0168742585
A18: ACCIÓN CIUDADANA | B18: 400681 | C18: 0.2619095399
A19: LIBERACIÓN NACIONAL | B19: 475030 | C19: 0.3105085809
A20: UNIDAD SOCIAL CRISTIANA | B20: 590277 | C20: 0.3858410493
B22: =SUM(B8:B21) -> 1529845
A40: FUENTE: Cuadro 3.13.

Sheet C3.14
A2: CUADRO 3.14 COSTA RICA: JUNTAS, ELECTORADO, VOTOS VÁLIDOS POR PARTIDO
A3: NULOS, BLANCOS Y ABSTENCIONISMO, POR PROVINCIA
A4: ELECCIONES PRESIDENCIALES, ABRIL 2002
A6: JUNTAS, ELECTORADO, VOTOS VÁLIDOS POR PARTIDO, NULOS, BLANCOS Y ABSTENCIONISMO | B6: COSTA RICA | C6: PROVINCIA
C7: SAN JOSÉ | D7: ALAJUELA | E7: CARTAGO | F7: HEREDIA | G7: GUANACASTE | H7: PUNTARENAS | I7: LIMÓN
A10: JUNTAS | B10: =SUM(C10:I10) -> 6681 | C10: 2348 | D10: 1232 | E10: 743 | F10: 595 | G10: 538 | H10: 712 | I10: 513
A12: ELECTORADO | B12: =SUM(C12:I12) -> 2279851 | C12: 855823 | D12: 410538 | E12: 261642 | F12: 215096 | G12: 155064 | H12: 206349 | I12: 175339
A14: VOTOS RECIBIDOS | B14: =SUM(C14:I14) -> 1379053 | C14: =C16+C20+C22 -> 504673 | D14: =D16+D20+D22 -> 263511 | E14: 166031 | F14: 131456 | G14: 99367 | H14: 116730 | I14: 97285
A16: VOTOS VÁLIDOS | B16: =SUM(C16:I16) -> 1339480 | C16: =SUM(C17:C18) -> 492522 | D16: 256746 | E16: 160981 | F16: 128550 | G16: 96007 | H16: 111855 | I16: 92819
A17: LIBERACIÓN NACIONAL | B17: =SUM(C17:I17) -> 563202 | C17: 208140 | D17: 112826 | E17: 71462 | F17: 53837 | G17: 41176 | H17: 45100 | I17: 30661
A18: UNIDAD SOCIAL CRISTIANA | B18: =SUM(C18:I18) -> 776278 | C18: 284382 | D18: 143920 | E18: 89519 | F18: 74713 | G18: 54831 | H18: 66755 | I18: 62158
A20: VOTOS NULOS | B20: =SUM(C20:I20) -> 32332 | C20: 10120 | D20: 5452 | E20: 4192 | F20: 2404 | G20: 2661 | H20: 3989 | I20: 3514
A22: VOTOS BLANCOS | B22: =SUM(C22:I22) -> 7241 | C22: 2031 | D22: 1313 | E22: 858 | F22: 502 | G22: 699 | H22: 886 | I22: 952
A24: ABSTENCIONISMO | B24: =SUM(C24:I24) -> 900798 | C24: 351150 | D24: 147027 | E24: 95611 | F24: 83640 | G24: 55697 | H24: 89619 | I24: 78054
A27: Presidente: Abel Pacheco De La Espriella.
A28: Primera Vicepresidenta: María Lineth Saborío Chaverri.
A29: Segundo Vicepresidente: Luis Fishman Zonzinski.
A31: FUENTE: Tribunal Supremo de Elecciones.

Sheet G3.14
A2: GRÁFICO 3.14 COSTA RICA: PORCENTAJE DE VOTOS VÁLIDOS, POR PARTIDO
A3: ELECCIONES ABRIL 2002
A9: UNIDAD SOCIAL CRISTIANA | B9: 776278
A10: LIBERACIÓN NACIONAL | B10: 563202
A36: FUENTE: Cuadro 3.14.

Sheet C3.15
A2: CUADRO 3. 15 COSTA RICA: JUNTAS, ELECTORADO, VOTOS VÁLIDOS POR PARTIDO
A3: NULOS, BLANCOS Y ABSTENCIONISMO, POR PROVINCIA
A4: ELECCIONES PRESIDENCIALES 2006
A6: JUNTAS, ELECTORADO, VOTOS VÁLIDOS POR PARTIDO, NULOS, BLANCOS Y ABSTENCIONISMO | B6: COSTA RICA | C6: PROVINCIA
C7: SAN JOSÉ | D7: ALAJUELA | E7: CARTAGO | F7: HEREDIA | G7: GUANACASTE | H7: PUNTARENAS | I7: LIMÓN
A10: JUNTAS | B10: =SUM(C10:I10) -> 6163 | C10: 2098 | D10: 1156 | E10: 685 | F10: 550 | G10: 515 | H10: 664 | I10: 495
A12: ELECTORADO | B12: =SUM(C12:I12) -> 2550613 | C12: 936826 | D12: 465871 | E12: 295194 | F12: 245993 | G12: 174630 | H12: 231511 | I12: 200588
A14: VOTOS RECIBIDOS | B14: =SUM(C14:I14) -> 1662857 | C14: =C17+C33+C35 -> 621979 | D14: 316782 | E14: 206580 | F14: 171679 | G14: 108460 | H14: 127138 | I14: 110239
A15: PARTICIPACIÓN 1/ | B15: =B14/B12*100 -> 65.19440621 | C15: =C14/C12*100 -> 66.3921582 | D15: 67.99779338 | E15: 69.98109718 | F15: 69.79019728 | G15: 62.10845788 | H15: 54.91661303 | I15: 54.9579237
A17: VOTOS VÁLIDOS | B17: =SUM(C17:I17) -> 1623992 | C17: =SUM(C18:C31) -> 610999 | D17: =SUM(D18:D31) -> 309580 | E17: 202031 | F17: 168635 | G17: 104635 | H17: 122604 | I17: 105508
A18: ACCIÓN CIUDADANA | B18: =SUM(C18:I18) -> 646382 | C18: 258976 | D18: 135750 | E18: 77175 | F18: 73692 | G18: 32712 | H18: 36886 | I18: 31191
A19: ALIANZA DEMOCRÁTICA NACIONALISTA | B19: 3670 | C19: 1064 | D19: 867 | E19: 442 | F19: 452 | G19: 322 | H19: 287 | I19: 236
A20: COALICIÓN IZQUIERDA UNIDA 2/ | B20: 2291 | C20: 878 | D20: 290 | E20: 248 | F20: 203 | G20: 94 | H20: 165 | I20: 413
A21: FUERZA DEMOCRÁTICA | B21: 3020 | C21: 1129 | D21: 423 | E21: 386 | F21: 294 | G21: 150 | H21: 316 | I21: 322
A22: INTEGRACIÓN NACIONAL | B22: 5136 | C22: 2952 | D22: 512 | E22: 651 | F22: 446 | G22: 135 | H22: 168 | I22: 272
A23: LIBERACIÓN NACIONAL | B23: 664551 | C23: 237873 | D23: 125364 | E23: 82504 | F23: 66122 | G23: 52210 | H23: 57872 | I23: 42606
A24: MOVIMIENTO LIBERTARIO | B24: 137710 | C24: 50515 | D24: 20388 | E24: 20908 | F24: 13055 | G24: 6779 | H24: 11813 | I24: 14252
A25: PATRIA PRIMERO | B25: 17594 | C25: 6873 | D25: 3166 | E25: 2616 | F25: 1570 | G25: 793 | H25: 1311 | I25: 1265
A26: RENOVACIÓN COSTARRICENSE | B26: 15539 | C26: 3886 | D26: 2711 | E26: 829 | F26: 1175 | G26: 2030 | H26: 2047 | I26: 2861
A27: RESCATE NACIONAL | B27: 2430 | C27: 1053 | D27: 402 | E27: 294 | F27: 228 | G27: 147 | H27: 121 | I27: 185
A28: UNIDAD SOCIAL CRISTIANA | B28: 57655 | C28: 16928 | D28: 8425 | E28: 6610 | F28: 4717 | G28: 6181 | H28: 7987 | I28: 6807
A29: UNIÓN NACIONAL | B29: 26593 | C29: 11874 | D29: 4161 | E29: 3574 | F29: 2559 | G29: 1194 | H29: 1264 | I29: 1967
A30: UNIÓN PARA EL CAMBIO | B30: 39557 | C30: 16422 | D30: 6780 | E30: 5623 | F30: 3985 | G30: 1677 | H30: 2176 | I30: 2894
A31: UNIÓN PATRIÓTICA | B31: 1864 | C31: 576 | D31: 341 | E31: 171 | F31: 137 | G31: 211 | H31: 191 | I31: 237
A33: VOTOS NULOS | B33: =SUM(C33:I33) -> 30422 | C33: 8704 | D33: 5651 | E33: 3616 | F33: 2418 | G33: 2865 | H33: 3519 | I33: 3649
A35: VOTOS BLANCOS | B35: =SUM(C35:I35) -> 8443 | C35: 2276 | D35: 1551 | E35: 933 | F35: 626 | G35: 960 | H35: 1015 | I35: 1082
A37: ABSTENCIONISMO | B37: =SUM(C37:I37) -> 887756 | C37: =+C12-C14 -> 314847 | D37: =+D12-D14 -> 149089 | E37: 88614 | F37: 74314 | G37: 66170 | H37: 104373 | I37: 90349
B38: =B37/B12*100 -> 34.80559379 | C38: =C37/C12*100 -> 33.6078418 | D38: 32.00220662 | E38: 30.01890282 | F38: 30.20980272 | G38: 37.89154212 | H38: 45.08338697 | I38: 45.0420763
A41: 1/ El porcentaje de participación se calcula dividiendo la cantidad de votos recibidos entre el electorado inscrito.
A42: 2/ Coalición de los partidos Vanguardia Popular y Revolucionario de los Trabajadores.
A44: Presidente: Oscar Arias Sánchez.
A45: Primera Vicepresidenta: Laura Chinchilla Miranda.
A46: Segundo Vicepresidente: Kevin Roberto Casas Zamora.
A49: FUENTE: Tribunal Supremo de Elecciones.

Sheet G3.15
A2: GRÁFICO 3.15 COSTA RICA: PORCENTAJE DE VOTOS VÁLIDOS, POR PARTIDO
A3: ELECCIONES PRESIDENCIALES 2006
A8: COALICIÓN IZQUIERDA UNIDA | B8: 2291 | C8: =+B8/$B$22 -> 0.001410721235
A9: RESCATE NACIONAL | B9: 2430 | C9: =+B9/$B$22 -> 0.00149631279
A10: FUERZA DEMOCRÁTICA | B10: 3020 | C10: 0.001859615072
A11: ALIANZA DEMOCRÁTICA NACIONALISTA | B11: 3670 | C11: 0.002259863349
A12: INTEGRACIÓN NACIONAL | B12: 5136 | C12: 0.003162577156
A13: RENOVACIÓN COSTARRICENSE | B13: 15539 | C13: 0.009568396889
A14: PATRIA PRIMERO | B14: 17594 | C14: 0.01083379721
A15: UNIÓN NACIONAL | B15: 26593 | C15: 0.01637508067
A16: UNIÓN PARA EL CAMBIO | B16: 39557 | C16: 0.02435787861
A17: UNIDAD SOCIAL CRISTIANA | B17: 57655 | C17: 0.03550202218
A18: MOVIMIENTO LIBERTARIO | B18: 137710 | C18: 0.08479721575
A19: ACCIÓN CIUDADANA | B19: 646382 | C19: 0.3980204336
A20: LIBERACIÓN NACIONAL | B20: 664551 | C20: 0.4092082966
A21: UNIÓN PATRIÓTICA | B21: 1864
B22: =SUM(B8:B21) -> 1623992
A40: FUENTE: Cuadro 3.15.

Sheet C3.16
A2: CUADRO 3.16 COSTA RICA: JUNTAS, ELECTORADO, VOTOS VÁLIDOS POR PARTIDO
A3: NULOS, BLANCOS Y ABSTENCIONISMO, POR PROVINCIA
A4: ELECCIONES PRESIDENCIALES 2010
A6: JUNTAS, ELECTORADO, VOTOS VÁLIDOS POR PARTIDO, NULOS, BLANCOS Y ABSTENCIONISMO | B6: COSTA RICA | C6: PROVINCIA
C7: SAN JOSÉ | D7: ALAJUELA | E7: CARTAGO | F7: HEREDIA | G7: GUANACASTE | H7: PUNTARENAS | I7: LIMÓN
A10: JUNTAS | B10: =SUM(C10:I10) -> 6617 | C10: 2232 | D10: 1252 | E10: 746 | F10: 604 | G10: 550 | H10: 702 | I10: 531
A12: ELECTORADO | B12: =SUM(C12:I12) -> 2822491 | C12: 1008177 | D12: 524215 | E12: 328782 | F12: 278544 | G12: 199237 | H12: 259408 | I12: 224128
A14: VOTOS RECIBIDOS | B14: =SUM(C14:I14) -> 1950847 | C14: =C17+C28+C30 -> 704284 | D14: 374952 | E14: 243705 | F14: 203705 | G14: 131940 | H14: 154540 | I14: 137721
A15: PARTICIPACIÓN 1/ | B15: =B14/B12*100 -> 69.11791747 | C15: =C14/C12*100 -> 69.85717786 | D15: 71.52637754 | E15: 74.12358341 | F15: 73.13207249 | G15: 66.22263937 | H15: 59.5741072 | I15: 61.44747644
A17: VOTOS VÁLIDOS | B17: =SUM(C17:I17) -> 1911333 | C17: =SUM(C18:C26) -> 692765 | D17: 367843 | E17: 239146 | F17: 200493 | G17: 128125 | H17: 150167 | I17: 132794
A18: ACCESIBILIDAD SIN EXCLUSIÓN | B18: 36104 | C18: 14454 | D18: 6760 | E18: 5026 | F18: 3677 | G18: 2038 | H18: 1881 | I18: 2268
A19: ACCIÓN CIUDADANA | B19: 478877 | C19: 200382 | D19: 97399 | E19: 56095 | F19: 55425 | G19: 20341 | H19: 26014 | I19: 23221
A20: ALIANZA PATRIÓTICA | B20: 3158 | C20: 870 | D20: 659 | E20: 388 | F20: 288 | G20: 305 | H20: 303 | I20: 345
A21: FRENTE AMPLIO | B21: 6782 | C21: 2536 | D21: 830 | E21: 937 | F21: 905 | G21: 373 | H21: 519 | I21: 682
A22: INTEGRACIÓN NACIONAL | B22: 2049 | C22: 970 | D22: 275 | E22: 240 | F22: 165 | G22: 97 | H22: 134 | I22: 168
A23: LIBERACIÓN NACIONAL | B23: 896516 | C23: 322976 | D23: 166655 | E23: 118926 | F23: 93471 | G23: 65843 | H23: 73431 | I23: 55214
A24: MOVIMIENTO LIBERTARIO | B24: 399788 | C24: 122116 | D24: 80590 | E24: 46414 | F24: 39016 | G24: 29841 | H24: 40078 | I24: 41733
A25: RENOVACIÓN COSTARRICENSE | B25: 13945 | C25: 3852 | D25: 2788 | E25: 977 | F25: 1164 | G25: 1510 | H25: 1131 | I25: 2523
A26: UNIDAD SOCIAL CRISTIANA | B26: 74114 | C26: 24609 | D26: 11887 | E26: 10143 | F26: 6382 | G26: 7777 | H26: 6676 | I26: 6640
A28: VOTOS NULOS | B28: =SUM(C28:I28) -> 32555 | C28: 9674 | D28: 5798 | E28: 3763 | F28: 2644 | G28: 3063 | H28: 3568 | I28: 4045
A30: VOTOS BLANCOS | B30: =SUM(C30:I30) -> 6959 | C30: 1845 | D30: 1311 | E30: 796 | F30: 568 | G30: 752 | H30: 805 | I30: 882
A32: ABSTENCIONISMO | B32: =SUM(C32:I32) -> 871644 | C32: =+C12-C14 -> 303893 | D32: =+D12-D14 -> 149263 | E32: 85077 | F32: 74839 | G32: 67297 | H32: 104868 | I32: 86407
B33: =B32/B12*100 -> 30.88208253 | C33: =C32/C12*100 -> 30.14282214 | D33: 28.47362246 | E33: 25.87641659 | F33: 26.86792751 | G33: 33.77736063 | H33: 40.4258928 | I33: 38.55252356
A36: 1/ El porcentaje de participación se calcula dividiendo la cantidad de votos recibidos entre el electorado inscrito.
A38: Presidenta: Laura Chinchilla Miranda.
A39: Primer Vicepresidente: Alfio Piva Mesén.
A40: Segundo Vicepresidente: Luis Liberman Ginsburg.
A42: FUENTE: Tribunal Supremo de Elecciones.

Sheet G3.16
A2: GRÁFICO 3.16 COSTA RICA: PORCENTAJE DE VOTOS VÁLIDOS, POR PARTIDO
A3: ELECCIONES PRESIDENCIALES 2010
A8: INTEGRACIÓN NACIONAL | B8: 2049 | C8: =+B8/$B$22 -> 0.001072026696
A9: ALIANZA PATRIÓTICA | B9: 3158 | C9: =+B9/$B$22 -> 0.001652250027
A10: FRENTE AMPLIO | B10: 6782 | C10: 0.003548308955
A11: RENOVACIÓN COSTARRICENSE | B11: 13945 | C11: 0.007295955231
A12: ACCESIBILIDAD SIN EXCLUSIÓN | B12: 36104 | C12: 0.01888943476
A13: UNIDAD SOCIAL CRISTIANA | B13: 74114 | C13: 0.03877607931
A14: MOVIMIENTO LIBERTARIO | B14: 399788 | C14: 0.2091671101
A15: ACCIÓN CIUDADANA | B15: 478877 | C15: 0.2505460849
A16: LIBERACIÓN NACIONAL | B16: 896516 | C16: 0.4690527501
B22: =SUM(B8:B21) -> 1911333 | C22: =SUM(C8:C21) -> 1
A40: FUENTE: Cuadro 3.16.

Sheet C3.17
A2: CUADRO 3. 17 COSTA RICA: JUNTAS, ELECTORADO, VOTOS POR PARTIDO, NULOS, BLANCOS Y ABSTENCIONISMO, PARA PRESIDENCIA Y
A3: VICEPRESIDENCIAS DE LA REPÚBLICA, POR PROVINCIA Y EXTRANJERO, ELECCIONES 2 DE FEBRERO 2014
A5: JUNTAS, ELECTORADO, VOTOS POR PARTIDO, NULOS, BLANCOS Y ABSTENCIONISMO | B5: COSTA RICA | C5: PROVINCIA | J5: EXTRANJERO
C6: SAN JOSÉ | D6: ALAJUELA | E6: CARTAGO | F6: HEREDIA | G6: GUANACASTE | H6: PUNTARENAS | I6: LIMÓN
A9: JUNTAS | B9: =SUM(C9:J9) -> 6515 | C9: 2104 | D9: 1259 | E9: 743 | F9: 602 | G9: 542 | H9: 692 | I9: 512 | J9: 61
A11: ELECTORADO | B11: =SUM(C11:J11) -> 3078321 | C11: 1063061 | D11: 577493 | E11: 359985 | F11: 306901 | G11: 221688 | H11: 287254 | I11: 249285 | J11: 12654
A13: VOTOS RECIBIDOS | B13: =SUM(C13:J13) -> 2099219 | C13: =C16+C30+C31 -> 745771 | D13: 407823 | E13: 264532 | F13: 223952 | G13: 140138 | H13: 167515 | I13: 146717 | J13: 2771
A14: PARTICIPACIÓN 1/ | B14: =B13/B11*100 -> 68.19363543 | C14: =C13/C11*100 -> 70.15317089 | D14: 70.61955729 | E14: 73.48417295 | F14: 72.97206591 | G14: 63.21406662 | H14: 58.31598516 | I14: 58.85512566 | J14: 21.898214
A16: VOTOS VÁLIDOS | B16: =SUM(B17:B29) -> 2055472 | C16: =SUM(C17:C29) -> 733256 | D16: 399846 | E16: 258493 | F16: 220575 | G16: 136325 | H16: 162771 | I16: 141489 | J16: 2717
A17: ACCESIBILIDAD SIN EXCLUSIÓN | B17: =SUM(C17:J17) -> 10339 | C17: 3471 | D17: 1729 | E17: 1595 | F17: 926 | G17: 495 | H17: 963 | I17: 1157 | J17: 3
A18: ACCIÓN CIUDADANA | B18: =SUM(C18:J18) -> 629866 | C18: 265637 | D18: 124172 | E18: 89965 | F18: 85093 | G18: 20277 | H18: 22956 | I18: 20619 | J18: 1147
A19: AVANCE NACIONAL | B19: 4388 | C19: 1767 | D19: 639 | E19: 514 | F19: 341 | G19: 271 | H19: 345 | I19: 506 | J19: 5
A20: DE LOS TRABAJADORES | B20: 4897 | C20: 1452 | D20: 1059 | E20: 743 | F20: 477 | G20: 284 | H20: 357 | I20: 519 | J20: 6
A21: FRENTE AMPLIO | B21: 354479 | C21: 111109 | D21: 73333 | E21: 37969 | F21: 36437 | G21: 26099 | H21: 37762 | I21: 31367 | J21: 403
A22: INTEGRACIÓN NACIONAL | B22: 3042 | C22: 1333 | D22: 458 | E22: 440 | F22: 210 | G22: 153 | H22: 246 | I22: 200 | J22: 2
A23: LIBERACIÓN NACIONAL | B23: 610634 | C23: 209006 | D23: 119081 | E23: 71981 | F23: 56900 | G23: 55598 | H23: 55963 | I23: 41368 | J23: 737
A24: MOVIMIENTO LIBERTARIO | B24: 233064 | C24: 73552 | D24: 41389 | E24: 29391 | F24: 21699 | G24: 17413 | H24: 23735 | I24: 25640 | J24: 245
A25: NUEVA GENERACIÓN | B25: 5882 | C25: 2221 | D25: 863 | E25: 893 | F25: 701 | G25: 247 | H25: 449 | I25: 504 | J25: 4
A26: PATRIA NUEVA | B26: 30816 | C26: 10621 | D26: 8511 | E26: 5492 | F26: 2668 | G26: 1212 | H26: 1169 | I26: 1112 | J26: 31
A27: RENOVACIÓN COSTARRICENSE | B27: 16721 | C27: 3857 | D27: 2592 | E27: 867 | F27: 847 | G27: 1854 | H27: 1797 | I27: 4902 | J27: 5
A28: RESTAURACIÓN NACIONAL | B28: 27691 | C28: 10416 | D28: 4577 | E28: 2286 | F28: 2738 | G28: 1732 | H28: 3260 | I28: 2666 | J28: 16
A29: UNIDAD SOCIAL CRISTIANA | B29: 123653 | C29: 38814 | D29: 21443 | E29: 16357 | F29: 11538 | G29: 10690 | H29: 13769 | I29: 10929 | J29: 113
A30: VOTOS NULOS | B30: =SUM(C30:J30) -> 38021 | C30: 11097 | D30: 7029 | E30: 5277 | F30: 2982 | G30: 3174 | H30: 4008 | I30: 4402 | J30: 52
A31: VOTOS BLANCOS | B31: =SUM(C31:J31) -> 5726 | C31: 1418 | D31: 948 | E31: 762 | F31: 395 | G31: 639 | H31: 736 | I31: 826 | J31: 2
A33: ABSTENCIONISMO | B33: =SUM(C33:J33) -> 979102 | C33: =C11-C13 -> 317290 | D33: =D11-D13 -> 169670 | E33: 95453 | F33: 82949 | G33: 81550 | H33: 119739 | I33: 102568 | J33: =J11-J13 -> 9883
B34: =B33/B11*100 -> 31.80636457 | C34: 29.84682911 | D34: 29.38044271 | E34: 26.51582705 | F34: 27.02793409 | G34: 36.78593338 | H34: 41.68401484 | I34: 41.14487434 | J34: 78.101786
A37: 1/ Porcentaje de participación: se calcula dividiendo la cantidad de votos recibidos entre el electorado inscrito.
A39: Nota: Dado que ninguna de las nóminas superó el 40% de los votos válidamente emitidos, se ordena una segunda votación entre las nóminas del Partido Acción Ciudadana y el Partido Liberación Nacional.
A42: FUENTE: Tribunal Supremo de Elecciones.

Sheet G3.17
A2: GRÁFICO 3.17 COSTA RICA: PORCENTAJE DE VOTOS VÁLIDOS, POR PARTIDO
A3: ELECCIONES PRESIDENCIALES FEBRERO 2014
A8: INTEGRACIÓN NACIONAL | B8: 3042 | C8: =+B8/$B$22 -> 0.00147995205
A9: AVANCE NACIONAL | B9: 4388 | C9: =+B9/$B$22 -> 0.002134789479
A10: DE LOS TRABAJADORES | B10: 4897 | C10: 0.002382421167
A11: NUEVA GENERACIÓN | B11: 5882 | C11: 0.002861629835
A12: ACCESIBILIDAD SIN EXCLUSIÓN | B12: 10339 | C12: 0.005029988246
A13: RENOVACIÓN COSTARRICENSE | B13: 16721 | C13: 0.008134871212
A14: RESTAURACIÓN NACIONAL | B14: 27691 | C14: 0.01347184491
A15: PATRIA NUEVA | B15: 30816 | C15: 0.01499217698
A16: UNIDAD SOCIAL CRISTIANA | B16: 123653 | C16: 0.06015795885
A17: MOVIMIENTO LIBERTARIO | B17: 233064 | C17: 0.1133870955
A18: FRENTE AMPLIO | B18: 354479 | C18: 0.1724562534
A19: LIBERACIÓN NACIONAL | B19: 610634 | C19: 0.297077265
A20: ACCIÓN CIUDADANA | B20: 629866 | C20: 0.3064337534
B22: =SUM(B8:B21) -> 2055472
A40: FUENTE: Cuadro 3.17.

Sheet C3.18
A2: CUADRO 3.18 COSTA RICA: JUNTAS, ELECTORADO, VOTOS POR PARTIDO, NULOS, BLANCOS Y ABSTENCIONISMO, PARA PRESIDENCIA Y
A3: VICEPRESIDENCIAS DE LA REPÚBLICA, POR PROVINCIA Y EXTRANJERO, ELECCIONES 6 DE ABRIL 2014
A6: JUNTAS, ELECTORADO, VOTOS VÁLIDOS POR PARTIDO, NULOS, BLANCOS Y ABSTENCIONISMO | B6: COSTA RICA | C6: PROVINCIA | J6: EXTRANJERO
C7: SAN JOSÉ | D7: ALAJUELA | E7: CARTAGO | F7: HEREDIA | G7: GUANACASTE | H7: PUNTARENAS | I7: LIMÓN
A10: JUNTAS | B10: =SUM(C10:J10) -> 6515 | C10: 2104 | D10: 1259 | E10: 743 | F10: 602 | G10: 542 | H10: 692 | I10: 512 | J10: 61
A12: ELECTORADO | B12: =SUM(C12:J12) -> 3078321 | C12: 1063061 | D12: 577493 | E12: 359985 | F12: 306901 | G12: 221688 | H12: 287254 | I12: 249285 | J12: 12654
A14: VOTOS RECIBIDOS | B14: =SUM(C14:J14) -> 1739235 | C14: =C17+C21+C23 -> 623428 | D14: 340421 | E14: 227285 | F14: 190609 | G14: 108849 | H14: 132008 | I14: 114688 | J14: 1947
A15: PARTICIPACIÓN 1/ | B15: =B14/B12*100 -> 56.49946838 | C15: =C14/C12*100 -> 58.64461212 | D15: 58.94807383 | E15: 63.13735295 | F15: 62.10765035 | G15: 49.10008661 | H15: 45.95514771 | I15: 46.00677939 | J15: =J14/J12*100 -> 15.38643907
A17: VOTOS VÁLIDOS | B17: =SUM(C17:J17) -> 1720921 | C17: =SUM(C18:C19) -> 616149 | D17: 337562 | E17: 224882 | F17: 188509 | G17: 107811 | H17: 130819 | I17: 113274 | J17: 1915
A18: ACCIÓN CIUDADANA | B18: =SUM(C18:J18) -> 1338321 | C18: 478669 | D18: 266437 | E18: 180650 | F18: 152336 | G18: 75196 | H18: 95640 | I18: 87852 | J18: 1541
A19: LIBERACIÓN NACIONAL | B19: =SUM(C19:J19) -> 382600 | C19: 137480 | D19: 71125 | E19: 44232 | F19: 36173 | G19: 32615 | H19: 35179 | I19: 25422 | J19: 374
A21: VOTOS NULOS | B21: =SUM(C21:J21) -> 15468 | C21: 6195 | D21: 2402 | E21: 2029 | F21: 1796 | G21: 864 | H21: 991 | I21: 1170 | J21: 21
A23: VOTOS BLANCOS | B23: =SUM(C23:J23) -> 2846 | C23: 1084 | D23: 457 | E23: 374 | F23: 304 | G23: 174 | H23: 198 | I23: 244 | J23: 11
A25: ABSTENCIONISMO | B25: =SUM(C25:J25) -> 1339086 | C25: =+C12-C14 -> 439633 | D25: =+D12-D14 -> 237072 | E25: 132700 | F25: 116292 | G25: 112839 | H25: 155246 | I25: 134597 | J25: =+J12-J14 -> 10707
B26: =B25/B12*100 -> 43.50053162 | C26: 41.35538788 | D26: 41.05192617 | E26: 36.86264705 | F26: 37.89234965 | G26: 50.89991339 | H26: 54.04485229 | I26: 53.99322061 | J26: 84.61356093
A29: 1/ El porcentaje de participación se calcula dividiendo la cantidad de votos recibidos entre el electorado inscrito.
A31: Presidente: Luis Guillermo Solís Rivera
A32: Primer Vicepresidente: Helio Fallas Venegas
A33: Segunda Vicepresidenta: Ana Helena Chancón Echeverria
A35: FUENTE: Tribunal Supremo de Elecciones.

Sheet G3.18
A2: GRÁFICO 3.18 COSTA RICA: PORCENTAJE DE VOTOS VÁLIDOS, POR PARTIDO
A3: ELECCIONES PRESIDENCIALES ABRIL 2014
A9: ACCIÓN CIUDADANA | B9: 1338321
A10: LIBERACIÓN NACIONAL | B10: 382600
A36: FUENTE: Cuadro 3.18.

Sheet C3.19
A3: CUADRO 3.19 COSTA RICA: JUNTAS, ELECTORADO, VOTOS POR PARTIDO, NULOS, BLANCOS Y ABSTENCIONISMO, PARA PRESIDENCIA Y
A4: VICEPRESIDENCIAS DE LA REPÚBLICA, POR PROVINCIA Y EXTRANJERO, ELECCIONES 4 DE FEBRERO 2018
A6: JUNTAS, ELECTORADO, VOTOS POR PARTIDO, NULOS, BLANCOS Y ABSTENCIONISMO | B6: COSTA RICA | C6: PROVINCIA | J6: EXTRANJERO
C7: SAN JOSÉ | D7: ALAJUELA | E7: CARTAGO | F7: HEREDIA | G7: GUANACASTE | H7: PUNTARENAS | I7: LIMÓN
B9: =SUM(C9:J9) -> 6612 | C9: 2092 | D9: 1266 | E9: 740 | F9: 613 | G9: 565 | H9: 716 | I9: 550 | J9: 70
A11: ELECTORADO | B11: =SUM(C11:J11) -> 3322329 | C11: 1114779 | D11: 630990 | E11: 387905 | F11: 332859 | G11: 240637 | H11: 310662 | I11: 272633 | J11: 31864
A13: VOTOS RECIBIDOS | B13: =SUM(C13:J13) -> 2182764 | C13: =C16+C30+C31 -> 762422 | D13: 428247 | E13: 278545 | F13: 238377 | G13: 142830 | H13: 172338 | I13: 155574 | J13: 4431
A14: PARTICIPACIÓN 1/ | B14: =B13/B11*100 -> 65.6998148 | C14: =C13/C11*100 -> 68.39221047 | D14: 67.8690629 | E14: 71.80753019 | F14: 71.61500816 | G14: 59.35496204 | H14: 55.47443846 | I14: 57.06352496 | J14: 13.9059754
A16: VOTOS VÁLIDOS | B16: =SUM(B17:B29) -> 2154697 | C16: 755616 | D16: 423114 | E16: 274459 | F16: 236246 | G16: 139808 | H16: 169076 | I16: 151987 | J16: 4391
A17: ACCESIBILIDAD SIN EXCLUSIÓN | B17: =SUM(C17:J17) -> 7539 | C17: 2339 | D17: 1381 | E17: 1061 | F17: 580 | G17: 528 | H17: 655 | I17: 989 | J17: 6
A18: ACCIÓN CIUDADANA | B18: =SUM(C18:J18) -> 466129 | C18: 177643 | D18: 92385 | E18: 72528 | F18: 64449 | G18: 21089 | H18: 20330 | I18: 16050 | J18: 1655
A19: ALIANZA DEMÓCRATA CRISTIANA | B19: 12638 | C19: 2659 | D19: 1313 | E19: 5920 | F19: 682 | G19: 438 | H19: 607 | I19: 1003 | J19: 16
A20: DE LOS TRABAJADORES | B20: 4351 | C20: 1497 | D20: 888 | E20: 527 | F20: 401 | G20: 255 | H20: 324 | I20: 453 | J20: 6
A21: FRENTE AMPLIO | B21: 16862 | C21: 5889 | D21: 3177 | E21: 2097 | F21: 1896 | G21: 942 | H21: 1347 | I21: 1434 | J21: 80
A22: INTEGRACIÓN NACIONAL | B22: 205602 | C22: 68058 | D22: 37462 | E22: 29839 | F22: 19075 | G22: 15653 | H22: 19462 | I22: 15810 | J22: 243
A23: LIBERACIÓN NACIONAL | B23: 401505 | C23: 135883 | D23: 76848 | E23: 55345 | F23: 41780 | G23: 32937 | H23: 31280 | I23: 26684 | J23: 748
A24: MOVIMIENTO LIBERTARIO | B24: 21890 | C24: 7674 | D24: 3847 | E24: 2814 | F24: 2410 | G24: 1346 | H24: 1805 | I24: 1963 | J24: 31
A25: NUEVA GENERACIÓN | B25: 16329 | C25: 6395 | D25: 3039 | E25: 2361 | F25: 2207 | G25: 691 | H25: 947 | I25: 657 | J25: 32
A26: RENOVACIÓN COSTARRICENSE | B26: 12309 | C26: 4048 | D26: 2058 | E26: 1955 | F26: 1236 | G26: 822 | H26: 954 | I26: 1215 | J26: 21
A27: REPUBLICANO SOCIAL CRISTIANO | B27: 106444 | C27: 34676 | D27: 23023 | E27: 17464 | F27: 8792 | G27: 7266 | H27: 8202 | I27: 6978 | J27: 43
A28: RESTAURACIÓN NACIONAL | B28: 538504 | C28: 172975 | D28: 113234 | E28: 41211 | F28: 50033 | G28: 35733 | H28: 60096 | I28: 64710 | J28: 512
A29: UNIDAD SOCIAL CRISTIANA | B29: 344595 | C29: 135880 | D29: 64459 | E29: 41337 | F29: 42705 | G29: 22108 | H29: 23067 | I29: 14041 | J29: 998
A30: VOTOS NULOS | B30: =SUM(C30:J30) -> 22974 | C30: 5643 | D30: 4244 | E30: 3401 | F30: 1780 | G30: 2392 | H30: 2659 | I30: 2818 | J30: 37
A31: VOTOS BLANCOS | B31: =SUM(C31:J31) -> 5093 | C31: 1163 | D31: 889 | E31: 685 | F31: 351 | G31: 630 | H31: 603 | I31: 769 | J31: 3
A33: ABSTENCIONISMO | B33: =SUM(C33:J33) -> 1139565 | C33: =C11-C13 -> 352357 | D33: =D11-D13 -> 202743 | E33: 109360 | F33: 94482 | G33: 97807 | H33: 138324 | I33: 117059 | J33: 27433
B34: 34.30022475 | C34: 31.59269398 | D34: 32.15889109 | E34: 28.19931845 | F34: 28.3826251 | G34: 40.64183124 | H34: 44.53127515 | I34: 42.92349516 | J34: 86.09620634
A37: 1/ Porcentaje de participación: se calcula dividiendo la cantidad de votos recibidos entre el electorado inscrito.
A39: Nota: Dado que ninguna de las nóminas superó el 40% de los votos válidamente emitidos, se ordena una segunda votación entre las nóminas del Partido Acción Ciudadana y el Partido Restauración Nacional.
A42: FUENTE: Tribunal Supremo de Elecciones.

Sheet G3.19
A2: GRÁFICO 3.19 COSTA RICA: PORCENTAJE DE VOTOS VÁLIDOS, POR PARTIDO
A3: ELECCIONES PRESIDENCIALES FEBRERO 2018
A8: DE LOS TRABAJADORES | B8: 4351 | C8: =+B8/$B$22 -> 0.002019309444
A9: ACCESIBILIDAD SIN EXCLUSIÓN | B9: 7539 | C9: =+B9/$B$22 -> 0.003498867822
A10: RENOVACIÓN COSTARRICENSE | B10: 12309 | C10: 0.005712636162
A11: ALIANZA DEMÓCRATA CRISTIANA | B11: 12638 | C11: 0.005865325844
A12: NUEVA GENERACIÓN | B12: 16329 | C12: 0.007578327718
A13: FRENTE AMPLIO | B13: 16862 | C13: 0.007825694286
A14: MOVIMIENTO LIBERTARIO | B14: 21890 | C14: 0.01015920104
A15: REPUBLICANO SOCIAL CRISTIANO | B15: 106444 | C15: 0.04940091345
A16: INTEGRACIÓN NACIONAL | B16: 205602 | C16: 0.09542037697
A17: UNIDAD SOCIAL CRISTIANA | B17: 344595 | C17: 0.1599273587
A18: LIBERACIÓN NACIONAL | B18: 401505 | C18: 0.186339425
A19: ACCIÓN CIUDADANA | B19: 466129 | C19: 0.216331577
A20: RESTAURACIÓN NACIONAL | B20: 538504 | C20: 0.2499209866
B22: =SUM(B8:B21) -> 2154697
A40: FUENTE: Cuadro 3.19.

Sheet C3.20
A2: CUADRO 3.20 COSTA RICA: JUNTAS, ELECTORADO, VOTOS POR PARTIDO, NULOS, BLANCOS Y ABSTENCIONISMO, PARA PRESIDENCIA Y
A3: VICEPRESIDENCIAS DE LA REPÚBLICA, POR PROVINCIA Y EXTRANJERO, ELECCIONES 1 DE ABRIL 2018
A5: JUNTAS, ELECTORADO, VOTOS POR PARTIDO, NULOS, BLANCOS Y ABSTENCIONISMO | B5: COSTA RICA | C5: PROVINCIA | J5: EXTRANJERO
C6: SAN JOSÉ | D6: ALAJUELA | E6: CARTAGO | F6: HEREDIA | G6: GUANACASTE | H6: PUNTARENAS | I6: LIMÓN
A9: JUNTAS | B9: 6612 | C9: 2092 | D9: 1266 | E9: 740 | F9: 613 | G9: 565 | H9: 716 | I9: 550 | J9: 70
A11: ELECTORADO | B11: 3322329 | C11: 1114779 | D11: 630990 | E11: 387905 | F11: 332859 | G11: 240637 | H11: 310662 | I11: 272633 | J11: 31864
A13: VOTOS RECIBIDOS | B13: 2207556 | C13: 769441 | D13: 433414 | E13: 286482 | F13: 243160 | G13: 142530 | H13: 174764 | I13: 152946 | J13: 4819
A14: PARTICIPACIÓN 1/ | B14: =B13/B11*100 -> 66.44603831 | C14: =C13/C11*100 -> 69.021842 | D14: 68.68793483 | E14: 73.85364973 | F14: 73.05195293 | G14: 59.23029293 | H14: 56.25535148 | I14: 56.09959176 | J14: 15.12365051
A16: VOTOS VÁLIDOS | B16: 2183296 | C16: 761097 | D16: 428799 | E16: 283265 | F16: 240860 | G16: 140999 | H16: 172624 | I16: 150876 | J16: 4776
A17: ACCIÓN CIUDADANA | B17: 1322908 | C17: 473864 | D17: 256282 | E17: 211386 | F17: 162041 | G17: 82596 | H17: 77755 | I17: 55277 | J17: 3707
A18: RESTAURACIÓN NACIONAL | B18: 860388 | C18: 287233 | D18: 172517 | E18: 71879 | F18: 78819 | G18: 58403 | H18: 94869 | I18: 95599 | J18: 1069
A20: BLANCOS | B20: 4536 | C20: 1581 | D20: 936 | E20: 607 | F20: 459 | G20: 225 | H20: 402 | I20: 316 | J20: 10
A21: NULOS | B21: 19724 | C21: 6763 | D21: 3679 | E21: 2610 | F21: 1841 | G21: 1306 | H21: 1738 | I21: 1754 | J21: 33
A23: ABSTENCIONISMO | B23: =B11-B13 -> 1114773 | C23: =C11-C13 -> 345338 | D23: 197576 | E23: 101423 | F23: 89699 | G23: 98107 | H23: 135898 | I23: 119687 | J23: 27045
B24: 33.55400169 | C24: 30.96292348 | D24: 31.34035644 | E24: 26.15339406 | F24: 26.94563284 | G24: 40.76650708 | H24: 43.75044256 | I24: 43.88764762 | J24: 84.87872227
A27: 1/ El porcentaje de participación se calcula dividiendo la cantidad de votos recibidos entre el electorado inscrito.
A29: Presidente: Carlos Andrés Alvarado Quesada
A30: Primera Vicepresidenta: Epsy Alejandra Campbell Barr
A31: Segundo Vicepresidente: Marvin Rafael Rodríguez Cordero
A33: FUENTE: Tribunal Supremo de Elecciones.

Sheet G3.20
A2: GRÁFICO 3.20 COSTA RICA: PORCENTAJE DE VOTOS VÁLIDOS, POR PARTIDO
A3: ELECCIONES ABRIL 2018
A9: ACCIÓN CIUDADANA | B9: 1322908
A10: RESTAURACIÓN NACIONAL | B10: 860388
A36: FUENTE: Cuadro 3.20.
